{"text_format":"1","workbook":"xlsx","n_sheets":12,"sheets":["Hoja1","Apertura","Solicitud-DJ","Trama","Tablas_Ayuda","Rangos","Ubigeo","Columnas","Hoja2","Hoja3","Profesion","Ocupacion"],"not_rendered":{"charts":0,"images":4,"macros":1,"external_links":0,"defined_names":278,"comments":2,"pivot_tables":0},"unopened":[],"bounds":{"document_bytes":16777216,"sheet_cells":100000,"rows_first":2000,"rows_last":500,"rows_between":2000,"halvings":0,"cell_chars":16384,"cell_head_chars":4096},"cells_cut":0,"cells_raw":0,"read":"whole","date_system":"1900"}

{"sheet":"Hoja1","index":0,"n_rows":16,"n_cols":19,"rows_kept":16,"cut":false,"hidden":true,"merged":[]}
[]
[]
[]
[]
[]
[]
[]
[1,2,3,4,5,6,7,8,9,1,"DPT 2","OF 3","PSO 4","MZ 5","LT 6","INT 7","SEC 8","KM 9","1 DPT 2 OF 3 PSO 4 MZ 5 LT 6 INT 7 SEC 8 KM 9"]
[null,null,null,22,33,44,null,null,null,null,null,null,"PSO 22","MZ 33","LT 44",null,null,null,"PSO 22 MZ 33 LT 44"]
[3,3,3,3,3,3,3,3,3,3,"DPT 3","OF 3","PSO 3","MZ 3","LT 3","INT 3","SEC 3","KM 3","3 DPT 3 OF 3 PSO 3 MZ 3 LT 3 INT 3 SEC 3 KM 3"]
[1,2,3,4,5,6,7,8,9,1,"DPT 2","OF 3","PSO 4","MZ 5","LT 6","INT 7","SEC 8","KM 9","1 DPT 2 OF 3 PSO 4 MZ 5 LT 6 INT 7 SEC 8 KM 9"]
[null,null,null,22,33,44,null,null,null,null,null,null,"PSO 22","MZ 33","LT 44",null,null,null,"PSO 22 MZ 33 LT 44"]
[3,3,3,3,3,3,3,3,3,3,"DPT 3","OF 3","PSO 3","MZ 3","LT 3","INT 3","SEC 3","KM 3","3 DPT 3 OF 3 PSO 3 MZ 3 LT 3 INT 3 SEC 3 KM 3"]
[1,2,3,4,5,6,7,8,9,1,"DPT 2","OF 3","PSO 4","MZ 5","LT 6","INT 7","SEC 8","KM 9","1 DPT 2 OF 3 PSO 4 MZ 5 LT 6 INT 7 SEC 8 KM 9"]
[null,null,null,22,33,44,null,null,null,null,null,null,"PSO 22","MZ 33","LT 44",null,null,null,"PSO 22 MZ 33 LT 44"]
[3,3,3,3,3,3,3,3,3,3,"DPT 3","OF 3","PSO 3","MZ 3","LT 3","INT 3","SEC 3","KM 3","3 DPT 3 OF 3 PSO 3 MZ 3 LT 3 INT 3 SEC 3 KM 3"]

{"sheet":"Apertura","index":1,"n_rows":16,"n_cols":32,"rows_kept":16,"cut":false,"hidden":false,"merged":[[7,5,7,6],[8,5,8,6],[3,2,3,3],[6,5,6,6]]}
[".",".",null,null,null,"N° de cuentas Solicitadas",{"$f":"COUNTIF(C17:C516,\"*\")","v":0}]
[null,null,null,null,null,null,"Archivo no validado"]
[]
[null,null,"¿Lo solicita una empresa?",null,"NO"]
[]
[null,null,"DATOS CONTACTO DE LA EMPRESA",null,null,null,null,null,"Para ser llenado por Scotiabank"]
[null,null,"T/DOI",null,"Nombres y Apellidos",null,null,null,"Canal de Venta","Código de Vendedor",null,"Código de Vendedor 1"]
[null,null,"Nro DOI",null,"Nombre de cargo en la empresa"]
[null,null,"Celular",null,"Dirección electrónica"]
[]
[null,null,"DATOS DE LA EMPRESA"]
[null,null,"Fecha de Envío","¿Apertura Centralizada?","Tipo de Cuenta","Número de RUC","Nombre de la Empresa","Departamento / Provincia / Distrito"]
[null,null,null,"NO"]
[]
[null,null,"DATOS DE LOS COLABORADORES"]
[null,null,"Tipo de Documento","Número de Documento","Apellido Paterno","Apellido Materno","Primer Nombre","Segundo Nombre","País de Nacimiento","Nacionalidad","Residencia","Fecha de Nacimiento","Sexo","Estado Civil","Vía ","Nombre de la Vía","Núm / Dep / Ofi / Piso / Mzn / Lote / Int / Sec / Km","Zona","Nombre de la Zona","Referencia","Departamento ","Provincia","Distrito","Dirección Electrónica","Código de Área","Teléfono Fijo","Télefono Celular","Situación Laboral","Fecha de Ingreso a la empresa","Moneda de la Cta de abono","Ingresos Brutos Mensuales","Ocupación / Cargo / Profesión"]

{"sheet":"Solicitud-DJ","index":2,"n_rows":207,"n_cols":11,"rows_kept":207,"cut":false,"hidden":false,"merged":[[1,1,1,8],[15,6,15,7],[14,2,14,3],[15,2,15,3],[11,1,11,8],[14,6,14,7],[3,1,3,2],[13,1,13,4],[10,1,10,8],[13,5,13,8],[9,7,9,8],[9,1,9,3],[9,4,9,5],[47,1,47,3],[30,1,30,8],[26,1,26,2],[37,1,37,2],[37,5,37,8],[36,5,36,8],[37,3,37,4],[36,3,36,4],[36,1,36,2],[26,3,26,4],[33,5,33,8],[33,1,33,2],[33,3,33,4],[17,6,17,8],[23,1,23,8],[17,2,17,3],[21,1,21,3],[20,1,20,3],[19,1,19,8],[25,1,25,2],[25,3,25,4],[32,5,32,8],[32,3,32,4],[32,1,32,2]]}
[null,null,null,null,null,null,null,null,null,null," Lima"]
[null,"SOLICITUD DE APERTURAS MASIVAS Y EXONERACIÓN DEL ITF",null,null,null,null,null,null,null,null,"Provincia"]
[]
[null,{"$f":"Apertura!C13","v":"00:00:00"},null,null,null,null,null,null,null,null,"Ahorros"]
[null,null,null,null,null,null,null,null,null,null,"CTS"]
[null,"Señores:"]
[null,"SCOTIABANK PERU SAA",null,null,null,null,null,null,null,null,1]
[null,"Presente.-"]
[]
[null,"Conste el presente documento como solicitud de apertura masiva de",null,null,{"$f":"Apertura!E13","v":0},null,"para cada","trabajador"]
[null,"por parte de mi representada, y para tal efecto, se indica la información necesaria, declarando y asumiendo la responsabilidad por la misma que es vertida de manera fiel y veraz en todos sus extremos.",null,null,null,null,null,null,null,null,"trabajador"]
[null," ",null,null,null,null,null,null,null,null,"pensionista"]
[]
[null,"Resumen de cuentas solicitadas",null,null,null,"Sectorización de cuentas solicitadas"]
[null,null,"CON exoneración",null,"Total","Localidad","Agencia",null,"CDR"]
[null,{"$f":"COUNTIF(LISTA,\"=INDEPENDIENTE\")","v":0},{"$f":"COUNTIF(LISTA,\"=DEPENDIENTE\")","v":0},null,{"$f":"SUM(B16:D16)","v":0}," Lima",null,null,{"$f":"VLOOKUP(G16,Columnas!F8:H203,3,FALSE)","v":{"$error":"#N/A"}}]
[]
[null,"Para ello asumimos la entrega","completamente descentralizada de los",null,"documentos por cada ","trabajador","al Banco, según lo requerido."]
[]
[null,{"$f":"IF(op>=2,\"Por esta modalidad asumimos la responsabilidad de informar a nuestros trabajores/pensionistas que deban acercarse a regularizar su cuenta en la Red de Agencias y Sucursales, para la obtención de sus respectivas Scotiacards Débito, considerando: \",\" \")","v":" "}]
[null,{"$f":"IF(op=2,\"Cuentas con documentación centralizada (Lima):\",IF(op=3,\"Cuentas con documentación descentralizada (Red para Lima):\",\" \"))","v":" "},null,null," ",null,null,null,null,null,"completamente centralizada de los"]
[null,{"$f":"IF(op>=2,\"Cuentas con documentación descentralizada (Red para Provincia):\",\" \")","v":" "},null,null," ",null,null,null,null,null,"centralizada y descentralizada de los"]
[null,null,null,null,null,null,null,null,null,null,"completamente descentralizada de los"]
[null,"Para la entrega de la información que proporcionamos, y para la recepción de documentación y tarjetas Scotiacard (si fuese el caso) acreditamos a:"]
[]
[null,"Nombres y Apellidos",null,"Documento de identidad (3)(4)"]
[]
[]
[]
[]
[null,"Por la presente y bajo mi exclusiva responsabilidad, declaro bajo juramento que la(s) cuenta(s), que detallo en el anexo n°1 cuentas de ahorros, abierta(s) en su empresa, será(n) utilizada(s) para acreditar remuneraciones o pensiones, según lo establecido en el inciso c) del Apéndice de la Ley N° 28194.\nPor intermedio de la presente me comprometo a comunicarles cualquier modificación que pudiera presentarse sobre dicha situación, dentro de los dos (2) días hábiles siguientes a su ocurrencia.\nEn caso que transcurran 180 días, sin que nuestro colaborador haya formalizado el proceso de apertura de cuenta mediante la firma de los documentos contractuales, esta instrucción quedará sin efecto respecto a dicho colaborador, pudiendo ustedes proceder al cierre de las respectivas cuentas. \n “Declaramos que contamos con la autorización de nuestros trabajadores para compartir con el banco sus datos personales con el propósito de la apertura de las cuentas sueldo en que abonaremos sus remuneraciones.”\nAsimismo, autorizo a su institución a entregar a la Superintendencia Nacional de Administración Tributaria - SUNAT, cuando ésta lo requiera, el original o copia del presente documento.\nFinalmente, declaro que los datos consignados en el presente documento son correctos y completos, y que esta declaración se ha confeccionado sin omitir o falsear dato alguno que deba contener, siendo fiel expresión de la verdad."]
[]
[null,"Nombres y Apellidos",null,"Documento de identidad (3)(4)",null,"Firma"]
[]
[]
[]
[null,"Nombre o Razón social",null,"N° del RUC del contribuyente",null,"N° cuenta corriente"]
[null,{"$f":"Apertura!G13","v":0},null,{"$f":"Apertura!F13","v":0}]
[]
[]
[]
[]
[]
[]
[]
[]
[]
[null,"ANEXO N°1 Cuentas de",null,null,{"$f":"C16","v":0}]
[]
[null,"Apellidos y Nombres del trabajador o pensionista \n(2)","Tipo de Documento de Identidad\n(3)","Número de Documento de Identidad \n(4)","Nº Cuenta \n(5)","Tipo de Cuenta \n(6)","Moneda \n(7)","Cuenta Exclusiva \n(8)"]
[null,{"$f":"IF(Apertura!AB17=\"Dependiente\",CONCATENATE(Apertura!G17,\" \",Apertura!H17,\" \",Apertura!E17,\" \",Apertura!F17),\"\")","v":""},{"$f":"IF(Apertura!AB17=\"Dependiente\",Apertura!C17,\" \")","v":" "},{"$f":"IF(Apertura!AB17=\"Dependiente\",Apertura!D17,\" \")","v":" "},null,{"$f":"IF(D51=\" \",\" \",\"Ahorros\")","v":" "},{"$f":"IF(B51=\"\",\" \",IF(Apertura!C8>0,IF(Apertura!AD17=\"Dólares\",\"Dólares\",IF(Apertura!AD17=\"Soles\",\"Soles\",0)),\" \"))","v":" "},{"$f":"IF(Apertura!AB17=\"Dependiente\",\"SI\",\"\")","v":""}]
[null,{"$f":"IF(Apertura!AB18=\"Dependiente\",CONCATENATE(Apertura!G18,\" \",Apertura!H18,\" \",Apertura!E18,\" \",Apertura!F18),\"\")","v":""},{"$f":"IF(Apertura!AB18=\"Dependiente\",Apertura!C18,\" \")","v":" "},{"$f":"IF(Apertura!AB18=\"Dependiente\",Apertura!D18,\" \")","v":" "},null,{"$f":"IF(D52=\" \",\" \",\"Ahorros\")","v":" "},{"$f":"IF(B52=\"\",\" \",IF(Apertura!C9>0,IF(Apertura!AD18=\"Dólares\",\"Dólares\",IF(Apertura!AD18=\"Soles\",\"Soles\",0)),\" \"))","v":" "},{"$f":"IF(Apertura!AB18=\"Dependiente\",\"SI\",\"\")","v":""}]
[null,{"$f":"IF(Apertura!AB19=\"Dependiente\",CONCATENATE(Apertura!G19,\" \",Apertura!H19,\" \",Apertura!E19,\" \",Apertura!F19),\"\")","v":""},{"$f":"IF(Apertura!AB19=\"Dependiente\",Apertura!C19,\" \")","v":" "},{"$f":"IF(Apertura!AB19=\"Dependiente\",Apertura!D19,\" \")","v":" "},null," ",{"$f":"IF(B53=\"\",\" \",IF(Apertura!C10>0,IF(Apertura!AD19=\"Dólares\",\"Dólares\",IF(Apertura!AD19=\"Soles\",\"Soles\",0)),\" \"))","v":" "},{"$f":"IF(Apertura!AB19=\"Dependiente\",\"SI\",\"\")","v":""}]
[null,{"$f":"IF(Apertura!AB20=\"Dependiente\",CONCATENATE(Apertura!G20,\" \",Apertura!H20,\" \",Apertura!E20,\" \",Apertura!F20),\"\")","v":""},{"$f":"IF(Apertura!AB20=\"Dependiente\",Apertura!C20,\" \")","v":" "},{"$f":"IF(Apertura!AB20=\"Dependiente\",Apertura!D20,\" \")","v":" "},null," ",{"$f":"IF(B54=\"\",\" \",IF(Apertura!C11>0,IF(Apertura!AD20=\"Dólares\",\"Dólares\",IF(Apertura!AD20=\"Soles\",\"Soles\",0)),\" \"))","v":" "},{"$f":"IF(Apertura!AB20=\"Dependiente\",\"SI\",\"\")","v":""}]
[null,{"$f":"IF(Apertura!AB21=\"Dependiente\",CONCATENATE(Apertura!G21,\" \",Apertura!H21,\" \",Apertura!E21,\" \",Apertura!F21),\"\")","v":""},{"$f":"IF(Apertura!AB21=\"Dependiente\",Apertura!C21,\" \")","v":" "},{"$f":"IF(Apertura!AB21=\"Dependiente\",Apertura!D21,\" \")","v":" "},null," ",{"$f":"IF(B55=\"\",\" \",IF(Apertura!C12>0,IF(Apertura!AD21=\"Dólares\",\"Dólares\",IF(Apertura!AD21=\"Soles\",\"Soles\",0)),\" \"))","v":" "},{"$f":"IF(Apertura!AB21=\"Dependiente\",\"SI\",\"\")","v":""}]
[null,{"$f":"IF(Apertura!AB22=\"Dependiente\",CONCATENATE(Apertura!G22,\" \",Apertura!H22,\" \",Apertura!E22,\" \",Apertura!F22),\"\")","v":""},{"$f":"IF(Apertura!AB22=\"Dependiente\",Apertura!C22,\" \")","v":" "},{"$f":"IF(Apertura!AB22=\"Dependiente\",Apertura!D22,\" \")","v":" "},null," ",{"$f":"IF(B56=\"\",\" \",IF(Apertura!C13>0,IF(Apertura!AD22=\"Dólares\",\"Dólares\",IF(Apertura!AD22=\"Soles\",\"Soles\",0)),\" \"))","v":" "},{"$f":"IF(Apertura!AB22=\"Dependiente\",\"SI\",\"\")","v":""}]
[null,{"$f":"IF(Apertura!AB23=\"Dependiente\",CONCATENATE(Apertura!G23,\" \",Apertura!H23,\" \",Apertura!E23,\" \",Apertura!F23),\"\")","v":""},{"$f":"IF(Apertura!AB23=\"Dependiente\",Apertura!C23,\" \")","v":" "},{"$f":"IF(Apertura!AB23=\"Dependiente\",Apertura!D23,\" \")","v":" "},null," ",{"$f":"IF(B57=\"\",\" \",IF(Apertura!C14>0,IF(Apertura!AD23=\"Dólares\",\"Dólares\",IF(Apertura!AD23=\"Soles\",\"Soles\",0)),\" \"))","v":" "},{"$f":"IF(Apertura!AB23=\"Dependiente\",\"SI\",\"\")","v":""}]
[null,{"$f":"IF(Apertura!AB24=\"Dependiente\",CONCATENATE(Apertura!G24,\" \",Apertura!H24,\" \",Apertura!E24,\" \",Apertura!F24),\"\")","v":""},{"$f":"IF(Apertura!AB24=\"Dependiente\",Apertura!C24,\" \")","v":" "},{"$f":"IF(Apertura!AB24=\"Dependiente\",Apertura!D24,\" \")","v":" "},null," ",{"$f":"IF(B58=\"\",\" \",IF(Apertura!C15>0,IF(Apertura!AD24=\"Dólares\",\"Dólares\",IF(Apertura!AD24=\"Soles\",\"Soles\",0)),\" \"))","v":" "},{"$f":"IF(Apertura!AB24=\"Dependiente\",\"SI\",\"\")","v":""}]
[null,{"$f":"IF(Apertura!AB25=\"Dependiente\",CONCATENATE(Apertura!G25,\" \",Apertura!H25,\" \",Apertura!E25,\" \",Apertura!F25),\"\")","v":""},{"$f":"IF(Apertura!AB25=\"Dependiente\",Apertura!C25,\" \")","v":" "},{"$f":"IF(Apertura!AB25=\"Dependiente\",Apertura!D25,\" \")","v":" "},null," ",{"$f":"IF(B59=\"\",\" \",IF(Apertura!C16>0,IF(Apertura!AD25=\"Dólares\",\"Dólares\",IF(Apertura!AD25=\"Soles\",\"Soles\",0)),\" \"))","v":" "},{"$f":"IF(Apertura!AB25=\"Dependiente\",\"SI\",\"\")","v":""}]
[null,{"$f":"IF(Apertura!AB26=\"Dependiente\",CONCATENATE(Apertura!G26,\" \",Apertura!H26,\" \",Apertura!E26,\" \",Apertura!F26),\"\")","v":""},{"$f":"IF(Apertura!AB26=\"Dependiente\",Apertura!C26,\" \")","v":" "},{"$f":"IF(Apertura!AB26=\"Dependiente\",Apertura!D26,\" \")","v":" "},null," ",{"$f":"IF(B60=\"\",\" \",IF(Apertura!C17>0,IF(Apertura!AD26=\"Dólares\",\"Dólares\",IF(Apertura!AD26=\"Soles\",\"Soles\",0)),\" \"))","v":" "},{"$f":"IF(Apertura!AB26=\"Dependiente\",\"SI\",\"\")","v":""}]
[null,{"$f":"IF(Apertura!AB27=\"Dependiente\",CONCATENATE(Apertura!G27,\" \",Apertura!H27,\" \",Apertura!E27,\" \",Apertura!F27),\"\")","v":""},{"$f":"IF(Apertura!AB27=\"Dependiente\",Apertura!C27,\" \")","v":" "},{"$f":"IF(Apertura!AB27=\"Dependiente\",Apertura!D27,\" \")","v":" "},null," ",{"$f":"IF(B61=\"\",\" \",IF(Apertura!C18>0,IF(Apertura!AD27=\"Dólares\",\"Dólares\",IF(Apertura!AD27=\"Soles\",\"Soles\",0)),\" \"))","v":" "},{"$f":"IF(Apertura!AB27=\"Dependiente\",\"SI\",\"\")","v":""}]
[null,{"$f":"IF(Apertura!AB28=\"Dependiente\",CONCATENATE(Apertura!G28,\" \",Apertura!H28,\" \",Apertura!E28,\" \",Apertura!F28),\"\")","v":""},{"$f":"IF(Apertura!AB28=\"Dependiente\",Apertura!C28,\" \")","v":" "},{"$f":"IF(Apertura!AB28=\"Dependiente\",Apertura!D28,\" \")","v":" "},null," ",{"$f":"IF(B62=\"\",\" \",IF(Apertura!C19>0,IF(Apertura!AD28=\"Dólares\",\"Dólares\",IF(Apertura!AD28=\"Soles\",\"Soles\",0)),\" \"))","v":" "},{"$f":"IF(Apertura!AB28=\"Dependiente\",\"SI\",\"\")","v":""}]
[null,{"$f":"IF(Apertura!AB29=\"Dependiente\",CONCATENATE(Apertura!G29,\" \",Apertura!H29,\" \",Apertura!E29,\" \",Apertura!F29),\"\")","v":""},{"$f":"IF(Apertura!AB29=\"Dependiente\",Apertura!C29,\" \")","v":" "},{"$f":"IF(Apertura!AB29=\"Dependiente\",Apertura!D29,\" \")","v":" "},null," ",{"$f":"IF(B63=\"\",\" \",IF(Apertura!C20>0,IF(Apertura!AD29=\"Dólares\",\"Dólares\",IF(Apertura!AD29=\"Soles\",\"Soles\",0)),\" \"))","v":" "},{"$f":"IF(Apertura!AB29=\"Dependiente\",\"SI\",\"\")","v":""}]
[null,{"$f":"IF(Apertura!AB30=\"Dependiente\",CONCATENATE(Apertura!G30,\" \",Apertura!H30,\" \",Apertura!E30,\" \",Apertura!F30),\"\")","v":""},{"$f":"IF(Apertura!AB30=\"Dependiente\",Apertura!C30,\" \")","v":" "},{"$f":"IF(Apertura!AB30=\"Dependiente\",Apertura!D30,\" \")","v":" "},null," ",{"$f":"IF(B64=\"\",\" \",IF(Apertura!C21>0,IF(Apertura!AD30=\"Dólares\",\"Dólares\",IF(Apertura!AD30=\"Soles\",\"Soles\",0)),\" \"))","v":" "},{"$f":"IF(Apertura!AB30=\"Dependiente\",\"SI\",\"\")","v":""}]
[null,{"$f":"IF(Apertura!AB31=\"Dependiente\",CONCATENATE(Apertura!G31,\" \",Apertura!H31,\" \",Apertura!E31,\" \",Apertura!F31),\"\")","v":""},{"$f":"IF(Apertura!AB31=\"Dependiente\",Apertura!C31,\" \")","v":" "},{"$f":"IF(Apertura!AB31=\"Dependiente\",Apertura!D31,\" \")","v":" "},null," ",{"$f":"IF(B65=\"\",\" \",IF(Apertura!C22>0,IF(Apertura!AD31=\"Dólares\",\"Dólares\",IF(Apertura!AD31=\"Soles\",\"Soles\",0)),\" \"))","v":" "},{"$f":"IF(Apertura!AB31=\"Dependiente\",\"SI\",\"\")","v":""}]
[null,{"$f":"IF(Apertura!AB32=\"Dependiente\",CONCATENATE(Apertura!G32,\" \",Apertura!H32,\" \",Apertura!E32,\" \",Apertura!F32),\"\")","v":""},{"$f":"IF(Apertura!AB32=\"Dependiente\",Apertura!C32,\" \")","v":" "},{"$f":"IF(Apertura!AB32=\"Dependiente\",Apertura!D32,\" \")","v":" "},null," ",{"$f":"IF(B66=\"\",\" \",IF(Apertura!C23>0,IF(Apertura!AD32=\"Dólares\",\"Dólares\",IF(Apertura!AD32=\"Soles\",\"Soles\",0)),\" \"))","v":" "},{"$f":"IF(Apertura!AB32=\"Dependiente\",\"SI\",\"\")","v":""}]
[null,{"$f":"IF(Apertura!AB33=\"Dependiente\",CONCATENATE(Apertura!G33,\" \",Apertura!H33,\" \",Apertura!E33,\" \",Apertura!F33),\"\")","v":""},{"$f":"IF(Apertura!AB33=\"Dependiente\",Apertura!C33,\" \")","v":" "},{"$f":"IF(Apertura!AB33=\"Dependiente\",Apertura!D33,\" \")","v":" "},null," ",{"$f":"IF(B67=\"\",\" \",IF(Apertura!C24>0,IF(Apertura!AD33=\"Dólares\",\"Dólares\",IF(Apertura!AD33=\"Soles\",\"Soles\",0)),\" \"))","v":" "},{"$f":"IF(Apertura!AB33=\"Dependiente\",\"SI\",\"\")","v":""}]
[null,{"$f":"IF(Apertura!AB34=\"Dependiente\",CONCATENATE(Apertura!G34,\" \",Apertura!H34,\" \",Apertura!E34,\" \",Apertura!F34),\"\")","v":""},{"$f":"IF(Apertura!AB34=\"Dependiente\",Apertura!C34,\" \")","v":" "},{"$f":"IF(Apertura!AB34=\"Dependiente\",Apertura!D34,\" \")","v":" "},null," ",{"$f":"IF(B68=\"\",\" \",IF(Apertura!C25>0,IF(Apertura!AD34=\"Dólares\",\"Dólares\",IF(Apertura!AD34=\"Soles\",\"Soles\",0)),\" \"))","v":" "},{"$f":"IF(Apertura!AB34=\"Dependiente\",\"SI\",\"\")","v":""}]
[null,{"$f":"IF(Apertura!AB35=\"Dependiente\",CONCATENATE(Apertura!G35,\" \",Apertura!H35,\" \",Apertura!E35,\" \",Apertura!F35),\"\")","v":""},{"$f":"IF(Apertura!AB35=\"Dependiente\",Apertura!C35,\" \")","v":" "},{"$f":"IF(Apertura!AB35=\"Dependiente\",Apertura!D35,\" \")","v":" "},null," ",{"$f":"IF(B69=\"\",\" \",IF(Apertura!C26>0,IF(Apertura!AD35=\"Dólares\",\"Dólares\",IF(Apertura!AD35=\"Soles\",\"Soles\",0)),\" \"))","v":" "},{"$f":"IF(Apertura!AB35=\"Dependiente\",\"SI\",\"\")","v":""}]
[null,{"$f":"IF(Apertura!AB36=\"Dependiente\",CONCATENATE(Apertura!G36,\" \",Apertura!H36,\" \",Apertura!E36,\" \",Apertura!F36),\"\")","v":""},{"$f":"IF(Apertura!AB36=\"Dependiente\",Apertura!C36,\" \")","v":" "},{"$f":"IF(Apertura!AB36=\"Dependiente\",Apertura!D36,\" \")","v":" "},null," ",{"$f":"IF(B70=\"\",\" \",IF(Apertura!C27>0,IF(Apertura!AD36=\"Dólares\",\"Dólares\",IF(Apertura!AD36=\"Soles\",\"Soles\",0)),\" \"))","v":" "},{"$f":"IF(Apertura!AB36=\"Dependiente\",\"SI\",\"\")","v":""}]
[null,{"$f":"IF(Apertura!AB37=\"Dependiente\",CONCATENATE(Apertura!G37,\" \",Apertura!H37,\" \",Apertura!E37,\" \",Apertura!F37),\"\")","v":""},{"$f":"IF(Apertura!AB37=\"Dependiente\",Apertura!C37,\" \")","v":" "},{"$f":"IF(Apertura!AB37=\"Dependiente\",Apertura!D37,\" \")","v":" "},null," ",{"$f":"IF(B71=\"\",\" \",IF(Apertura!C28>0,IF(Apertura!AD37=\"Dólares\",\"Dólares\",IF(Apertura!AD37=\"Soles\",\"Soles\",0)),\" \"))","v":" "},{"$f":"IF(Apertura!AB37=\"Dependiente\",\"SI\",\"\")","v":""}]
[null,{"$f":"IF(Apertura!AB38=\"Dependiente\",CONCATENATE(Apertura!G38,\" \",Apertura!H38,\" \",Apertura!E38,\" \",Apertura!F38),\"\")","v":""},{"$f":"IF(Apertura!AB38=\"Dependiente\",Apertura!C38,\" \")","v":" "},{"$f":"IF(Apertura!AB38=\"Dependiente\",Apertura!D38,\" \")","v":" "},null," ",{"$f":"IF(B72=\"\",\" \",IF(Apertura!C29>0,IF(Apertura!AD38=\"Dólares\",\"Dólares\",IF(Apertura!AD38=\"Soles\",\"Soles\",0)),\" \"))","v":" "},{"$f":"IF(Apertura!AB38=\"Dependiente\",\"SI\",\"\")","v":""}]
[null,{"$f":"IF(Apertura!AB39=\"Dependiente\",CONCATENATE(Apertura!G39,\" \",Apertura!H39,\" \",Apertura!E39,\" \",Apertura!F39),\"\")","v":""},{"$f":"IF(Apertura!AB39=\"Dependiente\",Apertura!C39,\" \")","v":" "},{"$f":"IF(Apertura!AB39=\"Dependiente\",Apertura!D39,\" \")","v":" "},null," ",{"$f":"IF(B73=\"\",\" \",IF(Apertura!C30>0,IF(Apertura!AD39=\"Dólares\",\"Dólares\",IF(Apertura!AD39=\"Soles\",\"Soles\",0)),\" \"))","v":" "},{"$f":"IF(Apertura!AB39=\"Dependiente\",\"SI\",\"\")","v":""}]
[null,{"$f":"IF(Apertura!AB40=\"Dependiente\",CONCATENATE(Apertura!G40,\" \",Apertura!H40,\" \",Apertura!E40,\" \",Apertura!F40),\"\")","v":""},{"$f":"IF(Apertura!AB40=\"Dependiente\",Apertura!C40,\" \")","v":" "},{"$f":"IF(Apertura!AB40=\"Dependiente\",Apertura!D40,\" \")","v":" "},null," ",{"$f":"IF(B74=\"\",\" \",IF(Apertura!C31>0,IF(Apertura!AD40=\"Dólares\",\"Dólares\",IF(Apertura!AD40=\"Soles\",\"Soles\",0)),\" \"))","v":" "},{"$f":"IF(Apertura!AB40=\"Dependiente\",\"SI\",\"\")","v":""}]
[null,{"$f":"IF(Apertura!AB41=\"Dependiente\",CONCATENATE(Apertura!G41,\" \",Apertura!H41,\" \",Apertura!E41,\" \",Apertura!F41),\"\")","v":""},{"$f":"IF(Apertura!AB41=\"Dependiente\",Apertura!C41,\" \")","v":" "},{"$f":"IF(Apertura!AB41=\"Dependiente\",Apertura!D41,\" \")","v":" "},null," ",{"$f":"IF(B75=\"\",\" \",IF(Apertura!C32>0,IF(Apertura!AD41=\"Dólares\",\"Dólares\",IF(Apertura!AD41=\"Soles\",\"Soles\",0)),\" \"))","v":" "},{"$f":"IF(Apertura!AB41=\"Dependiente\",\"SI\",\"\")","v":""}]
[null,{"$f":"IF(Apertura!AB42=\"Dependiente\",CONCATENATE(Apertura!G42,\" \",Apertura!H42,\" \",Apertura!E42,\" \",Apertura!F42),\"\")","v":""},{"$f":"IF(Apertura!AB42=\"Dependiente\",Apertura!C42,\" \")","v":" "},{"$f":"IF(Apertura!AB42=\"Dependiente\",Apertura!D42,\" \")","v":" "},null," ",{"$f":"IF(B76=\"\",\" \",IF(Apertura!C33>0,IF(Apertura!AD42=\"Dólares\",\"Dólares\",IF(Apertura!AD42=\"Soles\",\"Soles\",0)),\" \"))","v":" "},{"$f":"IF(Apertura!AB42=\"Dependiente\",\"SI\",\"\")","v":""}]
[null,{"$f":"IF(Apertura!AB43=\"Dependiente\",CONCATENATE(Apertura!G43,\" \",Apertura!H43,\" \",Apertura!E43,\" \",Apertura!F43),\"\")","v":""},{"$f":"IF(Apertura!AB43=\"Dependiente\",Apertura!C43,\" \")","v":" "},{"$f":"IF(Apertura!AB43=\"Dependiente\",Apertura!D43,\" \")","v":" "},null," ",{"$f":"IF(B77=\"\",\" \",IF(Apertura!C34>0,IF(Apertura!AD43=\"Dólares\",\"Dólares\",IF(Apertura!AD43=\"Soles\",\"Soles\",0)),\" \"))","v":" "},{"$f":"IF(Apertura!AB43=\"Dependiente\",\"SI\",\"\")","v":""}]
[null,{"$f":"IF(Apertura!AB44=\"Dependiente\",CONCATENATE(Apertura!G44,\" \",Apertura!H44,\" \",Apertura!E44,\" \",Apertura!F44),\"\")","v":""},{"$f":"IF(Apertura!AB44=\"Dependiente\",Apertura!C44,\" \")","v":" "},{"$f":"IF(Apertura!AB44=\"Dependiente\",Apertura!D44,\" \")","v":" "},null," ",{"$f":"IF(B78=\"\",\" \",IF(Apertura!C35>0,IF(Apertura!AD44=\"Dólares\",\"Dólares\",IF(Apertura!AD44=\"Soles\",\"Soles\",0)),\" \"))","v":" "},{"$f":"IF(Apertura!AB44=\"Dependiente\",\"SI\",\"\")","v":""}]
[null,{"$f":"IF(Apertura!AB45=\"Dependiente\",CONCATENATE(Apertura!G45,\" \",Apertura!H45,\" \",Apertura!E45,\" \",Apertura!F45),\"\")","v":""},{"$f":"IF(Apertura!AB45=\"Dependiente\",Apertura!C45,\" \")","v":" "},{"$f":"IF(Apertura!AB45=\"Dependiente\",Apertura!D45,\" \")","v":" "},null," ",{"$f":"IF(B79=\"\",\" \",IF(Apertura!C36>0,IF(Apertura!AD45=\"Dólares\",\"Dólares\",IF(Apertura!AD45=\"Soles\",\"Soles\",0)),\" \"))","v":" "},{"$f":"IF(Apertura!AB45=\"Dependiente\",\"SI\",\"\")","v":""}]
[null,{"$f":"IF(Apertura!AB46=\"Dependiente\",CONCATENATE(Apertura!G46,\" \",Apertura!H46,\" \",Apertura!E46,\" \",Apertura!F46),\"\")","v":""},{"$f":"IF(Apertura!AB46=\"Dependiente\",Apertura!C46,\" \")","v":" "},{"$f":"IF(Apertura!AB46=\"Dependiente\",Apertura!D46,\" \")","v":" "},null," ",{"$f":"IF(B80=\"\",\" \",IF(Apertura!C37>0,IF(Apertura!AD46=\"Dólares\",\"Dólares\",IF(Apertura!AD46=\"Soles\",\"Soles\",0)),\" \"))","v":" "},{"$f":"IF(Apertura!AB46=\"Dependiente\",\"SI\",\"\")","v":""}]
[null,{"$f":"IF(Apertura!AB47=\"Dependiente\",CONCATENATE(Apertura!G47,\" \",Apertura!H47,\" \",Apertura!E47,\" \",Apertura!F47),\"\")","v":""},{"$f":"IF(Apertura!AB47=\"Dependiente\",Apertura!C47,\" \")","v":" "},{"$f":"IF(Apertura!AB47=\"Dependiente\",Apertura!D47,\" \")","v":" "},null," ",{"$f":"IF(B81=\"\",\" \",IF(Apertura!C38>0,IF(Apertura!AD47=\"Dólares\",\"Dólares\",IF(Apertura!AD47=\"Soles\",\"Soles\",0)),\" \"))","v":" "},{"$f":"IF(Apertura!AB47=\"Dependiente\",\"SI\",\"\")","v":""}]
[null,{"$f":"IF(Apertura!AB48=\"Dependiente\",CONCATENATE(Apertura!G48,\" \",Apertura!H48,\" \",Apertura!E48,\" \",Apertura!F48),\"\")","v":""},{"$f":"IF(Apertura!AB48=\"Dependiente\",Apertura!C48,\" \")","v":" "},{"$f":"IF(Apertura!AB48=\"Dependiente\",Apertura!D48,\" \")","v":" "},null," ",{"$f":"IF(B82=\"\",\" \",IF(Apertura!C39>0,IF(Apertura!AD48=\"Dólares\",\"Dólares\",IF(Apertura!AD48=\"Soles\",\"Soles\",0)),\" \"))","v":" "},{"$f":"IF(Apertura!AB48=\"Dependiente\",\"SI\",\"\")","v":""}]
[null,{"$f":"IF(Apertura!AB49=\"Dependiente\",CONCATENATE(Apertura!G49,\" \",Apertura!H49,\" \",Apertura!E49,\" \",Apertura!F49),\"\")","v":""},{"$f":"IF(Apertura!AB49=\"Dependiente\",Apertura!C49,\" \")","v":" "},{"$f":"IF(Apertura!AB49=\"Dependiente\",Apertura!D49,\" \")","v":" "},null," ",{"$f":"IF(B83=\"\",\" \",IF(Apertura!C40>0,IF(Apertura!AD49=\"Dólares\",\"Dólares\",IF(Apertura!AD49=\"Soles\",\"Soles\",0)),\" \"))","v":" "},{"$f":"IF(Apertura!AB49=\"Dependiente\",\"SI\",\"\")","v":""}]
[null,{"$f":"IF(Apertura!AB50=\"Dependiente\",CONCATENATE(Apertura!G50,\" \",Apertura!H50,\" \",Apertura!E50,\" \",Apertura!F50),\"\")","v":""},{"$f":"IF(Apertura!AB50=\"Dependiente\",Apertura!C50,\" \")","v":" "},{"$f":"IF(Apertura!AB50=\"Dependiente\",Apertura!D50,\" \")","v":" "},null," ",{"$f":"IF(B84=\"\",\" \",IF(Apertura!C41>0,IF(Apertura!AD50=\"Dólares\",\"Dólares\",IF(Apertura!AD50=\"Soles\",\"Soles\",0)),\" \"))","v":" "},{"$f":"IF(Apertura!AB50=\"Dependiente\",\"SI\",\"\")","v":""}]
[null,{"$f":"IF(Apertura!AB51=\"Dependiente\",CONCATENATE(Apertura!G51,\" \",Apertura!H51,\" \",Apertura!E51,\" \",Apertura!F51),\"\")","v":""},{"$f":"IF(Apertura!AB51=\"Dependiente\",Apertura!C51,\" \")","v":" "},{"$f":"IF(Apertura!AB51=\"Dependiente\",Apertura!D51,\" \")","v":" "},null," ",{"$f":"IF(B85=\"\",\" \",IF(Apertura!C42>0,IF(Apertura!AD51=\"Dólares\",\"Dólares\",IF(Apertura!AD51=\"Soles\",\"Soles\",0)),\" \"))","v":" "},{"$f":"IF(Apertura!AB51=\"Dependiente\",\"SI\",\"\")","v":""}]
[null,{"$f":"IF(Apertura!AB52=\"Dependiente\",CONCATENATE(Apertura!G52,\" \",Apertura!H52,\" \",Apertura!E52,\" \",Apertura!F52),\"\")","v":""},{"$f":"IF(Apertura!AB52=\"Dependiente\",Apertura!C52,\" \")","v":" "},{"$f":"IF(Apertura!AB52=\"Dependiente\",Apertura!D52,\" \")","v":" "},null," ",{"$f":"IF(B86=\"\",\" \",IF(Apertura!C43>0,IF(Apertura!AD52=\"Dólares\",\"Dólares\",IF(Apertura!AD52=\"Soles\",\"Soles\",0)),\" \"))","v":" "},{"$f":"IF(Apertura!AB52=\"Dependiente\",\"SI\",\"\")","v":""}]
[null,{"$f":"IF(Apertura!AB53=\"Dependiente\",CONCATENATE(Apertura!G53,\" \",Apertura!H53,\" \",Apertura!E53,\" \",Apertura!F53),\"\")","v":""},{"$f":"IF(Apertura!AB53=\"Dependiente\",Apertura!C53,\" \")","v":" "},{"$f":"IF(Apertura!AB53=\"Dependiente\",Apertura!D53,\" \")","v":" "},null," ",{"$f":"IF(B87=\"\",\" \",IF(Apertura!C44>0,IF(Apertura!AD53=\"Dólares\",\"Dólares\",IF(Apertura!AD53=\"Soles\",\"Soles\",0)),\" \"))","v":" "},{"$f":"IF(Apertura!AB53=\"Dependiente\",\"SI\",\"\")","v":""}]
[null,{"$f":"IF(Apertura!AB54=\"Dependiente\",CONCATENATE(Apertura!G54,\" \",Apertura!H54,\" \",Apertura!E54,\" \",Apertura!F54),\"\")","v":""},{"$f":"IF(Apertura!AB54=\"Dependiente\",Apertura!C54,\" \")","v":" "},{"$f":"IF(Apertura!AB54=\"Dependiente\",Apertura!D54,\" \")","v":" "},null," ",{"$f":"IF(B88=\"\",\" \",IF(Apertura!C45>0,IF(Apertura!AD54=\"Dólares\",\"Dólares\",IF(Apertura!AD54=\"Soles\",\"Soles\",0)),\" \"))","v":" "},{"$f":"IF(Apertura!AB54=\"Dependiente\",\"SI\",\"\")","v":""}]
[null,{"$f":"IF(Apertura!AB55=\"Dependiente\",CONCATENATE(Apertura!G55,\" \",Apertura!H55,\" \",Apertura!E55,\" \",Apertura!F55),\"\")","v":""},{"$f":"IF(Apertura!AB55=\"Dependiente\",Apertura!C55,\" \")","v":" "},{"$f":"IF(Apertura!AB55=\"Dependiente\",Apertura!D55,\" \")","v":" "},null," ",{"$f":"IF(B89=\"\",\" \",IF(Apertura!C46>0,IF(Apertura!AD55=\"Dólares\",\"Dólares\",IF(Apertura!AD55=\"Soles\",\"Soles\",0)),\" \"))","v":" "},{"$f":"IF(Apertura!AB55=\"Dependiente\",\"SI\",\"\")","v":""}]
[null,{"$f":"IF(Apertura!AB56=\"Dependiente\",CONCATENATE(Apertura!G56,\" \",Apertura!H56,\" \",Apertura!E56,\" \",Apertura!F56),\"\")","v":""},{"$f":"IF(Apertura!AB56=\"Dependiente\",Apertura!C56,\" \")","v":" "},{"$f":"IF(Apertura!AB56=\"Dependiente\",Apertura!D56,\" \")","v":" "},null," ",{"$f":"IF(B90=\"\",\" \",IF(Apertura!C47>0,IF(Apertura!AD56=\"Dólares\",\"Dólares\",IF(Apertura!AD56=\"Soles\",\"Soles\",0)),\" \"))","v":" "},{"$f":"IF(Apertura!AB56=\"Dependiente\",\"SI\",\"\")","v":""}]
[null,{"$f":"IF(Apertura!AB57=\"Dependiente\",CONCATENATE(Apertura!G57,\" \",Apertura!H57,\" \",Apertura!E57,\" \",Apertura!F57),\"\")","v":""},{"$f":"IF(Apertura!AB57=\"Dependiente\",Apertura!C57,\" \")","v":" "},{"$f":"IF(Apertura!AB57=\"Dependiente\",Apertura!D57,\" \")","v":" "},null," ",{"$f":"IF(B91=\"\",\" \",IF(Apertura!C48>0,IF(Apertura!AD57=\"Dólares\",\"Dólares\",IF(Apertura!AD57=\"Soles\",\"Soles\",0)),\" \"))","v":" "},{"$f":"IF(Apertura!AB57=\"Dependiente\",\"SI\",\"\")","v":""}]
[null,{"$f":"IF(Apertura!AB58=\"Dependiente\",CONCATENATE(Apertura!G58,\" \",Apertura!H58,\" \",Apertura!E58,\" \",Apertura!F58),\"\")","v":""},{"$f":"IF(Apertura!AB58=\"Dependiente\",Apertura!C58,\" \")","v":" "},{"$f":"IF(Apertura!AB58=\"Dependiente\",Apertura!D58,\" \")","v":" "},null," ",{"$f":"IF(B92=\"\",\" \",IF(Apertura!C49>0,IF(Apertura!AD58=\"Dólares\",\"Dólares\",IF(Apertura!AD58=\"Soles\",\"Soles\",0)),\" \"))","v":" "},{"$f":"IF(Apertura!AB58=\"Dependiente\",\"SI\",\"\")","v":""}]
[null,{"$f":"IF(Apertura!AB59=\"Dependiente\",CONCATENATE(Apertura!G59,\" \",Apertura!H59,\" \",Apertura!E59,\" \",Apertura!F59),\"\")","v":""},{"$f":"IF(Apertura!AB59=\"Dependiente\",Apertura!C59,\" \")","v":" "},{"$f":"IF(Apertura!AB59=\"Dependiente\",Apertura!D59,\" \")","v":" "},null," ",{"$f":"IF(B93=\"\",\" \",IF(Apertura!C50>0,IF(Apertura!AD59=\"Dólares\",\"Dólares\",IF(Apertura!AD59=\"Soles\",\"Soles\",0)),\" \"))","v":" "},{"$f":"IF(Apertura!AB59=\"Dependiente\",\"SI\",\"\")","v":""}]
[null,{"$f":"IF(Apertura!AB60=\"Dependiente\",CONCATENATE(Apertura!G60,\" \",Apertura!H60,\" \",Apertura!E60,\" \",Apertura!F60),\"\")","v":""},{"$f":"IF(Apertura!AB60=\"Dependiente\",Apertura!C60,\" \")","v":" "},{"$f":"IF(Apertura!AB60=\"Dependiente\",Apertura!D60,\" \")","v":" "},null," ",{"$f":"IF(B94=\"\",\" \",IF(Apertura!C51>0,IF(Apertura!AD60=\"Dólares\",\"Dólares\",IF(Apertura!AD60=\"Soles\",\"Soles\",0)),\" \"))","v":" "},{"$f":"IF(Apertura!AB60=\"Dependiente\",\"SI\",\"\")","v":""}]
[null,{"$f":"IF(Apertura!AB61=\"Dependiente\",CONCATENATE(Apertura!G61,\" \",Apertura!H61,\" \",Apertura!E61,\" \",Apertura!F61),\"\")","v":""},{"$f":"IF(Apertura!AB61=\"Dependiente\",Apertura!C61,\" \")","v":" "},{"$f":"IF(Apertura!AB61=\"Dependiente\",Apertura!D61,\" \")","v":" "},null," ",{"$f":"IF(B95=\"\",\" \",IF(Apertura!C52>0,IF(Apertura!AD61=\"Dólares\",\"Dólares\",IF(Apertura!AD61=\"Soles\",\"Soles\",0)),\" \"))","v":" "},{"$f":"IF(Apertura!AB61=\"Dependiente\",\"SI\",\"\")","v":""}]
[null,{"$f":"IF(Apertura!AB62=\"Dependiente\",CONCATENATE(Apertura!G62,\" \",Apertura!H62,\" \",Apertura!E62,\" \",Apertura!F62),\"\")","v":""},{"$f":"IF(Apertura!AB62=\"Dependiente\",Apertura!C62,\" \")","v":" "},{"$f":"IF(Apertura!AB62=\"Dependiente\",Apertura!D62,\" \")","v":" "},null," ",{"$f":"IF(B96=\"\",\" \",IF(Apertura!C53>0,IF(Apertura!AD62=\"Dólares\",\"Dólares\",IF(Apertura!AD62=\"Soles\",\"Soles\",0)),\" \"))","v":" "},{"$f":"IF(Apertura!AB62=\"Dependiente\",\"SI\",\"\")","v":""}]
[null,{"$f":"IF(Apertura!AB63=\"Dependiente\",CONCATENATE(Apertura!G63,\" \",Apertura!H63,\" \",Apertura!E63,\" \",Apertura!F63),\"\")","v":""},{"$f":"IF(Apertura!AB63=\"Dependiente\",Apertura!C63,\" \")","v":" "},{"$f":"IF(Apertura!AB63=\"Dependiente\",Apertura!D63,\" \")","v":" "},null," ",{"$f":"IF(B97=\"\",\" \",IF(Apertura!C54>0,IF(Apertura!AD63=\"Dólares\",\"Dólares\",IF(Apertura!AD63=\"Soles\",\"Soles\",0)),\" \"))","v":" "},{"$f":"IF(Apertura!AB63=\"Dependiente\",\"SI\",\"\")","v":""}]
[null,{"$f":"IF(Apertura!AB64=\"Dependiente\",CONCATENATE(Apertura!G64,\" \",Apertura!H64,\" \",Apertura!E64,\" \",Apertura!F64),\"\")","v":""},{"$f":"IF(Apertura!AB64=\"Dependiente\",Apertura!C64,\" \")","v":" "},{"$f":"IF(Apertura!AB64=\"Dependiente\",Apertura!D64,\" \")","v":" "},null," ",{"$f":"IF(B98=\"\",\" \",IF(Apertura!C55>0,IF(Apertura!AD64=\"Dólares\",\"Dólares\",IF(Apertura!AD64=\"Soles\",\"Soles\",0)),\" \"))","v":" "},{"$f":"IF(Apertura!AB64=\"Dependiente\",\"SI\",\"\")","v":""}]
[null,{"$f":"IF(Apertura!AB65=\"Dependiente\",CONCATENATE(Apertura!G65,\" \",Apertura!H65,\" \",Apertura!E65,\" \",Apertura!F65),\"\")","v":""},{"$f":"IF(Apertura!AB65=\"Dependiente\",Apertura!C65,\" \")","v":" "},{"$f":"IF(Apertura!AB65=\"Dependiente\",Apertura!D65,\" \")","v":" "},null," ",{"$f":"IF(B99=\"\",\" \",IF(Apertura!C56>0,IF(Apertura!AD65=\"Dólares\",\"Dólares\",IF(Apertura!AD65=\"Soles\",\"Soles\",0)),\" \"))","v":" "},{"$f":"IF(Apertura!AB65=\"Dependiente\",\"SI\",\"\")","v":""}]
[null,{"$f":"IF(Apertura!AB66=\"Dependiente\",CONCATENATE(Apertura!G66,\" \",Apertura!H66,\" \",Apertura!E66,\" \",Apertura!F66),\"\")","v":""},{"$f":"IF(Apertura!AB66=\"Dependiente\",Apertura!C66,\" \")","v":" "},{"$f":"IF(Apertura!AB66=\"Dependiente\",Apertura!D66,\" \")","v":" "},null," ",{"$f":"IF(B100=\"\",\" \",IF(Apertura!C57>0,IF(Apertura!AD66=\"Dólares\",\"Dólares\",IF(Apertura!AD66=\"Soles\",\"Soles\",0)),\" \"))","v":" "},{"$f":"IF(Apertura!AB66=\"Dependiente\",\"SI\",\"\")","v":""}]
[null,{"$f":"IF(Apertura!AB67=\"Dependiente\",CONCATENATE(Apertura!G67,\" \",Apertura!H67,\" \",Apertura!E67,\" \",Apertura!F67),\"\")","v":""},{"$f":"IF(Apertura!AB67=\"Dependiente\",Apertura!C67,\" \")","v":" "},{"$f":"IF(Apertura!AB67=\"Dependiente\",Apertura!D67,\" \")","v":" "},null," ",{"$f":"IF(B101=\"\",\" \",IF(Apertura!C58>0,IF(Apertura!AD67=\"Dólares\",\"Dólares\",IF(Apertura!AD67=\"Soles\",\"Soles\",0)),\" \"))","v":" "},{"$f":"IF(Apertura!AB67=\"Dependiente\",\"SI\",\"\")","v":""}]
[null,{"$f":"IF(Apertura!AB68=\"Dependiente\",CONCATENATE(Apertura!G68,\" \",Apertura!H68,\" \",Apertura!E68,\" \",Apertura!F68),\"\")","v":""},{"$f":"IF(Apertura!AB68=\"Dependiente\",Apertura!C68,\" \")","v":" "},{"$f":"IF(Apertura!AB68=\"Dependiente\",Apertura!D68,\" \")","v":" "},null," ",{"$f":"IF(B102=\"\",\" \",IF(Apertura!C59>0,IF(Apertura!AD68=\"Dólares\",\"Dólares\",IF(Apertura!AD68=\"Soles\",\"Soles\",0)),\" \"))","v":" "},{"$f":"IF(Apertura!AB68=\"Dependiente\",\"SI\",\"\")","v":""}]
[null,{"$f":"IF(Apertura!AB69=\"Dependiente\",CONCATENATE(Apertura!G69,\" \",Apertura!H69,\" \",Apertura!E69,\" \",Apertura!F69),\"\")","v":""},{"$f":"IF(Apertura!AB69=\"Dependiente\",Apertura!C69,\" \")","v":" "},{"$f":"IF(Apertura!AB69=\"Dependiente\",Apertura!D69,\" \")","v":" "},null," ",{"$f":"IF(B103=\"\",\" \",IF(Apertura!C60>0,IF(Apertura!AD69=\"Dólares\",\"Dólares\",IF(Apertura!AD69=\"Soles\",\"Soles\",0)),\" \"))","v":" "},{"$f":"IF(Apertura!AB69=\"Dependiente\",\"SI\",\"\")","v":""}]
[null,{"$f":"IF(Apertura!AB70=\"Dependiente\",CONCATENATE(Apertura!G70,\" \",Apertura!H70,\" \",Apertura!E70,\" \",Apertura!F70),\"\")","v":""},{"$f":"IF(Apertura!AB70=\"Dependiente\",Apertura!C70,\" \")","v":" "},{"$f":"IF(Apertura!AB70=\"Dependiente\",Apertura!D70,\" \")","v":" "},null," ",{"$f":"IF(B104=\"\",\" \",IF(Apertura!C61>0,IF(Apertura!AD70=\"Dólares\",\"Dólares\",IF(Apertura!AD70=\"Soles\",\"Soles\",0)),\" \"))","v":" "},{"$f":"IF(Apertura!AB70=\"Dependiente\",\"SI\",\"\")","v":""}]
[null,{"$f":"IF(Apertura!AB71=\"Dependiente\",CONCATENATE(Apertura!G71,\" \",Apertura!H71,\" \",Apertura!E71,\" \",Apertura!F71),\"\")","v":""},{"$f":"IF(Apertura!AB71=\"Dependiente\",Apertura!C71,\" \")","v":" "},{"$f":"IF(Apertura!AB71=\"Dependiente\",Apertura!D71,\" \")","v":" "},null," ",{"$f":"IF(B105=\"\",\" \",IF(Apertura!C62>0,IF(Apertura!AD71=\"Dólares\",\"Dólares\",IF(Apertura!AD71=\"Soles\",\"Soles\",0)),\" \"))","v":" "},{"$f":"IF(Apertura!AB71=\"Dependiente\",\"SI\",\"\")","v":""}]
[null,{"$f":"IF(Apertura!AB72=\"Dependiente\",CONCATENATE(Apertura!G72,\" \",Apertura!H72,\" \",Apertura!E72,\" \",Apertura!F72),\"\")","v":""},{"$f":"IF(Apertura!AB72=\"Dependiente\",Apertura!C72,\" \")","v":" "},{"$f":"IF(Apertura!AB72=\"Dependiente\",Apertura!D72,\" \")","v":" "},null," ",{"$f":"IF(B106=\"\",\" \",IF(Apertura!C63>0,IF(Apertura!AD72=\"Dólares\",\"Dólares\",IF(Apertura!AD72=\"Soles\",\"Soles\",0)),\" \"))","v":" "},{"$f":"IF(Apertura!AB72=\"Dependiente\",\"SI\",\"\")","v":""}]
[null,{"$f":"IF(Apertura!AB73=\"Dependiente\",CONCATENATE(Apertura!G73,\" \",Apertura!H73,\" \",Apertura!E73,\" \",Apertura!F73),\"\")","v":""},{"$f":"IF(Apertura!AB73=\"Dependiente\",Apertura!C73,\" \")","v":" "},{"$f":"IF(Apertura!AB73=\"Dependiente\",Apertura!D73,\" \")","v":" "},null," ",{"$f":"IF(B107=\"\",\" \",IF(Apertura!C64>0,IF(Apertura!AD73=\"Dólares\",\"Dólares\",IF(Apertura!AD73=\"Soles\",\"Soles\",0)),\" \"))","v":" "},{"$f":"IF(Apertura!AB73=\"Dependiente\",\"SI\",\"\")","v":""}]
[null,{"$f":"IF(Apertura!AB74=\"Dependiente\",CONCATENATE(Apertura!G74,\" \",Apertura!H74,\" \",Apertura!E74,\" \",Apertura!F74),\"\")","v":""},{"$f":"IF(Apertura!AB74=\"Dependiente\",Apertura!C74,\" \")","v":" "},{"$f":"IF(Apertura!AB74=\"Dependiente\",Apertura!D74,\" \")","v":" "},null," ",{"$f":"IF(B108=\"\",\" \",IF(Apertura!C65>0,IF(Apertura!AD74=\"Dólares\",\"Dólares\",IF(Apertura!AD74=\"Soles\",\"Soles\",0)),\" \"))","v":" "},{"$f":"IF(Apertura!AB74=\"Dependiente\",\"SI\",\"\")","v":""}]
[null,{"$f":"IF(Apertura!AB75=\"Dependiente\",CONCATENATE(Apertura!G75,\" \",Apertura!H75,\" \",Apertura!E75,\" \",Apertura!F75),\"\")","v":""},{"$f":"IF(Apertura!AB75=\"Dependiente\",Apertura!C75,\" \")","v":" "},{"$f":"IF(Apertura!AB75=\"Dependiente\",Apertura!D75,\" \")","v":" "},null," ",{"$f":"IF(B109=\"\",\" \",IF(Apertura!C66>0,IF(Apertura!AD75=\"Dólares\",\"Dólares\",IF(Apertura!AD75=\"Soles\",\"Soles\",0)),\" \"))","v":" "},{"$f":"IF(Apertura!AB75=\"Dependiente\",\"SI\",\"\")","v":""}]
[null,{"$f":"IF(Apertura!AB76=\"Dependiente\",CONCATENATE(Apertura!G76,\" \",Apertura!H76,\" \",Apertura!E76,\" \",Apertura!F76),\"\")","v":""},{"$f":"IF(Apertura!AB76=\"Dependiente\",Apertura!C76,\" \")","v":" "},{"$f":"IF(Apertura!AB76=\"Dependiente\",Apertura!D76,\" \")","v":" "},null," ",{"$f":"IF(B110=\"\",\" \",IF(Apertura!C67>0,IF(Apertura!AD76=\"Dólares\",\"Dólares\",IF(Apertura!AD76=\"Soles\",\"Soles\",0)),\" \"))","v":" "},{"$f":"IF(Apertura!AB76=\"Dependiente\",\"SI\",\"\")","v":""}]
[null,{"$f":"IF(Apertura!AB77=\"Dependiente\",CONCATENATE(Apertura!G77,\" \",Apertura!H77,\" \",Apertura!E77,\" \",Apertura!F77),\"\")","v":""},{"$f":"IF(Apertura!AB77=\"Dependiente\",Apertura!C77,\" \")","v":" "},{"$f":"IF(Apertura!AB77=\"Dependiente\",Apertura!D77,\" \")","v":" "},null," ",{"$f":"IF(B111=\"\",\" \",IF(Apertura!C68>0,IF(Apertura!AD77=\"Dólares\",\"Dólares\",IF(Apertura!AD77=\"Soles\",\"Soles\",0)),\" \"))","v":" "},{"$f":"IF(Apertura!AB77=\"Dependiente\",\"SI\",\"\")","v":""}]
[null,{"$f":"IF(Apertura!AB78=\"Dependiente\",CONCATENATE(Apertura!G78,\" \",Apertura!H78,\" \",Apertura!E78,\" \",Apertura!F78),\"\")","v":""},{"$f":"IF(Apertura!AB78=\"Dependiente\",Apertura!C78,\" \")","v":" "},{"$f":"IF(Apertura!AB78=\"Dependiente\",Apertura!D78,\" \")","v":" "},null," ",{"$f":"IF(B112=\"\",\" \",IF(Apertura!C69>0,IF(Apertura!AD78=\"Dólares\",\"Dólares\",IF(Apertura!AD78=\"Soles\",\"Soles\",0)),\" \"))","v":" "},{"$f":"IF(Apertura!AB78=\"Dependiente\",\"SI\",\"\")","v":""}]
[null,{"$f":"IF(Apertura!AB79=\"Dependiente\",CONCATENATE(Apertura!G79,\" \",Apertura!H79,\" \",Apertura!E79,\" \",Apertura!F79),\"\")","v":""},{"$f":"IF(Apertura!AB79=\"Dependiente\",Apertura!C79,\" \")","v":" "},{"$f":"IF(Apertura!AB79=\"Dependiente\",Apertura!D79,\" \")","v":" "},null," ",{"$f":"IF(B113=\"\",\" \",IF(Apertura!C70>0,IF(Apertura!AD79=\"Dólares\",\"Dólares\",IF(Apertura!AD79=\"Soles\",\"Soles\",0)),\" \"))","v":" "},{"$f":"IF(Apertura!AB79=\"Dependiente\",\"SI\",\"\")","v":""}]
[null,{"$f":"IF(Apertura!AB80=\"Dependiente\",CONCATENATE(Apertura!G80,\" \",Apertura!H80,\" \",Apertura!E80,\" \",Apertura!F80),\"\")","v":""},{"$f":"IF(Apertura!AB80=\"Dependiente\",Apertura!C80,\" \")","v":" "},{"$f":"IF(Apertura!AB80=\"Dependiente\",Apertura!D80,\" \")","v":" "},null," ",{"$f":"IF(B114=\"\",\" \",IF(Apertura!C71>0,IF(Apertura!AD80=\"Dólares\",\"Dólares\",IF(Apertura!AD80=\"Soles\",\"Soles\",0)),\" \"))","v":" "},{"$f":"IF(Apertura!AB80=\"Dependiente\",\"SI\",\"\")","v":""}]
[null,{"$f":"IF(Apertura!AB81=\"Dependiente\",CONCATENATE(Apertura!G81,\" \",Apertura!H81,\" \",Apertura!E81,\" \",Apertura!F81),\"\")","v":""},{"$f":"IF(Apertura!AB81=\"Dependiente\",Apertura!C81,\" \")","v":" "},{"$f":"IF(Apertura!AB81=\"Dependiente\",Apertura!D81,\" \")","v":" "},null," ",{"$f":"IF(B115=\"\",\" \",IF(Apertura!C72>0,IF(Apertura!AD81=\"Dólares\",\"Dólares\",IF(Apertura!AD81=\"Soles\",\"Soles\",0)),\" \"))","v":" "},{"$f":"IF(Apertura!AB81=\"Dependiente\",\"SI\",\"\")","v":""}]
[null,{"$f":"IF(Apertura!AB82=\"Dependiente\",CONCATENATE(Apertura!G82,\" \",Apertura!H82,\" \",Apertura!E82,\" \",Apertura!F82),\"\")","v":""},{"$f":"IF(Apertura!AB82=\"Dependiente\",Apertura!C82,\" \")","v":" "},{"$f":"IF(Apertura!AB82=\"Dependiente\",Apertura!D82,\" \")","v":" "},null,{"$f":"IF(D116=\" \",\" \",\"Ahorros\")","v":" "},{"$f":"IF(B116=\"\",\" \",IF(Apertura!C73>0,IF(Apertura!AD82=\"Dólares\",\"Dólares\",IF(Apertura!AD82=\"Soles\",\"Soles\",0)),\" \"))","v":" "},{"$f":"IF(Apertura!AB82=\"Dependiente\",\"SI\",\"\")","v":""}]
[null,{"$f":"IF(Apertura!AB83=\"Dependiente\",CONCATENATE(Apertura!G83,\" \",Apertura!H83,\" \",Apertura!E83,\" \",Apertura!F83),\"\")","v":""},{"$f":"IF(Apertura!AB83=\"Dependiente\",Apertura!C83,\" \")","v":" "},{"$f":"IF(Apertura!AB83=\"Dependiente\",Apertura!D83,\" \")","v":" "},null," ",{"$f":"IF(B117=\"\",\" \",IF(Apertura!C74>0,IF(Apertura!AD83=\"Dólares\",\"Dólares\",IF(Apertura!AD83=\"Soles\",\"Soles\",0)),\" \"))","v":" "},{"$f":"IF(Apertura!AB83=\"Dependiente\",\"SI\",\"\")","v":""}]
[null,{"$f":"IF(Apertura!AB84=\"Dependiente\",CONCATENATE(Apertura!G84,\" \",Apertura!H84,\" \",Apertura!E84,\" \",Apertura!F84),\"\")","v":""},{"$f":"IF(Apertura!AB84=\"Dependiente\",Apertura!C84,\" \")","v":" "},{"$f":"IF(Apertura!AB84=\"Dependiente\",Apertura!D84,\" \")","v":" "},null," ",{"$f":"IF(B118=\"\",\" \",IF(Apertura!C75>0,IF(Apertura!AD84=\"Dólares\",\"Dólares\",IF(Apertura!AD84=\"Soles\",\"Soles\",0)),\" \"))","v":" "},{"$f":"IF(Apertura!AB84=\"Dependiente\",\"SI\",\"\")","v":""}]
[null,{"$f":"IF(Apertura!AB85=\"Dependiente\",CONCATENATE(Apertura!G85,\" \",Apertura!H85,\" \",Apertura!E85,\" \",Apertura!F85),\"\")","v":""},{"$f":"IF(Apertura!AB85=\"Dependiente\",Apertura!C85,\" \")","v":" "},{"$f":"IF(Apertura!AB85=\"Dependiente\",Apertura!D85,\" \")","v":" "},null," ",{"$f":"IF(B119=\"\",\" \",IF(Apertura!C76>0,IF(Apertura!AD85=\"Dólares\",\"Dólares\",IF(Apertura!AD85=\"Soles\",\"Soles\",0)),\" \"))","v":" "},{"$f":"IF(Apertura!AB85=\"Dependiente\",\"SI\",\"\")","v":""}]
[null,{"$f":"IF(Apertura!AB86=\"Dependiente\",CONCATENATE(Apertura!G86,\" \",Apertura!H86,\" \",Apertura!E86,\" \",Apertura!F86),\"\")","v":""},{"$f":"IF(Apertura!AB86=\"Dependiente\",Apertura!C86,\" \")","v":" "},{"$f":"IF(Apertura!AB86=\"Dependiente\",Apertura!D86,\" \")","v":" "},null," ",{"$f":"IF(B120=\"\",\" \",IF(Apertura!C77>0,IF(Apertura!AD86=\"Dólares\",\"Dólares\",IF(Apertura!AD86=\"Soles\",\"Soles\",0)),\" \"))","v":" "},{"$f":"IF(Apertura!AB86=\"Dependiente\",\"SI\",\"\")","v":""}]
[null,{"$f":"IF(Apertura!AB87=\"Dependiente\",CONCATENATE(Apertura!G87,\" \",Apertura!H87,\" \",Apertura!E87,\" \",Apertura!F87),\"\")","v":""},{"$f":"IF(Apertura!AB87=\"Dependiente\",Apertura!C87,\" \")","v":" "},{"$f":"IF(Apertura!AB87=\"Dependiente\",Apertura!D87,\" \")","v":" "},null," ",{"$f":"IF(B121=\"\",\" \",IF(Apertura!C78>0,IF(Apertura!AD87=\"Dólares\",\"Dólares\",IF(Apertura!AD87=\"Soles\",\"Soles\",0)),\" \"))","v":" "},{"$f":"IF(Apertura!AB87=\"Dependiente\",\"SI\",\"\")","v":""}]
[null,{"$f":"IF(Apertura!AB88=\"Dependiente\",CONCATENATE(Apertura!G88,\" \",Apertura!H88,\" \",Apertura!E88,\" \",Apertura!F88),\"\")","v":""},{"$f":"IF(Apertura!AB88=\"Dependiente\",Apertura!C88,\" \")","v":" "},{"$f":"IF(Apertura!AB88=\"Dependiente\",Apertura!D88,\" \")","v":" "},null," ",{"$f":"IF(B122=\"\",\" \",IF(Apertura!C79>0,IF(Apertura!AD88=\"Dólares\",\"Dólares\",IF(Apertura!AD88=\"Soles\",\"Soles\",0)),\" \"))","v":" "},{"$f":"IF(Apertura!AB88=\"Dependiente\",\"SI\",\"\")","v":""}]
[null,{"$f":"IF(Apertura!AB89=\"Dependiente\",CONCATENATE(Apertura!G89,\" \",Apertura!H89,\" \",Apertura!E89,\" \",Apertura!F89),\"\")","v":""},{"$f":"IF(Apertura!AB89=\"Dependiente\",Apertura!C89,\" \")","v":" "},{"$f":"IF(Apertura!AB89=\"Dependiente\",Apertura!D89,\" \")","v":" "},null," ",{"$f":"IF(B123=\"\",\" \",IF(Apertura!C80>0,IF(Apertura!AD89=\"Dólares\",\"Dólares\",IF(Apertura!AD89=\"Soles\",\"Soles\",0)),\" \"))","v":" "},{"$f":"IF(Apertura!AB89=\"Dependiente\",\"SI\",\"\")","v":""}]
[null,{"$f":"IF(Apertura!AB90=\"Dependiente\",CONCATENATE(Apertura!G90,\" \",Apertura!H90,\" \",Apertura!E90,\" \",Apertura!F90),\"\")","v":""},{"$f":"IF(Apertura!AB90=\"Dependiente\",Apertura!C90,\" \")","v":" "},{"$f":"IF(Apertura!AB90=\"Dependiente\",Apertura!D90,\" \")","v":" "},null," ",{"$f":"IF(B124=\"\",\" \",IF(Apertura!C81>0,IF(Apertura!AD90=\"Dólares\",\"Dólares\",IF(Apertura!AD90=\"Soles\",\"Soles\",0)),\" \"))","v":" "},{"$f":"IF(Apertura!AB90=\"Dependiente\",\"SI\",\"\")","v":""}]
[null,{"$f":"IF(Apertura!AB91=\"Dependiente\",CONCATENATE(Apertura!G91,\" \",Apertura!H91,\" \",Apertura!E91,\" \",Apertura!F91),\"\")","v":""},{"$f":"IF(Apertura!AB91=\"Dependiente\",Apertura!C91,\" \")","v":" "},{"$f":"IF(Apertura!AB91=\"Dependiente\",Apertura!D91,\" \")","v":" "},null," ",{"$f":"IF(B125=\"\",\" \",IF(Apertura!C82>0,IF(Apertura!AD91=\"Dólares\",\"Dólares\",IF(Apertura!AD91=\"Soles\",\"Soles\",0)),\" \"))","v":" "},{"$f":"IF(Apertura!AB91=\"Dependiente\",\"SI\",\"\")","v":""}]
[null,{"$f":"IF(Apertura!AB92=\"Dependiente\",CONCATENATE(Apertura!G92,\" \",Apertura!H92,\" \",Apertura!E92,\" \",Apertura!F92),\"\")","v":""},{"$f":"IF(Apertura!AB92=\"Dependiente\",Apertura!C92,\" \")","v":" "},{"$f":"IF(Apertura!AB92=\"Dependiente\",Apertura!D92,\" \")","v":" "},null," ",{"$f":"IF(B126=\"\",\" \",IF(Apertura!C83>0,IF(Apertura!AD92=\"Dólares\",\"Dólares\",IF(Apertura!AD92=\"Soles\",\"Soles\",0)),\" \"))","v":" "},{"$f":"IF(Apertura!AB92=\"Dependiente\",\"SI\",\"\")","v":""}]
[null,{"$f":"IF(Apertura!AB93=\"Dependiente\",CONCATENATE(Apertura!G93,\" \",Apertura!H93,\" \",Apertura!E93,\" \",Apertura!F93),\"\")","v":""},{"$f":"IF(Apertura!AB93=\"Dependiente\",Apertura!C93,\" \")","v":" "},{"$f":"IF(Apertura!AB93=\"Dependiente\",Apertura!D93,\" \")","v":" "},null," ",{"$f":"IF(B127=\"\",\" \",IF(Apertura!C84>0,IF(Apertura!AD93=\"Dólares\",\"Dólares\",IF(Apertura!AD93=\"Soles\",\"Soles\",0)),\" \"))","v":" "},{"$f":"IF(Apertura!AB93=\"Dependiente\",\"SI\",\"\")","v":""}]
[null,{"$f":"IF(Apertura!AB94=\"Dependiente\",CONCATENATE(Apertura!G94,\" \",Apertura!H94,\" \",Apertura!E94,\" \",Apertura!F94),\"\")","v":""},{"$f":"IF(Apertura!AB94=\"Dependiente\",Apertura!C94,\" \")","v":" "},{"$f":"IF(Apertura!AB94=\"Dependiente\",Apertura!D94,\" \")","v":" "},null," ",{"$f":"IF(B128=\"\",\" \",IF(Apertura!C85>0,IF(Apertura!AD94=\"Dólares\",\"Dólares\",IF(Apertura!AD94=\"Soles\",\"Soles\",0)),\" \"))","v":" "},{"$f":"IF(Apertura!AB94=\"Dependiente\",\"SI\",\"\")","v":""}]
[null,{"$f":"IF(Apertura!AB95=\"Dependiente\",CONCATENATE(Apertura!G95,\" \",Apertura!H95,\" \",Apertura!E95,\" \",Apertura!F95),\"\")","v":""},{"$f":"IF(Apertura!AB95=\"Dependiente\",Apertura!C95,\" \")","v":" "},{"$f":"IF(Apertura!AB95=\"Dependiente\",Apertura!D95,\" \")","v":" "},null," ",{"$f":"IF(B129=\"\",\" \",IF(Apertura!C86>0,IF(Apertura!AD95=\"Dólares\",\"Dólares\",IF(Apertura!AD95=\"Soles\",\"Soles\",0)),\" \"))","v":" "},{"$f":"IF(Apertura!AB95=\"Dependiente\",\"SI\",\"\")","v":""}]
[null,{"$f":"IF(Apertura!AB96=\"Dependiente\",CONCATENATE(Apertura!G96,\" \",Apertura!H96,\" \",Apertura!E96,\" \",Apertura!F96),\"\")","v":""},{"$f":"IF(Apertura!AB96=\"Dependiente\",Apertura!C96,\" \")","v":" "},{"$f":"IF(Apertura!AB96=\"Dependiente\",Apertura!D96,\" \")","v":" "},null," ",{"$f":"IF(B130=\"\",\" \",IF(Apertura!C87>0,IF(Apertura!AD96=\"Dólares\",\"Dólares\",IF(Apertura!AD96=\"Soles\",\"Soles\",0)),\" \"))","v":" "},{"$f":"IF(Apertura!AB96=\"Dependiente\",\"SI\",\"\")","v":""}]
[null,{"$f":"IF(Apertura!AB97=\"Dependiente\",CONCATENATE(Apertura!G97,\" \",Apertura!H97,\" \",Apertura!E97,\" \",Apertura!F97),\"\")","v":""},{"$f":"IF(Apertura!AB97=\"Dependiente\",Apertura!C97,\" \")","v":" "},{"$f":"IF(Apertura!AB97=\"Dependiente\",Apertura!D97,\" \")","v":" "},null," ",{"$f":"IF(B131=\"\",\" \",IF(Apertura!C88>0,IF(Apertura!AD97=\"Dólares\",\"Dólares\",IF(Apertura!AD97=\"Soles\",\"Soles\",0)),\" \"))","v":" "},{"$f":"IF(Apertura!AB97=\"Dependiente\",\"SI\",\"\")","v":""}]
[null,{"$f":"IF(Apertura!AB98=\"Dependiente\",CONCATENATE(Apertura!G98,\" \",Apertura!H98,\" \",Apertura!E98,\" \",Apertura!F98),\"\")","v":""},{"$f":"IF(Apertura!AB98=\"Dependiente\",Apertura!C98,\" \")","v":" "},{"$f":"IF(Apertura!AB98=\"Dependiente\",Apertura!D98,\" \")","v":" "},null," ",{"$f":"IF(B132=\"\",\" \",IF(Apertura!C89>0,IF(Apertura!AD98=\"Dólares\",\"Dólares\",IF(Apertura!AD98=\"Soles\",\"Soles\",0)),\" \"))","v":" "},{"$f":"IF(Apertura!AB98=\"Dependiente\",\"SI\",\"\")","v":""}]
[null,{"$f":"IF(Apertura!AB99=\"Dependiente\",CONCATENATE(Apertura!G99,\" \",Apertura!H99,\" \",Apertura!E99,\" \",Apertura!F99),\"\")","v":""},{"$f":"IF(Apertura!AB99=\"Dependiente\",Apertura!C99,\" \")","v":" "},{"$f":"IF(Apertura!AB99=\"Dependiente\",Apertura!D99,\" \")","v":" "},null," ",{"$f":"IF(B133=\"\",\" \",IF(Apertura!C90>0,IF(Apertura!AD99=\"Dólares\",\"Dólares\",IF(Apertura!AD99=\"Soles\",\"Soles\",0)),\" \"))","v":" "},{"$f":"IF(Apertura!AB99=\"Dependiente\",\"SI\",\"\")","v":""}]
[null,{"$f":"IF(Apertura!AB100=\"Dependiente\",CONCATENATE(Apertura!G100,\" \",Apertura!H100,\" \",Apertura!E100,\" \",Apertura!F100),\"\")","v":""},{"$f":"IF(Apertura!AB100=\"Dependiente\",Apertura!C100,\" \")","v":" "},{"$f":"IF(Apertura!AB100=\"Dependiente\",Apertura!D100,\" \")","v":" "},null," ",{"$f":"IF(B134=\"\",\" \",IF(Apertura!C91>0,IF(Apertura!AD100=\"Dólares\",\"Dólares\",IF(Apertura!AD100=\"Soles\",\"Soles\",0)),\" \"))","v":" "},{"$f":"IF(Apertura!AB100=\"Dependiente\",\"SI\",\"\")","v":""}]
[null,{"$f":"IF(Apertura!AB101=\"Dependiente\",CONCATENATE(Apertura!G101,\" \",Apertura!H101,\" \",Apertura!E101,\" \",Apertura!F101),\"\")","v":""},{"$f":"IF(Apertura!AB101=\"Dependiente\",Apertura!C101,\" \")","v":" "},{"$f":"IF(Apertura!AB101=\"Dependiente\",Apertura!D101,\" \")","v":" "},null," ",{"$f":"IF(B135=\"\",\" \",IF(Apertura!C92>0,IF(Apertura!AD101=\"Dólares\",\"Dólares\",IF(Apertura!AD101=\"Soles\",\"Soles\",0)),\" \"))","v":" "},{"$f":"IF(Apertura!AB101=\"Dependiente\",\"SI\",\"\")","v":""}]
[null,{"$f":"IF(Apertura!AB102=\"Dependiente\",CONCATENATE(Apertura!G102,\" \",Apertura!H102,\" \",Apertura!E102,\" \",Apertura!F102),\"\")","v":""},{"$f":"IF(Apertura!AB102=\"Dependiente\",Apertura!C102,\" \")","v":" "},{"$f":"IF(Apertura!AB102=\"Dependiente\",Apertura!D102,\" \")","v":" "},null," ",{"$f":"IF(B136=\"\",\" \",IF(Apertura!C93>0,IF(Apertura!AD102=\"Dólares\",\"Dólares\",IF(Apertura!AD102=\"Soles\",\"Soles\",0)),\" \"))","v":" "},{"$f":"IF(Apertura!AB102=\"Dependiente\",\"SI\",\"\")","v":""}]
[null,{"$f":"IF(Apertura!AB103=\"Dependiente\",CONCATENATE(Apertura!G103,\" \",Apertura!H103,\" \",Apertura!E103,\" \",Apertura!F103),\"\")","v":""},{"$f":"IF(Apertura!AB103=\"Dependiente\",Apertura!C103,\" \")","v":" "},{"$f":"IF(Apertura!AB103=\"Dependiente\",Apertura!D103,\" \")","v":" "},null," ",{"$f":"IF(B137=\"\",\" \",IF(Apertura!C94>0,IF(Apertura!AD103=\"Dólares\",\"Dólares\",IF(Apertura!AD103=\"Soles\",\"Soles\",0)),\" \"))","v":" "},{"$f":"IF(Apertura!AB103=\"Dependiente\",\"SI\",\"\")","v":""}]
[null,{"$f":"IF(Apertura!AB104=\"Dependiente\",CONCATENATE(Apertura!G104,\" \",Apertura!H104,\" \",Apertura!E104,\" \",Apertura!F104),\"\")","v":""},{"$f":"IF(Apertura!AB104=\"Dependiente\",Apertura!C104,\" \")","v":" "},{"$f":"IF(Apertura!AB104=\"Dependiente\",Apertura!D104,\" \")","v":" "},null," ",{"$f":"IF(B138=\"\",\" \",IF(Apertura!C95>0,IF(Apertura!AD104=\"Dólares\",\"Dólares\",IF(Apertura!AD104=\"Soles\",\"Soles\",0)),\" \"))","v":" "},{"$f":"IF(Apertura!AB104=\"Dependiente\",\"SI\",\"\")","v":""}]
[null,{"$f":"IF(Apertura!AB105=\"Dependiente\",CONCATENATE(Apertura!G105,\" \",Apertura!H105,\" \",Apertura!E105,\" \",Apertura!F105),\"\")","v":""},{"$f":"IF(Apertura!AB105=\"Dependiente\",Apertura!C105,\" \")","v":" "},{"$f":"IF(Apertura!AB105=\"Dependiente\",Apertura!D105,\" \")","v":" "},null," ",{"$f":"IF(B139=\"\",\" \",IF(Apertura!C96>0,IF(Apertura!AD105=\"Dólares\",\"Dólares\",IF(Apertura!AD105=\"Soles\",\"Soles\",0)),\" \"))","v":" "},{"$f":"IF(Apertura!AB105=\"Dependiente\",\"SI\",\"\")","v":""}]
[null,{"$f":"IF(Apertura!AB106=\"Dependiente\",CONCATENATE(Apertura!G106,\" \",Apertura!H106,\" \",Apertura!E106,\" \",Apertura!F106),\"\")","v":""},{"$f":"IF(Apertura!AB106=\"Dependiente\",Apertura!C106,\" \")","v":" "},{"$f":"IF(Apertura!AB106=\"Dependiente\",Apertura!D106,\" \")","v":" "},null," ",{"$f":"IF(B140=\"\",\" \",IF(Apertura!C97>0,IF(Apertura!AD106=\"Dólares\",\"Dólares\",IF(Apertura!AD106=\"Soles\",\"Soles\",0)),\" \"))","v":" "},{"$f":"IF(Apertura!AB106=\"Dependiente\",\"SI\",\"\")","v":""}]
[null,{"$f":"IF(Apertura!AB107=\"Dependiente\",CONCATENATE(Apertura!G107,\" \",Apertura!H107,\" \",Apertura!E107,\" \",Apertura!F107),\"\")","v":""},{"$f":"IF(Apertura!AB107=\"Dependiente\",Apertura!C107,\" \")","v":" "},{"$f":"IF(Apertura!AB107=\"Dependiente\",Apertura!D107,\" \")","v":" "},null," ",{"$f":"IF(B141=\"\",\" \",IF(Apertura!C98>0,IF(Apertura!AD107=\"Dólares\",\"Dólares\",IF(Apertura!AD107=\"Soles\",\"Soles\",0)),\" \"))","v":" "},{"$f":"IF(Apertura!AB107=\"Dependiente\",\"SI\",\"\")","v":""}]
[null,{"$f":"IF(Apertura!AB108=\"Dependiente\",CONCATENATE(Apertura!G108,\" \",Apertura!H108,\" \",Apertura!E108,\" \",Apertura!F108),\"\")","v":""},{"$f":"IF(Apertura!AB108=\"Dependiente\",Apertura!C108,\" \")","v":" "},{"$f":"IF(Apertura!AB108=\"Dependiente\",Apertura!D108,\" \")","v":" "},null," ",{"$f":"IF(B142=\"\",\" \",IF(Apertura!C99>0,IF(Apertura!AD108=\"Dólares\",\"Dólares\",IF(Apertura!AD108=\"Soles\",\"Soles\",0)),\" \"))","v":" "},{"$f":"IF(Apertura!AB108=\"Dependiente\",\"SI\",\"\")","v":""}]
[null,{"$f":"IF(Apertura!AB109=\"Dependiente\",CONCATENATE(Apertura!G109,\" \",Apertura!H109,\" \",Apertura!E109,\" \",Apertura!F109),\"\")","v":""},{"$f":"IF(Apertura!AB109=\"Dependiente\",Apertura!C109,\" \")","v":" "},{"$f":"IF(Apertura!AB109=\"Dependiente\",Apertura!D109,\" \")","v":" "},null," ",{"$f":"IF(B143=\"\",\" \",IF(Apertura!C100>0,IF(Apertura!AD109=\"Dólares\",\"Dólares\",IF(Apertura!AD109=\"Soles\",\"Soles\",0)),\" \"))","v":" "},{"$f":"IF(Apertura!AB109=\"Dependiente\",\"SI\",\"\")","v":""}]
[null,{"$f":"IF(Apertura!AB110=\"Dependiente\",CONCATENATE(Apertura!G110,\" \",Apertura!H110,\" \",Apertura!E110,\" \",Apertura!F110),\"\")","v":""},{"$f":"IF(Apertura!AB110=\"Dependiente\",Apertura!C110,\" \")","v":" "},{"$f":"IF(Apertura!AB110=\"Dependiente\",Apertura!D110,\" \")","v":" "},null," ",{"$f":"IF(B144=\"\",\" \",IF(Apertura!C101>0,IF(Apertura!AD110=\"Dólares\",\"Dólares\",IF(Apertura!AD110=\"Soles\",\"Soles\",0)),\" \"))","v":" "},{"$f":"IF(Apertura!AB110=\"Dependiente\",\"SI\",\"\")","v":""}]
[null,{"$f":"IF(Apertura!AB111=\"Dependiente\",CONCATENATE(Apertura!G111,\" \",Apertura!H111,\" \",Apertura!E111,\" \",Apertura!F111),\"\")","v":""},{"$f":"IF(Apertura!AB111=\"Dependiente\",Apertura!C111,\" \")","v":" "},{"$f":"IF(Apertura!AB111=\"Dependiente\",Apertura!D111,\" \")","v":" "},null," ",{"$f":"IF(B145=\"\",\" \",IF(Apertura!C102>0,IF(Apertura!AD111=\"Dólares\",\"Dólares\",IF(Apertura!AD111=\"Soles\",\"Soles\",0)),\" \"))","v":" "},{"$f":"IF(Apertura!AB111=\"Dependiente\",\"SI\",\"\")","v":""}]
[null,{"$f":"IF(Apertura!AB112=\"Dependiente\",CONCATENATE(Apertura!G112,\" \",Apertura!H112,\" \",Apertura!E112,\" \",Apertura!F112),\"\")","v":""},{"$f":"IF(Apertura!AB112=\"Dependiente\",Apertura!C112,\" \")","v":" "},{"$f":"IF(Apertura!AB112=\"Dependiente\",Apertura!D112,\" \")","v":" "},null," ",{"$f":"IF(B146=\"\",\" \",IF(Apertura!C103>0,IF(Apertura!AD112=\"Dólares\",\"Dólares\",IF(Apertura!AD112=\"Soles\",\"Soles\",0)),\" \"))","v":" "},{"$f":"IF(Apertura!AB112=\"Dependiente\",\"SI\",\"\")","v":""}]
[null,{"$f":"IF(Apertura!AB113=\"Dependiente\",CONCATENATE(Apertura!G113,\" \",Apertura!H113,\" \",Apertura!E113,\" \",Apertura!F113),\"\")","v":""},{"$f":"IF(Apertura!AB113=\"Dependiente\",Apertura!C113,\" \")","v":" "},{"$f":"IF(Apertura!AB113=\"Dependiente\",Apertura!D113,\" \")","v":" "},null," ",{"$f":"IF(B147=\"\",\" \",IF(Apertura!C104>0,IF(Apertura!AD113=\"Dólares\",\"Dólares\",IF(Apertura!AD113=\"Soles\",\"Soles\",0)),\" \"))","v":" "},{"$f":"IF(Apertura!AB113=\"Dependiente\",\"SI\",\"\")","v":""}]
[null,{"$f":"IF(Apertura!AB114=\"Dependiente\",CONCATENATE(Apertura!G114,\" \",Apertura!H114,\" \",Apertura!E114,\" \",Apertura!F114),\"\")","v":""},{"$f":"IF(Apertura!AB114=\"Dependiente\",Apertura!C114,\" \")","v":" "},{"$f":"IF(Apertura!AB114=\"Dependiente\",Apertura!D114,\" \")","v":" "},null," ",{"$f":"IF(B148=\"\",\" \",IF(Apertura!C105>0,IF(Apertura!AD114=\"Dólares\",\"Dólares\",IF(Apertura!AD114=\"Soles\",\"Soles\",0)),\" \"))","v":" "},{"$f":"IF(Apertura!AB114=\"Dependiente\",\"SI\",\"\")","v":""}]
[null,{"$f":"IF(Apertura!AB115=\"Dependiente\",CONCATENATE(Apertura!G115,\" \",Apertura!H115,\" \",Apertura!E115,\" \",Apertura!F115),\"\")","v":""},{"$f":"IF(Apertura!AB115=\"Dependiente\",Apertura!C115,\" \")","v":" "},{"$f":"IF(Apertura!AB115=\"Dependiente\",Apertura!D115,\" \")","v":" "},null," ",{"$f":"IF(B149=\"\",\" \",IF(Apertura!C106>0,IF(Apertura!AD115=\"Dólares\",\"Dólares\",IF(Apertura!AD115=\"Soles\",\"Soles\",0)),\" \"))","v":" "},{"$f":"IF(Apertura!AB115=\"Dependiente\",\"SI\",\"\")","v":""}]
[null,{"$f":"IF(Apertura!AB116=\"Dependiente\",CONCATENATE(Apertura!G116,\" \",Apertura!H116,\" \",Apertura!E116,\" \",Apertura!F116),\"\")","v":""},{"$f":"IF(Apertura!AB116=\"Dependiente\",Apertura!C116,\" \")","v":" "},{"$f":"IF(Apertura!AB116=\"Dependiente\",Apertura!D116,\" \")","v":" "},null," ",{"$f":"IF(B150=\"\",\" \",IF(Apertura!C107>0,IF(Apertura!AD116=\"Dólares\",\"Dólares\",IF(Apertura!AD116=\"Soles\",\"Soles\",0)),\" \"))","v":" "},{"$f":"IF(Apertura!AB116=\"Dependiente\",\"SI\",\"\")","v":""}]
[null,{"$f":"IF(Apertura!AB117=\"Dependiente\",CONCATENATE(Apertura!G117,\" \",Apertura!H117,\" \",Apertura!E117,\" \",Apertura!F117),\"\")","v":""},{"$f":"IF(Apertura!AB117=\"Dependiente\",Apertura!C117,\" \")","v":" "},{"$f":"IF(Apertura!AB117=\"Dependiente\",Apertura!D117,\" \")","v":" "},null," ",{"$f":"IF(B151=\"\",\" \",IF(Apertura!C108>0,IF(Apertura!AD117=\"Dólares\",\"Dólares\",IF(Apertura!AD117=\"Soles\",\"Soles\",0)),\" \"))","v":" "},{"$f":"IF(Apertura!AB117=\"Dependiente\",\"SI\",\"\")","v":""}]
[null,{"$f":"IF(Apertura!AB118=\"Dependiente\",CONCATENATE(Apertura!G118,\" \",Apertura!H118,\" \",Apertura!E118,\" \",Apertura!F118),\"\")","v":""},{"$f":"IF(Apertura!AB118=\"Dependiente\",Apertura!C118,\" \")","v":" "},{"$f":"IF(Apertura!AB118=\"Dependiente\",Apertura!D118,\" \")","v":" "},null," ",{"$f":"IF(B152=\"\",\" \",IF(Apertura!C109>0,IF(Apertura!AD118=\"Dólares\",\"Dólares\",IF(Apertura!AD118=\"Soles\",\"Soles\",0)),\" \"))","v":" "},{"$f":"IF(Apertura!AB118=\"Dependiente\",\"SI\",\"\")","v":""}]
[null,{"$f":"IF(Apertura!AB119=\"Dependiente\",CONCATENATE(Apertura!G119,\" \",Apertura!H119,\" \",Apertura!E119,\" \",Apertura!F119),\"\")","v":""},{"$f":"IF(Apertura!AB119=\"Dependiente\",Apertura!C119,\" \")","v":" "},{"$f":"IF(Apertura!AB119=\"Dependiente\",Apertura!D119,\" \")","v":" "},null," ",{"$f":"IF(B153=\"\",\" \",IF(Apertura!C110>0,IF(Apertura!AD119=\"Dólares\",\"Dólares\",IF(Apertura!AD119=\"Soles\",\"Soles\",0)),\" \"))","v":" "},{"$f":"IF(Apertura!AB119=\"Dependiente\",\"SI\",\"\")","v":""}]
[null,{"$f":"IF(Apertura!AB120=\"Dependiente\",CONCATENATE(Apertura!G120,\" \",Apertura!H120,\" \",Apertura!E120,\" \",Apertura!F120),\"\")","v":""},{"$f":"IF(Apertura!AB120=\"Dependiente\",Apertura!C120,\" \")","v":" "},{"$f":"IF(Apertura!AB120=\"Dependiente\",Apertura!D120,\" \")","v":" "},null," ",{"$f":"IF(B154=\"\",\" \",IF(Apertura!C111>0,IF(Apertura!AD120=\"Dólares\",\"Dólares\",IF(Apertura!AD120=\"Soles\",\"Soles\",0)),\" \"))","v":" "},{"$f":"IF(Apertura!AB120=\"Dependiente\",\"SI\",\"\")","v":""}]
[null,{"$f":"IF(Apertura!AB121=\"Dependiente\",CONCATENATE(Apertura!G121,\" \",Apertura!H121,\" \",Apertura!E121,\" \",Apertura!F121),\"\")","v":""},{"$f":"IF(Apertura!AB121=\"Dependiente\",Apertura!C121,\" \")","v":" "},{"$f":"IF(Apertura!AB121=\"Dependiente\",Apertura!D121,\" \")","v":" "},null," ",{"$f":"IF(B155=\"\",\" \",IF(Apertura!C112>0,IF(Apertura!AD121=\"Dólares\",\"Dólares\",IF(Apertura!AD121=\"Soles\",\"Soles\",0)),\" \"))","v":" "},{"$f":"IF(Apertura!AB121=\"Dependiente\",\"SI\",\"\")","v":""}]
[null,{"$f":"IF(Apertura!AB122=\"Dependiente\",CONCATENATE(Apertura!G122,\" \",Apertura!H122,\" \",Apertura!E122,\" \",Apertura!F122),\"\")","v":""},{"$f":"IF(Apertura!AB122=\"Dependiente\",Apertura!C122,\" \")","v":" "},{"$f":"IF(Apertura!AB122=\"Dependiente\",Apertura!D122,\" \")","v":" "},null," ",{"$f":"IF(B156=\"\",\" \",IF(Apertura!C113>0,IF(Apertura!AD122=\"Dólares\",\"Dólares\",IF(Apertura!AD122=\"Soles\",\"Soles\",0)),\" \"))","v":" "},{"$f":"IF(Apertura!AB122=\"Dependiente\",\"SI\",\"\")","v":""}]
[null,{"$f":"IF(Apertura!AB123=\"Dependiente\",CONCATENATE(Apertura!G123,\" \",Apertura!H123,\" \",Apertura!E123,\" \",Apertura!F123),\"\")","v":""},{"$f":"IF(Apertura!AB123=\"Dependiente\",Apertura!C123,\" \")","v":" "},{"$f":"IF(Apertura!AB123=\"Dependiente\",Apertura!D123,\" \")","v":" "},null," ",{"$f":"IF(B157=\"\",\" \",IF(Apertura!C114>0,IF(Apertura!AD123=\"Dólares\",\"Dólares\",IF(Apertura!AD123=\"Soles\",\"Soles\",0)),\" \"))","v":" "},{"$f":"IF(Apertura!AB123=\"Dependiente\",\"SI\",\"\")","v":""}]
[null,{"$f":"IF(Apertura!AB124=\"Dependiente\",CONCATENATE(Apertura!G124,\" \",Apertura!H124,\" \",Apertura!E124,\" \",Apertura!F124),\"\")","v":""},{"$f":"IF(Apertura!AB124=\"Dependiente\",Apertura!C124,\" \")","v":" "},{"$f":"IF(Apertura!AB124=\"Dependiente\",Apertura!D124,\" \")","v":" "},null," ",{"$f":"IF(B158=\"\",\" \",IF(Apertura!C115>0,IF(Apertura!AD124=\"Dólares\",\"Dólares\",IF(Apertura!AD124=\"Soles\",\"Soles\",0)),\" \"))","v":" "},{"$f":"IF(Apertura!AB124=\"Dependiente\",\"SI\",\"\")","v":""}]
[null,{"$f":"IF(Apertura!AB125=\"Dependiente\",CONCATENATE(Apertura!G125,\" \",Apertura!H125,\" \",Apertura!E125,\" \",Apertura!F125),\"\")","v":""},{"$f":"IF(Apertura!AB125=\"Dependiente\",Apertura!C125,\" \")","v":" "},{"$f":"IF(Apertura!AB125=\"Dependiente\",Apertura!D125,\" \")","v":" "},null," ",{"$f":"IF(B159=\"\",\" \",IF(Apertura!C116>0,IF(Apertura!AD125=\"Dólares\",\"Dólares\",IF(Apertura!AD125=\"Soles\",\"Soles\",0)),\" \"))","v":" "},{"$f":"IF(Apertura!AB125=\"Dependiente\",\"SI\",\"\")","v":""}]
[null,{"$f":"IF(Apertura!AB126=\"Dependiente\",CONCATENATE(Apertura!G126,\" \",Apertura!H126,\" \",Apertura!E126,\" \",Apertura!F126),\"\")","v":""},{"$f":"IF(Apertura!AB126=\"Dependiente\",Apertura!C126,\" \")","v":" "},{"$f":"IF(Apertura!AB126=\"Dependiente\",Apertura!D126,\" \")","v":" "},null," ",{"$f":"IF(B160=\"\",\" \",IF(Apertura!C117>0,IF(Apertura!AD126=\"Dólares\",\"Dólares\",IF(Apertura!AD126=\"Soles\",\"Soles\",0)),\" \"))","v":" "},{"$f":"IF(Apertura!AB126=\"Dependiente\",\"SI\",\"\")","v":""}]
[null,{"$f":"IF(Apertura!AB127=\"Dependiente\",CONCATENATE(Apertura!G127,\" \",Apertura!H127,\" \",Apertura!E127,\" \",Apertura!F127),\"\")","v":""},{"$f":"IF(Apertura!AB127=\"Dependiente\",Apertura!C127,\" \")","v":" "},{"$f":"IF(Apertura!AB127=\"Dependiente\",Apertura!D127,\" \")","v":" "},null," ",{"$f":"IF(B161=\"\",\" \",IF(Apertura!C118>0,IF(Apertura!AD127=\"Dólares\",\"Dólares\",IF(Apertura!AD127=\"Soles\",\"Soles\",0)),\" \"))","v":" "},{"$f":"IF(Apertura!AB127=\"Dependiente\",\"SI\",\"\")","v":""}]
[null,{"$f":"IF(Apertura!AB128=\"Dependiente\",CONCATENATE(Apertura!G128,\" \",Apertura!H128,\" \",Apertura!E128,\" \",Apertura!F128),\"\")","v":""},{"$f":"IF(Apertura!AB128=\"Dependiente\",Apertura!C128,\" \")","v":" "},{"$f":"IF(Apertura!AB128=\"Dependiente\",Apertura!D128,\" \")","v":" "},null," ",{"$f":"IF(B162=\"\",\" \",IF(Apertura!C119>0,IF(Apertura!AD128=\"Dólares\",\"Dólares\",IF(Apertura!AD128=\"Soles\",\"Soles\",0)),\" \"))","v":" "},{"$f":"IF(Apertura!AB128=\"Dependiente\",\"SI\",\"\")","v":""}]
[null,{"$f":"IF(Apertura!AB129=\"Dependiente\",CONCATENATE(Apertura!G129,\" \",Apertura!H129,\" \",Apertura!E129,\" \",Apertura!F129),\"\")","v":""},{"$f":"IF(Apertura!AB129=\"Dependiente\",Apertura!C129,\" \")","v":" "},{"$f":"IF(Apertura!AB129=\"Dependiente\",Apertura!D129,\" \")","v":" "},null," ",{"$f":"IF(B163=\"\",\" \",IF(Apertura!C120>0,IF(Apertura!AD129=\"Dólares\",\"Dólares\",IF(Apertura!AD129=\"Soles\",\"Soles\",0)),\" \"))","v":" "},{"$f":"IF(Apertura!AB129=\"Dependiente\",\"SI\",\"\")","v":""}]
[null,{"$f":"IF(Apertura!AB130=\"Dependiente\",CONCATENATE(Apertura!G130,\" \",Apertura!H130,\" \",Apertura!E130,\" \",Apertura!F130),\"\")","v":""},{"$f":"IF(Apertura!AB130=\"Dependiente\",Apertura!C130,\" \")","v":" "},{"$f":"IF(Apertura!AB130=\"Dependiente\",Apertura!D130,\" \")","v":" "},null," ",{"$f":"IF(B164=\"\",\" \",IF(Apertura!C121>0,IF(Apertura!AD130=\"Dólares\",\"Dólares\",IF(Apertura!AD130=\"Soles\",\"Soles\",0)),\" \"))","v":" "},{"$f":"IF(Apertura!AB130=\"Dependiente\",\"SI\",\"\")","v":""}]
[null,{"$f":"IF(Apertura!AB131=\"Dependiente\",CONCATENATE(Apertura!G131,\" \",Apertura!H131,\" \",Apertura!E131,\" \",Apertura!F131),\"\")","v":""},{"$f":"IF(Apertura!AB131=\"Dependiente\",Apertura!C131,\" \")","v":" "},{"$f":"IF(Apertura!AB131=\"Dependiente\",Apertura!D131,\" \")","v":" "},null," ",{"$f":"IF(B165=\"\",\" \",IF(Apertura!C122>0,IF(Apertura!AD131=\"Dólares\",\"Dólares\",IF(Apertura!AD131=\"Soles\",\"Soles\",0)),\" \"))","v":" "},{"$f":"IF(Apertura!AB131=\"Dependiente\",\"SI\",\"\")","v":""}]
[null,{"$f":"IF(Apertura!AB132=\"Dependiente\",CONCATENATE(Apertura!G132,\" \",Apertura!H132,\" \",Apertura!E132,\" \",Apertura!F132),\"\")","v":""},{"$f":"IF(Apertura!AB132=\"Dependiente\",Apertura!C132,\" \")","v":" "},{"$f":"IF(Apertura!AB132=\"Dependiente\",Apertura!D132,\" \")","v":" "},null," ",{"$f":"IF(B166=\"\",\" \",IF(Apertura!C123>0,IF(Apertura!AD132=\"Dólares\",\"Dólares\",IF(Apertura!AD132=\"Soles\",\"Soles\",0)),\" \"))","v":" "},{"$f":"IF(Apertura!AB132=\"Dependiente\",\"SI\",\"\")","v":""}]
[null,{"$f":"IF(Apertura!AB133=\"Dependiente\",CONCATENATE(Apertura!G133,\" \",Apertura!H133,\" \",Apertura!E133,\" \",Apertura!F133),\"\")","v":""},{"$f":"IF(Apertura!AB133=\"Dependiente\",Apertura!C133,\" \")","v":" "},{"$f":"IF(Apertura!AB133=\"Dependiente\",Apertura!D133,\" \")","v":" "},null," ",{"$f":"IF(B167=\"\",\" \",IF(Apertura!C124>0,IF(Apertura!AD133=\"Dólares\",\"Dólares\",IF(Apertura!AD133=\"Soles\",\"Soles\",0)),\" \"))","v":" "},{"$f":"IF(Apertura!AB133=\"Dependiente\",\"SI\",\"\")","v":""}]
[null,{"$f":"IF(Apertura!AB134=\"Dependiente\",CONCATENATE(Apertura!G134,\" \",Apertura!H134,\" \",Apertura!E134,\" \",Apertura!F134),\"\")","v":""},{"$f":"IF(Apertura!AB134=\"Dependiente\",Apertura!C134,\" \")","v":" "},{"$f":"IF(Apertura!AB134=\"Dependiente\",Apertura!D134,\" \")","v":" "},null," ",{"$f":"IF(B168=\"\",\" \",IF(Apertura!C125>0,IF(Apertura!AD134=\"Dólares\",\"Dólares\",IF(Apertura!AD134=\"Soles\",\"Soles\",0)),\" \"))","v":" "},{"$f":"IF(Apertura!AB134=\"Dependiente\",\"SI\",\"\")","v":""}]
[null,{"$f":"IF(Apertura!AB135=\"Dependiente\",CONCATENATE(Apertura!G135,\" \",Apertura!H135,\" \",Apertura!E135,\" \",Apertura!F135),\"\")","v":""},{"$f":"IF(Apertura!AB135=\"Dependiente\",Apertura!C135,\" \")","v":" "},{"$f":"IF(Apertura!AB135=\"Dependiente\",Apertura!D135,\" \")","v":" "},null," ",{"$f":"IF(B169=\"\",\" \",IF(Apertura!C126>0,IF(Apertura!AD135=\"Dólares\",\"Dólares\",IF(Apertura!AD135=\"Soles\",\"Soles\",0)),\" \"))","v":" "},{"$f":"IF(Apertura!AB135=\"Dependiente\",\"SI\",\"\")","v":""}]
[null,{"$f":"IF(Apertura!AB136=\"Dependiente\",CONCATENATE(Apertura!G136,\" \",Apertura!H136,\" \",Apertura!E136,\" \",Apertura!F136),\"\")","v":""},{"$f":"IF(Apertura!AB136=\"Dependiente\",Apertura!C136,\" \")","v":" "},{"$f":"IF(Apertura!AB136=\"Dependiente\",Apertura!D136,\" \")","v":" "},null," ",{"$f":"IF(B170=\"\",\" \",IF(Apertura!C127>0,IF(Apertura!AD136=\"Dólares\",\"Dólares\",IF(Apertura!AD136=\"Soles\",\"Soles\",0)),\" \"))","v":" "},{"$f":"IF(Apertura!AB136=\"Dependiente\",\"SI\",\"\")","v":""}]
[null,{"$f":"IF(Apertura!AB137=\"Dependiente\",CONCATENATE(Apertura!G137,\" \",Apertura!H137,\" \",Apertura!E137,\" \",Apertura!F137),\"\")","v":""},{"$f":"IF(Apertura!AB137=\"Dependiente\",Apertura!C137,\" \")","v":" "},{"$f":"IF(Apertura!AB137=\"Dependiente\",Apertura!D137,\" \")","v":" "},null," ",{"$f":"IF(B171=\"\",\" \",IF(Apertura!C128>0,IF(Apertura!AD137=\"Dólares\",\"Dólares\",IF(Apertura!AD137=\"Soles\",\"Soles\",0)),\" \"))","v":" "},{"$f":"IF(Apertura!AB137=\"Dependiente\",\"SI\",\"\")","v":""}]
[null,{"$f":"IF(Apertura!AB138=\"Dependiente\",CONCATENATE(Apertura!G138,\" \",Apertura!H138,\" \",Apertura!E138,\" \",Apertura!F138),\"\")","v":""},{"$f":"IF(Apertura!AB138=\"Dependiente\",Apertura!C138,\" \")","v":" "},{"$f":"IF(Apertura!AB138=\"Dependiente\",Apertura!D138,\" \")","v":" "},null," ",{"$f":"IF(B172=\"\",\" \",IF(Apertura!C129>0,IF(Apertura!AD138=\"Dólares\",\"Dólares\",IF(Apertura!AD138=\"Soles\",\"Soles\",0)),\" \"))","v":" "},{"$f":"IF(Apertura!AB138=\"Dependiente\",\"SI\",\"\")","v":""}]
[null,{"$f":"IF(Apertura!AB139=\"Dependiente\",CONCATENATE(Apertura!G139,\" \",Apertura!H139,\" \",Apertura!E139,\" \",Apertura!F139),\"\")","v":""},{"$f":"IF(Apertura!AB139=\"Dependiente\",Apertura!C139,\" \")","v":" "},{"$f":"IF(Apertura!AB139=\"Dependiente\",Apertura!D139,\" \")","v":" "},null," ",{"$f":"IF(B173=\"\",\" \",IF(Apertura!C130>0,IF(Apertura!AD139=\"Dólares\",\"Dólares\",IF(Apertura!AD139=\"Soles\",\"Soles\",0)),\" \"))","v":" "},{"$f":"IF(Apertura!AB139=\"Dependiente\",\"SI\",\"\")","v":""}]
[null,{"$f":"IF(Apertura!AB140=\"Dependiente\",CONCATENATE(Apertura!G140,\" \",Apertura!H140,\" \",Apertura!E140,\" \",Apertura!F140),\"\")","v":""},{"$f":"IF(Apertura!AB140=\"Dependiente\",Apertura!C140,\" \")","v":" "},{"$f":"IF(Apertura!AB140=\"Dependiente\",Apertura!D140,\" \")","v":" "},null," ",{"$f":"IF(B174=\"\",\" \",IF(Apertura!C131>0,IF(Apertura!AD140=\"Dólares\",\"Dólares\",IF(Apertura!AD140=\"Soles\",\"Soles\",0)),\" \"))","v":" "},{"$f":"IF(Apertura!AB140=\"Dependiente\",\"SI\",\"\")","v":""}]
[null,{"$f":"IF(Apertura!AB141=\"Dependiente\",CONCATENATE(Apertura!G141,\" \",Apertura!H141,\" \",Apertura!E141,\" \",Apertura!F141),\"\")","v":""},{"$f":"IF(Apertura!AB141=\"Dependiente\",Apertura!C141,\" \")","v":" "},{"$f":"IF(Apertura!AB141=\"Dependiente\",Apertura!D141,\" \")","v":" "},null," ",{"$f":"IF(B175=\"\",\" \",IF(Apertura!C132>0,IF(Apertura!AD141=\"Dólares\",\"Dólares\",IF(Apertura!AD141=\"Soles\",\"Soles\",0)),\" \"))","v":" "},{"$f":"IF(Apertura!AB141=\"Dependiente\",\"SI\",\"\")","v":""}]
[null,{"$f":"IF(Apertura!AB142=\"Dependiente\",CONCATENATE(Apertura!G142,\" \",Apertura!H142,\" \",Apertura!E142,\" \",Apertura!F142),\"\")","v":""},{"$f":"IF(Apertura!AB142=\"Dependiente\",Apertura!C142,\" \")","v":" "},{"$f":"IF(Apertura!AB142=\"Dependiente\",Apertura!D142,\" \")","v":" "},null," ",{"$f":"IF(B176=\"\",\" \",IF(Apertura!C133>0,IF(Apertura!AD142=\"Dólares\",\"Dólares\",IF(Apertura!AD142=\"Soles\",\"Soles\",0)),\" \"))","v":" "},{"$f":"IF(Apertura!AB142=\"Dependiente\",\"SI\",\"\")","v":""}]
[null,{"$f":"IF(Apertura!AB143=\"Dependiente\",CONCATENATE(Apertura!G143,\" \",Apertura!H143,\" \",Apertura!E143,\" \",Apertura!F143),\"\")","v":""},{"$f":"IF(Apertura!AB143=\"Dependiente\",Apertura!C143,\" \")","v":" "},{"$f":"IF(Apertura!AB143=\"Dependiente\",Apertura!D143,\" \")","v":" "},null," ",{"$f":"IF(B177=\"\",\" \",IF(Apertura!C134>0,IF(Apertura!AD143=\"Dólares\",\"Dólares\",IF(Apertura!AD143=\"Soles\",\"Soles\",0)),\" \"))","v":" "},{"$f":"IF(Apertura!AB143=\"Dependiente\",\"SI\",\"\")","v":""}]
[null,{"$f":"IF(Apertura!AB144=\"Dependiente\",CONCATENATE(Apertura!G144,\" \",Apertura!H144,\" \",Apertura!E144,\" \",Apertura!F144),\"\")","v":""},{"$f":"IF(Apertura!AB144=\"Dependiente\",Apertura!C144,\" \")","v":" "},{"$f":"IF(Apertura!AB144=\"Dependiente\",Apertura!D144,\" \")","v":" "},null," ",{"$f":"IF(B178=\"\",\" \",IF(Apertura!C135>0,IF(Apertura!AD144=\"Dólares\",\"Dólares\",IF(Apertura!AD144=\"Soles\",\"Soles\",0)),\" \"))","v":" "},{"$f":"IF(Apertura!AB144=\"Dependiente\",\"SI\",\"\")","v":""}]
[null,{"$f":"IF(Apertura!AB145=\"Dependiente\",CONCATENATE(Apertura!G145,\" \",Apertura!H145,\" \",Apertura!E145,\" \",Apertura!F145),\"\")","v":""},{"$f":"IF(Apertura!AB145=\"Dependiente\",Apertura!C145,\" \")","v":" "},{"$f":"IF(Apertura!AB145=\"Dependiente\",Apertura!D145,\" \")","v":" "},null," ",{"$f":"IF(B179=\"\",\" \",IF(Apertura!C136>0,IF(Apertura!AD145=\"Dólares\",\"Dólares\",IF(Apertura!AD145=\"Soles\",\"Soles\",0)),\" \"))","v":" "},{"$f":"IF(Apertura!AB145=\"Dependiente\",\"SI\",\"\")","v":""}]
[null,{"$f":"IF(Apertura!AB146=\"Dependiente\",CONCATENATE(Apertura!G146,\" \",Apertura!H146,\" \",Apertura!E146,\" \",Apertura!F146),\"\")","v":""},{"$f":"IF(Apertura!AB146=\"Dependiente\",Apertura!C146,\" \")","v":" "},{"$f":"IF(Apertura!AB146=\"Dependiente\",Apertura!D146,\" \")","v":" "},null,{"$f":"IF(D180=\" \",\" \",\"Ahorros\")","v":" "},{"$f":"IF(B180=\"\",\" \",IF(Apertura!C137>0,IF(Apertura!AD146=\"Dólares\",\"Dólares\",IF(Apertura!AD146=\"Soles\",\"Soles\",0)),\" \"))","v":" "},{"$f":"IF(Apertura!AB146=\"Dependiente\",\"SI\",\"\")","v":""}]
[null,{"$f":"IF(Apertura!AB147=\"Dependiente\",CONCATENATE(Apertura!G147,\" \",Apertura!H147,\" \",Apertura!E147,\" \",Apertura!F147),\"\")","v":""},{"$f":"IF(Apertura!AB147=\"Dependiente\",Apertura!C147,\" \")","v":" "},{"$f":"IF(Apertura!AB147=\"Dependiente\",Apertura!D147,\" \")","v":" "},null," ",{"$f":"IF(B181=\"\",\" \",IF(Apertura!C138>0,IF(Apertura!AD147=\"Dólares\",\"Dólares\",IF(Apertura!AD147=\"Soles\",\"Soles\",0)),\" \"))","v":" "},{"$f":"IF(Apertura!AB147=\"Dependiente\",\"SI\",\"\")","v":""}]
[null,{"$f":"IF(Apertura!AB148=\"Dependiente\",CONCATENATE(Apertura!G148,\" \",Apertura!H148,\" \",Apertura!E148,\" \",Apertura!F148),\"\")","v":""},{"$f":"IF(Apertura!AB148=\"Dependiente\",Apertura!C148,\" \")","v":" "},{"$f":"IF(Apertura!AB148=\"Dependiente\",Apertura!D148,\" \")","v":" "},null," ",{"$f":"IF(B182=\"\",\" \",IF(Apertura!C139>0,IF(Apertura!AD148=\"Dólares\",\"Dólares\",IF(Apertura!AD148=\"Soles\",\"Soles\",0)),\" \"))","v":" "},{"$f":"IF(Apertura!AB148=\"Dependiente\",\"SI\",\"\")","v":""}]
[null,{"$f":"IF(Apertura!AB149=\"Dependiente\",CONCATENATE(Apertura!G149,\" \",Apertura!H149,\" \",Apertura!E149,\" \",Apertura!F149),\"\")","v":""},{"$f":"IF(Apertura!AB149=\"Dependiente\",Apertura!C149,\" \")","v":" "},{"$f":"IF(Apertura!AB149=\"Dependiente\",Apertura!D149,\" \")","v":" "},null," ",{"$f":"IF(B183=\"\",\" \",IF(Apertura!C140>0,IF(Apertura!AD149=\"Dólares\",\"Dólares\",IF(Apertura!AD149=\"Soles\",\"Soles\",0)),\" \"))","v":" "},{"$f":"IF(Apertura!AB149=\"Dependiente\",\"SI\",\"\")","v":""}]
[null,{"$f":"IF(Apertura!AB150=\"Dependiente\",CONCATENATE(Apertura!G150,\" \",Apertura!H150,\" \",Apertura!E150,\" \",Apertura!F150),\"\")","v":""},{"$f":"IF(Apertura!AB150=\"Dependiente\",Apertura!C150,\" \")","v":" "},{"$f":"IF(Apertura!AB150=\"Dependiente\",Apertura!D150,\" \")","v":" "},null," ",{"$f":"IF(B184=\"\",\" \",IF(Apertura!C141>0,IF(Apertura!AD150=\"Dólares\",\"Dólares\",IF(Apertura!AD150=\"Soles\",\"Soles\",0)),\" \"))","v":" "},{"$f":"IF(Apertura!AB150=\"Dependiente\",\"SI\",\"\")","v":""}]
[null,{"$f":"IF(Apertura!AB151=\"Dependiente\",CONCATENATE(Apertura!G151,\" \",Apertura!H151,\" \",Apertura!E151,\" \",Apertura!F151),\"\")","v":""},{"$f":"IF(Apertura!AB151=\"Dependiente\",Apertura!C151,\" \")","v":" "},{"$f":"IF(Apertura!AB151=\"Dependiente\",Apertura!D151,\" \")","v":" "},null," ",{"$f":"IF(B185=\"\",\" \",IF(Apertura!C142>0,IF(Apertura!AD151=\"Dólares\",\"Dólares\",IF(Apertura!AD151=\"Soles\",\"Soles\",0)),\" \"))","v":" "},{"$f":"IF(Apertura!AB151=\"Dependiente\",\"SI\",\"\")","v":""}]
[null,{"$f":"IF(Apertura!AB152=\"Dependiente\",CONCATENATE(Apertura!G152,\" \",Apertura!H152,\" \",Apertura!E152,\" \",Apertura!F152),\"\")","v":""},{"$f":"IF(Apertura!AB152=\"Dependiente\",Apertura!C152,\" \")","v":" "},{"$f":"IF(Apertura!AB152=\"Dependiente\",Apertura!D152,\" \")","v":" "},null," ",{"$f":"IF(B186=\"\",\" \",IF(Apertura!C143>0,IF(Apertura!AD152=\"Dólares\",\"Dólares\",IF(Apertura!AD152=\"Soles\",\"Soles\",0)),\" \"))","v":" "},{"$f":"IF(Apertura!AB152=\"Dependiente\",\"SI\",\"\")","v":""}]
[null,{"$f":"IF(Apertura!AB153=\"Dependiente\",CONCATENATE(Apertura!G153,\" \",Apertura!H153,\" \",Apertura!E153,\" \",Apertura!F153),\"\")","v":""},{"$f":"IF(Apertura!AB153=\"Dependiente\",Apertura!C153,\" \")","v":" "},{"$f":"IF(Apertura!AB153=\"Dependiente\",Apertura!D153,\" \")","v":" "},null," ",{"$f":"IF(B187=\"\",\" \",IF(Apertura!C144>0,IF(Apertura!AD153=\"Dólares\",\"Dólares\",IF(Apertura!AD153=\"Soles\",\"Soles\",0)),\" \"))","v":" "},{"$f":"IF(Apertura!AB153=\"Dependiente\",\"SI\",\"\")","v":""}]
[null,{"$f":"IF(Apertura!AB154=\"Dependiente\",CONCATENATE(Apertura!G154,\" \",Apertura!H154,\" \",Apertura!E154,\" \",Apertura!F154),\"\")","v":""},{"$f":"IF(Apertura!AB154=\"Dependiente\",Apertura!C154,\" \")","v":" "},{"$f":"IF(Apertura!AB154=\"Dependiente\",Apertura!D154,\" \")","v":" "},null," ",{"$f":"IF(B188=\"\",\" \",IF(Apertura!C145>0,IF(Apertura!AD154=\"Dólares\",\"Dólares\",IF(Apertura!AD154=\"Soles\",\"Soles\",0)),\" \"))","v":" "},{"$f":"IF(Apertura!AB154=\"Dependiente\",\"SI\",\"\")","v":""}]
[null,{"$f":"IF(Apertura!AB155=\"Dependiente\",CONCATENATE(Apertura!G155,\" \",Apertura!H155,\" \",Apertura!E155,\" \",Apertura!F155),\"\")","v":""},{"$f":"IF(Apertura!AB155=\"Dependiente\",Apertura!C155,\" \")","v":" "},{"$f":"IF(Apertura!AB155=\"Dependiente\",Apertura!D155,\" \")","v":" "},null," ",{"$f":"IF(B189=\"\",\" \",IF(Apertura!C146>0,IF(Apertura!AD155=\"Dólares\",\"Dólares\",IF(Apertura!AD155=\"Soles\",\"Soles\",0)),\" \"))","v":" "},{"$f":"IF(Apertura!AB155=\"Dependiente\",\"SI\",\"\")","v":""}]
[null,{"$f":"IF(Apertura!AB156=\"Dependiente\",CONCATENATE(Apertura!G156,\" \",Apertura!H156,\" \",Apertura!E156,\" \",Apertura!F156),\"\")","v":""},{"$f":"IF(Apertura!AB156=\"Dependiente\",Apertura!C156,\" \")","v":" "},{"$f":"IF(Apertura!AB156=\"Dependiente\",Apertura!D156,\" \")","v":" "},null," ",{"$f":"IF(B190=\"\",\" \",IF(Apertura!C147>0,IF(Apertura!AD156=\"Dólares\",\"Dólares\",IF(Apertura!AD156=\"Soles\",\"Soles\",0)),\" \"))","v":" "},{"$f":"IF(Apertura!AB156=\"Dependiente\",\"SI\",\"\")","v":""}]
[null,{"$f":"IF(Apertura!AB157=\"Dependiente\",CONCATENATE(Apertura!G157,\" \",Apertura!H157,\" \",Apertura!E157,\" \",Apertura!F157),\"\")","v":""},{"$f":"IF(Apertura!AB157=\"Dependiente\",Apertura!C157,\" \")","v":" "},{"$f":"IF(Apertura!AB157=\"Dependiente\",Apertura!D157,\" \")","v":" "},null," ",{"$f":"IF(B191=\"\",\" \",IF(Apertura!C148>0,IF(Apertura!AD157=\"Dólares\",\"Dólares\",IF(Apertura!AD157=\"Soles\",\"Soles\",0)),\" \"))","v":" "},{"$f":"IF(Apertura!AB157=\"Dependiente\",\"SI\",\"\")","v":""}]
[null,{"$f":"IF(Apertura!AB158=\"Dependiente\",CONCATENATE(Apertura!G158,\" \",Apertura!H158,\" \",Apertura!E158,\" \",Apertura!F158),\"\")","v":""},{"$f":"IF(Apertura!AB158=\"Dependiente\",Apertura!C158,\" \")","v":" "},{"$f":"IF(Apertura!AB158=\"Dependiente\",Apertura!D158,\" \")","v":" "},null," ",{"$f":"IF(B192=\"\",\" \",IF(Apertura!C149>0,IF(Apertura!AD158=\"Dólares\",\"Dólares\",IF(Apertura!AD158=\"Soles\",\"Soles\",0)),\" \"))","v":" "},{"$f":"IF(Apertura!AB158=\"Dependiente\",\"SI\",\"\")","v":""}]
[null,{"$f":"IF(Apertura!AB159=\"Dependiente\",CONCATENATE(Apertura!G159,\" \",Apertura!H159,\" \",Apertura!E159,\" \",Apertura!F159),\"\")","v":""},{"$f":"IF(Apertura!AB159=\"Dependiente\",Apertura!C159,\" \")","v":" "},{"$f":"IF(Apertura!AB159=\"Dependiente\",Apertura!D159,\" \")","v":" "},null," ",{"$f":"IF(B193=\"\",\" \",IF(Apertura!C150>0,IF(Apertura!AD159=\"Dólares\",\"Dólares\",IF(Apertura!AD159=\"Soles\",\"Soles\",0)),\" \"))","v":" "},{"$f":"IF(Apertura!AB159=\"Dependiente\",\"SI\",\"\")","v":""}]
[null,{"$f":"IF(Apertura!AB160=\"Dependiente\",CONCATENATE(Apertura!G160,\" \",Apertura!H160,\" \",Apertura!E160,\" \",Apertura!F160),\"\")","v":""},{"$f":"IF(Apertura!AB160=\"Dependiente\",Apertura!C160,\" \")","v":" "},{"$f":"IF(Apertura!AB160=\"Dependiente\",Apertura!D160,\" \")","v":" "},null," ",{"$f":"IF(B194=\"\",\" \",IF(Apertura!C151>0,IF(Apertura!AD160=\"Dólares\",\"Dólares\",IF(Apertura!AD160=\"Soles\",\"Soles\",0)),\" \"))","v":" "},{"$f":"IF(Apertura!AB160=\"Dependiente\",\"SI\",\"\")","v":""}]
[null,{"$f":"IF(Apertura!AB161=\"Dependiente\",CONCATENATE(Apertura!G161,\" \",Apertura!H161,\" \",Apertura!E161,\" \",Apertura!F161),\"\")","v":""},{"$f":"IF(Apertura!AB161=\"Dependiente\",Apertura!C161,\" \")","v":" "},{"$f":"IF(Apertura!AB161=\"Dependiente\",Apertura!D161,\" \")","v":" "},null," ",{"$f":"IF(B195=\"\",\" \",IF(Apertura!C152>0,IF(Apertura!AD161=\"Dólares\",\"Dólares\",IF(Apertura!AD161=\"Soles\",\"Soles\",0)),\" \"))","v":" "},{"$f":"IF(Apertura!AB161=\"Dependiente\",\"SI\",\"\")","v":""}]
[null,{"$f":"IF(Apertura!AB162=\"Dependiente\",CONCATENATE(Apertura!G162,\" \",Apertura!H162,\" \",Apertura!E162,\" \",Apertura!F162),\"\")","v":""},{"$f":"IF(Apertura!AB162=\"Dependiente\",Apertura!C162,\" \")","v":" "},{"$f":"IF(Apertura!AB162=\"Dependiente\",Apertura!D162,\" \")","v":" "},null," ",{"$f":"IF(B196=\"\",\" \",IF(Apertura!C153>0,IF(Apertura!AD162=\"Dólares\",\"Dólares\",IF(Apertura!AD162=\"Soles\",\"Soles\",0)),\" \"))","v":" "},{"$f":"IF(Apertura!AB162=\"Dependiente\",\"SI\",\"\")","v":""}]
[null,{"$f":"IF(Apertura!AB163=\"Dependiente\",CONCATENATE(Apertura!G163,\" \",Apertura!H163,\" \",Apertura!E163,\" \",Apertura!F163),\"\")","v":""},{"$f":"IF(Apertura!AB163=\"Dependiente\",Apertura!C163,\" \")","v":" "},{"$f":"IF(Apertura!AB163=\"Dependiente\",Apertura!D163,\" \")","v":" "},null," ",{"$f":"IF(B197=\"\",\" \",IF(Apertura!C154>0,IF(Apertura!AD163=\"Dólares\",\"Dólares\",IF(Apertura!AD163=\"Soles\",\"Soles\",0)),\" \"))","v":" "},{"$f":"IF(Apertura!AB163=\"Dependiente\",\"SI\",\"\")","v":""}]
[null,{"$f":"IF(Apertura!AB164=\"Dependiente\",CONCATENATE(Apertura!G164,\" \",Apertura!H164,\" \",Apertura!E164,\" \",Apertura!F164),\"\")","v":""},{"$f":"IF(Apertura!AB164=\"Dependiente\",Apertura!C164,\" \")","v":" "},{"$f":"IF(Apertura!AB164=\"Dependiente\",Apertura!D164,\" \")","v":" "},null," ",{"$f":"IF(B198=\"\",\" \",IF(Apertura!C155>0,IF(Apertura!AD164=\"Dólares\",\"Dólares\",IF(Apertura!AD164=\"Soles\",\"Soles\",0)),\" \"))","v":" "},{"$f":"IF(Apertura!AB164=\"Dependiente\",\"SI\",\"\")","v":""}]
[null,{"$f":"IF(Apertura!AB165=\"Dependiente\",CONCATENATE(Apertura!G165,\" \",Apertura!H165,\" \",Apertura!E165,\" \",Apertura!F165),\"\")","v":""},{"$f":"IF(Apertura!AB165=\"Dependiente\",Apertura!C165,\" \")","v":" "},{"$f":"IF(Apertura!AB165=\"Dependiente\",Apertura!D165,\" \")","v":" "},null," ",{"$f":"IF(B199=\"\",\" \",IF(Apertura!C156>0,IF(Apertura!AD165=\"Dólares\",\"Dólares\",IF(Apertura!AD165=\"Soles\",\"Soles\",0)),\" \"))","v":" "},{"$f":"IF(Apertura!AB165=\"Dependiente\",\"SI\",\"\")","v":""}]
[null,{"$f":"IF(Apertura!AB166=\"Dependiente\",CONCATENATE(Apertura!G166,\" \",Apertura!H166,\" \",Apertura!E166,\" \",Apertura!F166),\"\")","v":""},{"$f":"IF(Apertura!AB166=\"Dependiente\",Apertura!C166,\" \")","v":" "},{"$f":"IF(Apertura!AB166=\"Dependiente\",Apertura!D166,\" \")","v":" "},null," ",{"$f":"IF(B200=\"\",\" \",IF(Apertura!C157>0,IF(Apertura!AD166=\"Dólares\",\"Dólares\",IF(Apertura!AD166=\"Soles\",\"Soles\",0)),\" \"))","v":" "},{"$f":"IF(Apertura!AB166=\"Dependiente\",\"SI\",\"\")","v":""}]
[null,{"$f":"IF(Apertura!AB167=\"Dependiente\",CONCATENATE(Apertura!G167,\" \",Apertura!H167,\" \",Apertura!E167,\" \",Apertura!F167),\"\")","v":""},{"$f":"IF(Apertura!AB167=\"Dependiente\",Apertura!C167,\" \")","v":" "},{"$f":"IF(Apertura!AB167=\"Dependiente\",Apertura!D167,\" \")","v":" "},null," ",{"$f":"IF(B201=\"\",\" \",IF(Apertura!C158>0,IF(Apertura!AD167=\"Dólares\",\"Dólares\",IF(Apertura!AD167=\"Soles\",\"Soles\",0)),\" \"))","v":" "},{"$f":"IF(Apertura!AB167=\"Dependiente\",\"SI\",\"\")","v":""}]
[null,{"$f":"IF(Apertura!AB168=\"Dependiente\",CONCATENATE(Apertura!G168,\" \",Apertura!H168,\" \",Apertura!E168,\" \",Apertura!F168),\"\")","v":""},{"$f":"IF(Apertura!AB168=\"Dependiente\",Apertura!C168,\" \")","v":" "},{"$f":"IF(Apertura!AB168=\"Dependiente\",Apertura!D168,\" \")","v":" "},null," ",{"$f":"IF(B202=\"\",\" \",IF(Apertura!C159>0,IF(Apertura!AD168=\"Dólares\",\"Dólares\",IF(Apertura!AD168=\"Soles\",\"Soles\",0)),\" \"))","v":" "},{"$f":"IF(Apertura!AB168=\"Dependiente\",\"SI\",\"\")","v":""}]
[null,{"$f":"IF(Apertura!AB169=\"Dependiente\",CONCATENATE(Apertura!G169,\" \",Apertura!H169,\" \",Apertura!E169,\" \",Apertura!F169),\"\")","v":""},{"$f":"IF(Apertura!AB169=\"Dependiente\",Apertura!C169,\" \")","v":" "},{"$f":"IF(Apertura!AB169=\"Dependiente\",Apertura!D169,\" \")","v":" "},null," ",{"$f":"IF(B203=\"\",\" \",IF(Apertura!C160>0,IF(Apertura!AD169=\"Dólares\",\"Dólares\",IF(Apertura!AD169=\"Soles\",\"Soles\",0)),\" \"))","v":" "},{"$f":"IF(Apertura!AB169=\"Dependiente\",\"SI\",\"\")","v":""}]
[null,{"$f":"IF(Apertura!AB170=\"Dependiente\",CONCATENATE(Apertura!G170,\" \",Apertura!H170,\" \",Apertura!E170,\" \",Apertura!F170),\"\")","v":""},{"$f":"IF(Apertura!AB170=\"Dependiente\",Apertura!C170,\" \")","v":" "},{"$f":"IF(Apertura!AB170=\"Dependiente\",Apertura!D170,\" \")","v":" "},null," ",{"$f":"IF(B204=\"\",\" \",IF(Apertura!C161>0,IF(Apertura!AD170=\"Dólares\",\"Dólares\",IF(Apertura!AD170=\"Soles\",\"Soles\",0)),\" \"))","v":" "},{"$f":"IF(Apertura!AB170=\"Dependiente\",\"SI\",\"\")","v":""}]
[null,{"$f":"IF(Apertura!AB171=\"Dependiente\",CONCATENATE(Apertura!G171,\" \",Apertura!H171,\" \",Apertura!E171,\" \",Apertura!F171),\"\")","v":""},{"$f":"IF(Apertura!AB171=\"Dependiente\",Apertura!C171,\" \")","v":" "},{"$f":"IF(Apertura!AB171=\"Dependiente\",Apertura!D171,\" \")","v":" "},null," ",{"$f":"IF(B205=\"\",\" \",IF(Apertura!C162>0,IF(Apertura!AD171=\"Dólares\",\"Dólares\",IF(Apertura!AD171=\"Soles\",\"Soles\",0)),\" \"))","v":" "},{"$f":"IF(Apertura!AB171=\"Dependiente\",\"SI\",\"\")","v":""}]
[null,{"$f":"IF(Apertura!AB172=\"Dependiente\",CONCATENATE(Apertura!G172,\" \",Apertura!H172,\" \",Apertura!E172,\" \",Apertura!F172),\"\")","v":""},{"$f":"IF(Apertura!AB172=\"Dependiente\",Apertura!C172,\" \")","v":" "},{"$f":"IF(Apertura!AB172=\"Dependiente\",Apertura!D172,\" \")","v":" "},null," ",{"$f":"IF(B206=\"\",\" \",IF(Apertura!C163>0,IF(Apertura!AD172=\"Dólares\",\"Dólares\",IF(Apertura!AD172=\"Soles\",\"Soles\",0)),\" \"))","v":" "},{"$f":"IF(Apertura!AB172=\"Dependiente\",\"SI\",\"\")","v":""}]
[null,{"$f":"IF(Apertura!AB173=\"Dependiente\",CONCATENATE(Apertura!G173,\" \",Apertura!H173,\" \",Apertura!E173,\" \",Apertura!F173),\"\")","v":""},{"$f":"IF(Apertura!AB173=\"Dependiente\",Apertura!C173,\" \")","v":" "},{"$f":"IF(Apertura!AB173=\"Dependiente\",Apertura!D173,\" \")","v":" "},null," ",{"$f":"IF(B207=\"\",\" \",IF(Apertura!C164>0,IF(Apertura!AD173=\"Dólares\",\"Dólares\",IF(Apertura!AD173=\"Soles\",\"Soles\",0)),\" \"))","v":" "},{"$f":"IF(Apertura!AB173=\"Dependiente\",\"SI\",\"\")","v":""}]

{"sheet":"Trama","index":3,"n_rows":0,"n_cols":0,"rows_kept":0,"cut":false,"hidden":true,"merged":[]}

{"sheet":"Tablas_Ayuda","index":4,"n_rows":243,"n_cols":29,"rows_kept":243,"cut":false,"hidden":true,"merged":[]}
[null,2,3,4,5,6,7,8,9,10,11,12,13,14,15]
["Tipo de documento",null,null,"Tipo de Residencia",null,null,"Estado Civil",null,null,null,"Tipo de Vía",null,null,"Tipo de Zona",null,null,"CDR Empresa",null,null,null,null,"Ocupación","C4",null,"Cargo","C4",null,"Profesion","C3"]
[]
[1,"LIB.ELEC/D.N.I.",null,1,"RESIDENTE EN EL PAIS",null,"C","CASADO",null,null,1,"AVENIDA",null,1,"URBANIZACION",null,"016","RED AGENCIA",{"$f":"CONCATENATE(Q4,\" - \",R4)","v":"016 - RED AGENCIA"},null,null,0,"TIPO DE OCUPACION   ",null,0,"CARGO ACTUAL     ",null,1,"AUXILIAR DE ADMINISTRACION             "]
[2,"CARNET EXTRANJERIA",null,2,"RESID. CASA MATRIZ EXTERIOR",null,"S","SOLTERO",null,null,2,"JIRON",null,2,"PUEBLO JOVEN",null,"003","FFVV INTERNA HIPOTECARIO",{"$f":"CONCATENATE(Q5,\" - \",R5)","v":"003 - FFVV INTERNA HIPOTECARIO"},null,null,1,"DEPENDIENTE         ",null,1,"GERENTE GENERAL      ",null,2,"ANTROPOLOGO, ARQUEOLOGO Y ETNOLOGO     "]
[7,"PASAPORTE",null,3,"NO RESID CON NACIONAL PERUANA",null,"D","DIVORCIADO",null,null,3,"CALLE",null,3,"UNIDAD VECINAL",null,"014","FFVV INTERNA PP LIMA",{"$f":"CONCATENATE(Q6,\" - \",R6)","v":"014 - FFVV INTERNA PP LIMA"},null,null,2,"INDEPENDIENTE       ",null,2,"GERENTE PRODUCCION    ",null,3,"ABOGADO                                "]
[null,null,null,4,"OTROS NO RESIDENTES",null,"V","VIUDO",null,null,4,"PASAJE",null,4,"CONJUNTO HABITACIONAL",null,"030","FFVV INTERNA PP LIMA ASESORES DE CONVENIOS",{"$f":"CONCATENATE(Q7,\" - \",R7)","v":"030 - FFVV INTERNA PP LIMA ASESORES DE CONVENIOS"},null,null,3,"ESTUDIANTE          ",null,3,"GERENTE RR.HH        ",null,4,"AMA DE CASA                            "]
[null,null,null,null,null,null,"E","CONVIVIENTE",null,null,5,"ALAMEDA",null,5,"ASENTAMIENTO HUMANO",null,"036","FFVV INTERNA PAYROLL",{"$f":"CONCATENATE(Q8,\" - \",R8)","v":"036 - FFVV INTERNA PAYROLL"},null,null,4,"JUBILADO            ",null,4,"GERENTE FINANZAS     ",null,5,"ACTOR,ARTISTA Y DIRECTOR DE ESPECTACULOS"]
[null,null,null,null,null,null,"O","OTROS",null,null,6,"MALECON",null,6,"COOPERATIVA",null,"102","BURO PROVINCIA","102 - BURO PROVINCIA",null,null,5,"SU CASA             ",null,5,"GERENTE INFORMATICA  ",null,6,"ADMINISTRADOR                          "]
[null,null,null,null,null,null,"N","NO REGISTRADO",null,null,7,"OVALO",null,7,"RESIDENCIAL",null,"238","PROFUTURO AFP",{"$f":"CONCATENATE(Q10,\" - \",R10)","v":"238 - PROFUTURO AFP"},null,null,7,"RENTISTA            ",null,6,"EMPLEADO             ",null,7,"ADMINISTRADOR DE EMPRESAS(PROFESIONAL) "]
[null,null,null,null,null,null,null,null,null,null,8,"PARQUE",null,8,"ZONA INDUSTRIAL",null,"319","BURO LIMA","319 - BURO LIMA",null,null,8,"OTROS - BACK OFFICE",null,7,"FUNCIONARIO          ",null,8,"AGRICULTOR                             "]
[null,null,null,null,null,null,null,null,null,null,9,"PLAZA",null,9,"GRUPO",null,"342","MF PAYROLL LIMA","342 - MF PAYROLL LIMA",null,null,null,null,null,8,"GERENTE              ",null,9,"AGRONOMO                               "]
[null,null,null,null,null,null,null,null,null,null,10,"CARRETERA",null,10,"CASERIO",null,"378","BURO PAYROLL PROVINCIA","378 - BURO PAYROLL PROVINCIA",null,null,null,null,null,9,"GERENTE MARKETING    ",null,10,"AGRIMENSOR Y TOPOGRAFO                 "]
[null,null,null,null,null,null,null,null,null,null,11,"BLOCK",null,11,"FUNDO",null,"380","ODISEC PRESTAMOS (MULTIPRODUCTO)","380 - ODISEC PRESTAMOS (MULTIPRODUCTO)",null,null,null,null,null,10,"GERENTE OPERACIONES  ",null,11,"ALBA¥IL                                "]
[null,null,null,null,null,null,null,null,null,null,99,"----------",null,99,"------------------",null,"398","TCONTAKTO PAYROLL (MULTIPRODUCTO)","398 - TCONTAKTO PAYROLL (MULTIPRODUCTO)",null,null,null,null,null,11,"GERENTE PRODUCTOS    ",null,12,"ARCHIVERO                              "]
["Países",null,null,"Códigos de Área (Teléfono fijo)",null,null,null,null,null,null,null,null,null,null,null,null,"400","GSS PAYROLL (MULTIPRODUCTO)","400 - GSS PAYROLL (MULTIPRODUCTO)",null,null,null,null,null,12,"GERENTE VENTAS       ",null,13,"ARQUITECTO                             "]
[589,"PERU",null,null,null,null,null,null,null,null,null,null,null,null,null,null,"999","USUARIO GENERICO","999 - USUARIO GENERICO",null,null,null,null,null,13,"JEFE                 ",null,14,"ANALISTAS DE SISTEMA Y COMPUTACION     "]
[17,"ALBANIA",null,"001","LIMA         ","001 - LIMA         ",null,null,null,null,null,null,null,null,null,null,null,null,null,null,null,null,null,null,14,"SUB GERENTE          ",null,15,"ASESOR                                 "]
[20,"ALBORAN Y PEREJIL, ISLAS",null,"041","AMAZONAS     ","041 - AMAZONAS     ",null,null,null,null,null,null,null,null,null,null,null,null,null,null,null,null,null,null,15,"OTROS                ",null,16,"ARTESANO DE CUERO"]
[23,"GERMANY",null,"042","SAN MARTIN   ","042 - SAN MARTIN   ",null,null,null,null,null,null,null,null,null,null,null,null,null,null,null,null,null,null,16,"GERENTE ADMINISTRACION",null,17,"ARTESANO TEXTIL"]
[25,"ALEMANIA ORIENTAL R.D.A.",null,"043","ANCASH       ","043 - ANCASH       ",null,null,null,null,"Rango Dolares","Rango Dolares",null,null,null,null,null,null,null,null,null,null,null,null,17,"CONTADOR GENERAL     ",null,18,"BACTERIOLOGO, FARMACOLOGO"]
[31,"ALTO VOLTA",null,"044","LA LIBERTAD  ","044 - LA LIBERTAD  ",null,null,null,null,null,null,null,null,null,null,null,null,null,null,null,null,null,null,18,"AUDITOR INTERNO      ",null,19,"BIOLOGO"]
[37,"ANDORRA",null,"051","PUNO         ","051 - PUNO         ",null,null,null,1,"0-450","0-1575",null,450,null,null,null,null,null,null,null,null,null,null,19,"NO INFORMADO         ",null,20,"COMERCIALIZACION DE ARROZ"]
[40,"ANGOLA",null,"052","TACNA        ","052 - TACNA        ",null,null,null,2,"451-1200","1576-4200",null,1200,null,null,null,null,null,null,null,null,null,null,20,"ASESOR               ",null,21,"CAMBISTA"]
[43,"ANTIGUA, ISLA",null,"053","MOQUEGUA     ","053 - MOQUEGUA     ",null,null,null,3,"1201-2000","4201-7000",null,2000,null,null,null,null,null,null,null,null,null,null,21,"PRACTICANTE        ",null,22,"FOTOGRAFO Y OPERADORES CAMARA, CINE Y TV"]
[47,"ANTILLAS HOLANDESAS",null,"054","AREQUIPA     ","054 - AREQUIPA     ",null,null,null,4,"2001-5000","7001-17500",null,5000,null,null,null,null,null,null,null,null,null,null,null,null,null,23,"CIRUJANO PLASTICO"]
[53,"ARABIA SAUDITA",null,"056","ICA          ","056 - ICA          ",null,null,null,5,"5001-10000","17501-35000",null,10000,null,null,null,null,null,null,null,null,null,null,null,null,null,24,"COREOGRAFO Y BAILARINES"]
[59,"ARGELIA",null,"061","UCAYALI      ","061 - UCAYALI      ",null,null,null,6,"10001-1000000","35001-3500000",null,1000000,null,null,null,null,null,null,null,null,null,null,null,null,null,26,"COSMETOLOGO, PELUQUERO Y BARBERO"]
[63,"ARGENTINA",null,"062","HUANUCO      ","062 - HUANUCO      ",null,null,null,null,null,null,null,null,null,null,null,null,null,null,null,null,null,null,null,null,null,27,"CARPINTERO"]
[69,"AUSTRALIA",null,"063","PASCO        ","063 - PASCO        ",null,null,null,null,null,null,null,null,null,null,null,null,null,null,null,null,null,null,null,null,null,28,"CONFECCIONISTA DE ROPA"]
[72,"AUSTRIA",null,"064","JUNIN        ","064 - JUNIN        ",null,null,null,null,null,null,null,null,null,null,null,null,null,null,null,null,null,null,null,null,null,29,"CONSULTOR"]
[77,"BAHAMAS, ISLAS",null,"065","LORETO       ","065 - LORETO       ",null,null,null,null,null,null,null,null,null,null,null,null,null,null,null,null,null,null,null,null,null,30,"CONTADOR"]
[80,"BAHREIN",null,"066","HUANCAVELICA ","066 - HUANCAVELICA ",null,null,null,null,null,null,null,null,null,null,null,null,null,null,null,null,null,null,null,null,null,31,"CATEDRATICO"]
[81,"BANGLADESH",null,"072","TUMBES       ","072 - TUMBES       ",null,null,null,null,null,null,null,null,null,null,null,null,null,null,null,null,null,null,null,null,null,32,"CONDUCTOR DE VEHICULOS DE MOTOR"]
[83,"BARBADOS",null,"073","PIURA        ","073 - PIURA        ",null,null,null,null,null,null,null,null,null,null,null,null,null,null,null,null,null,null,null,null,null,33,"CORTE Y CONFECCION"]
[85,"TOKELAN, ISLAS",null,"074","LAMBAYEQUE   ","074 - LAMBAYEQUE   ",null,null,null,null,null,null,null,null,null,null,null,null,null,null,null,null,null,null,null,null,null,34,"DIRECTIVO DE ASOCIACION DEPORTIVA"]
[87,"BELGIUM",null,"076","CAJAMARCA    ","076 - CAJAMARCA    ",null,null,null,null,null,null,null,null,null,null,null,null,null,null,null,null,null,null,null,null,null,35,"DECORADOR, DIBUJANTE, PUBLICISTA, DISE¥A"]
[88,"BELICE",null,"082","MADRE DE DIOS","082 - MADRE DE DIOS",null,null,null,null,null,null,null,null,null,null,null,null,null,null,null,null,null,null,null,null,null,36,"DISE¥ADORA"]
[90,"BERMUDAS",null,"083","APURIMAC     ","083 - APURIMAC     ",null,null,null,null,null,null,null,null,null,null,null,null,null,null,null,null,null,null,null,null,null,37,"DIRECTOR DE EMPRESAS"]
[93,"BIRMANIA",null,"084","CUSCO        ","084 - CUSCO        ",null,null,null,null,null,null,null,null,null,null,null,null,null,null,null,null,null,null,null,null,null,38,"DOCENTE"]
[97,"BOLIVIA",null,null,null,"----------",null,null,null,null,null,null,null,null,null,null,null,null,null,null,null,null,null,null,null,null,null,39,"DEPORTISTA PROFESIONAL Y ATLETA"]
[101,"BOTSWANA",null,null,null,null,null,null,null,null,null,null,null,null,null,null,null,null,null,null,null,null,null,null,null,null,null,40,"DIPLOMATICO"]
[105,"BRASIL",null,null,null,null,null,null,null,null,null,null,null,null,null,null,null,null,null,null,null,null,null,null,null,null,null,41,"ECONOMISTA"]
[108,"BRUNEI",null,null,null,null,null,null,null,null,null,null,null,null,null,null,null,null,null,null,null,null,null,null,null,null,null,42,"ESCULTOR"]
[111,"BULGARIA",null,null,null,null,null,null,null,null,null,null,null,null,null,null,null,null,null,null,null,null,null,null,null,null,null,43,"ENTRENADOR DEPORTIVO"]
[115,"BURUNDI",null,null,null,null,null,null,null,null,null,null,null,null,null,null,null,null,null,null,null,null,null,null,null,null,null,44,"ESCENOGRAFO"]
[119,"BUTAN",null,null,null,null,null,null,null,null,null,null,null,null,null,null,null,null,null,null,null,null,null,null,null,null,null,45,"EJECUTIVO"]
[127,"CABO VERDE,RCA. DE",null,null,null,null,null,null,null,null,null,null,null,null,null,null,null,null,null,null,null,null,null,null,null,null,null,46,"EMPLEADO"]
[131,"LUXEMBURGO",null,null,null,null,null,null,null,null,null,null,null,null,null,null,null,null,null,null,null,null,null,null,null,null,null,47,"EMPRESARIO"]
[137,"CAIMAN, ISLAS",null,null,null,null,null,null,null,null,null,null,null,null,null,null,null,null,null,null,null,null,null,null,null,null,null,48,"ENFERMERO"]
[141,"CAMBOYA",null,null,null,null,null,null,null,null,null,null,null,null,null,null,null,null,null,null,null,null,null,null,null,null,null,49,"ESTUDIANTE"]
[145,"CAMERUM",null,null,null,null,null,null,null,null,null,null,null,null,null,null,null,null,null,null,null,null,null,null,null,null,null,50,"ESPECIALISTA EN TRATAMIENTO DE BELLEZA"]
[149,"CANADA",null,null,null,null,null,null,null,null,null,null,null,null,null,null,null,null,null,null,null,null,null,null,null,null,null,51,"ELECTRICISTA (TECNICO)"]
[153,"CANARIAS, ISLAS",null,null,null,null,null,null,null,null,null,null,null,null,null,null,null,null,null,null,null,null,null,null,null,null,null,52,"FARMACEUTICO"]
[159,"CIUDAD DEL VATICANO",null,null,null,null,null,null,null,null,null,null,null,null,null,null,null,null,null,null,null,null,null,null,null,null,null,53,"FABRICANTE DE PRENDAS"]
[165,"COCOS, ISLAS",null,null,null,null,null,null,null,null,null,null,null,null,null,null,null,null,null,null,null,null,null,null,null,null,null,54,"FUNCIONARIO"]
[169,"COLOMBIA",null,null,null,null,null,null,null,null,null,null,null,null,null,null,null,null,null,null,null,null,null,null,null,null,null,55,"GERENTE DE ADMINISTRACION Y EMPRESAS"]
[173,"COMORAS",null,null,null,null,null,null,null,null,null,null,null,null,null,null,null,null,null,null,null,null,null,null,null,null,null,56,"GERENTE"]
[177,"CONGO",null,null,null,null,null,null,null,null,null,null,null,null,null,null,null,null,null,null,null,null,null,null,null,null,null,57,"GASFITERO"]
[183,"COOK,ISLAS",null,null,null,null,null,null,null,null,null,null,null,null,null,null,null,null,null,null,null,null,null,null,null,null,null,58,"GERENTE GENERAL"]
[187,"COREA DEL NORTE",null,null,null,null,null,null,null,null,null,null,null,null,null,null,null,null,null,null,null,null,null,null,null,null,null,59,"GEOGRAFO"]
[190,"COREA DEL SUR",null,null,null,null,null,null,null,null,null,null,null,null,null,null,null,null,null,null,null,null,null,null,null,null,null,60,"INGENIERIA ADMINISTRATIVA"]
[193,"COSTA DE MARFIL",null,null,null,null,null,null,null,null,null,null,null,null,null,null,null,null,null,null,null,null,null,null,null,null,null,61,"INDEPENDIENTE                          "]
[196,"COSTA RICA",null,null,null,null,null,null,null,null,null,null,null,null,null,null,null,null,null,null,null,null,null,null,null,null,null,62,"INGENIERO"]
[199,"CUBA",null,null,null,null,null,null,null,null,null,null,null,null,null,null,null,null,null,null,null,null,null,null,null,null,null,63,"INTERPRETE, TRADUCTOR, FILOSOFO"]
[203,"CHAD",null,null,null,null,null,null,null,null,null,null,null,null,null,null,null,null,null,null,null,null,null,null,null,null,null,64,"JUBILADO"]
[207,"CZECH REPUBLIC",null,null,null,null,null,null,null,null,null,null,null,null,null,null,null,null,null,null,null,null,null,null,null,null,null,65,"JEFE DE PLANEAMIENTO"]
[211,"CHILE",null,null,null,null,null,null,null,null,null,null,null,null,null,null,null,null,null,null,null,null,null,null,null,null,null,66,"JOYERO Y/O PLATERO"]
[215,"CHINA",null,null,null,null,null,null,null,null,null,null,null,null,null,null,null,null,null,null,null,null,null,null,null,null,null,67,"LABORATORISTA (TECNICO)"]
[218,"TAIWAN",null,null,null,null,null,null,null,null,null,null,null,null,null,null,null,null,null,null,null,null,null,null,null,null,null,68,"AUTOR LITERARIO, ESCRITOR Y CRITICO"]
[221,"CHIPRE",null,null,null,null,null,null,null,null,null,null,null,null,null,null,null,null,null,null,null,null,null,null,null,null,null,69,"LOCUTOR DE RADIO, TV"]
[229,"DENIN",null,null,null,null,null,null,null,null,null,null,null,null,null,null,null,null,null,null,null,null,null,null,null,null,null,70,"MECANICO MOTORES AVIONES  Y NAVES MARINA"]
[232,"DENMARK",null,null,null,null,null,null,null,null,null,null,null,null,null,null,null,null,null,null,null,null,null,null,null,null,null,71,"MILITAR"]
[235,"DOMINICA, ISLA",null,null,null,null,null,null,null,null,null,null,null,null,null,null,null,null,null,null,null,null,null,null,null,null,null,72,"MODELO"]
[239,"ECUADOR",null,null,null,null,null,null,null,null,null,null,null,null,null,null,null,null,null,null,null,null,null,null,null,null,null,73,"METALURGISTA"]
[240,"EGIPTO",null,null,null,null,null,null,null,null,null,null,null,null,null,null,null,null,null,null,null,null,null,null,null,null,null,74,"MUSICO"]
[242,"EL SALVADOR",null,null,null,null,null,null,null,null,null,null,null,null,null,null,null,null,null,null,null,null,null,null,null,null,null,75,"MECANICO DE VEHICULOS DE MOTOR"]
[244,"EMIRATOS ARABES UNIDOS",null,null,null,null,null,null,null,null,null,null,null,null,null,null,null,null,null,null,null,null,null,null,null,null,null,76,"MEDICO Y CIRUJANO"]
[245,"ESPAÑA",null,null,null,null,null,null,null,null,null,null,null,null,null,null,null,null,null,null,null,null,null,null,null,null,null,77,"NO DECLARADO"]
[246,"SLOVAKIA",null,null,null,null,null,null,null,null,null,null,null,null,null,null,null,null,null,null,null,null,null,null,null,null,null,78,"NUTRICIONISTA"]
[249,"U.S.A.",null,null,null,null,null,null,null,null,null,null,null,null,null,null,null,null,null,null,null,null,null,null,null,null,null,79,"OBRERO"]
[253,"ETIOPIA",null,null,null,null,null,null,null,null,null,null,null,null,null,null,null,null,null,null,null,null,null,null,null,null,null,80,"OBSTETRIZ"]
[259,"FEROE, ISLAS",null,null,null,null,null,null,null,null,null,null,null,null,null,null,null,null,null,null,null,null,null,null,null,null,null,81,"ODONTOLOGO"]
[267,"FILIPINAS",null,null,null,null,null,null,null,null,null,null,null,null,null,null,null,null,null,null,null,null,null,null,null,null,null,82,"OFICIAL DE LAS FUERZAS ARMADAS"]
[271,"FINLANDIA",null,null,null,null,null,null,null,null,null,null,null,null,null,null,null,null,null,null,null,null,null,null,null,null,null,83,"PROFESION U OCUPACION NO ESPECIFICADA"]
[275,"FRANCE",null,null,null,null,null,null,null,null,null,null,null,null,null,null,null,null,null,null,null,null,null,null,null,null,null,84,"OPERADOR"]
[281,"GABON",null,null,null,null,null,null,null,null,null,null,null,null,null,null,null,null,null,null,null,null,null,null,null,null,null,86,"PENSIONISTA"]
[285,"GAMBIA",null,null,null,null,null,null,null,null,null,null,null,null,null,null,null,null,null,null,null,null,null,null,null,null,null,87,"PERIODISTA"]
[289,"GHANA",null,null,null,null,null,null,null,null,null,null,null,null,null,null,null,null,null,null,null,null,null,null,null,null,null,88,"PILOTO DE AERONAVES"]
[293,"GIBRALTAR",null,null,null,null,null,null,null,null,null,null,null,null,null,null,null,null,null,null,null,null,null,null,null,null,null,89,"PINTOR"]
[297,"GRENADA",null,null,null,null,null,null,null,null,null,null,null,null,null,null,null,null,null,null,null,null,null,null,null,null,null,90,"MIEMBRO PNP"]
[301,"GRECIA",null,null,null,null,null,null,null,null,null,null,null,null,null,null,null,null,null,null,null,null,null,null,null,null,null,91,"PODOLOGOS"]
[305,"GROENLANDIA",null,null,null,null,null,null,null,null,null,null,null,null,null,null,null,null,null,null,null,null,null,null,null,null,null,92,"POLICIA"]
[309,"GUADALUPE Y DEPENDENCIAS",null,null,null,null,null,null,null,null,null,null,null,null,null,null,null,null,null,null,null,null,null,null,null,null,null,93,"PROFESOR"]
[313,"GUAM",null,null,null,null,null,null,null,null,null,null,null,null,null,null,null,null,null,null,null,null,null,null,null,null,null,94,"PSICOLOGO"]
[317,"GUATEMALA",null,null,null,null,null,null,null,null,null,null,null,null,null,null,null,null,null,null,null,null,null,null,null,null,null,95,"PUBLICISTA"]
[320,"GUERNSEY",null,null,null,null,null,null,null,null,null,null,null,null,null,null,null,null,null,null,null,null,null,null,null,null,null,96,"RECICLADOR"]
[325,"GUAYANA FRANCESA",null,null,null,null,null,null,null,null,null,null,null,null,null,null,null,null,null,null,null,null,null,null,null,null,null,97,"REGIDORES DE MUNICIPALIDADES"]
[329,"GUINEA",null,null,null,null,null,null,null,null,null,null,null,null,null,null,null,null,null,null,null,null,null,null,null,null,null,98,"RELACIONISTA PUBLICO E INDUSTRIAL"]
[331,"GUINEA ECUATORIAL",null,null,null,null,null,null,null,null,null,null,null,null,null,null,null,null,null,null,null,null,null,null,null,null,null,99,"RADIO TECNICO"]
[334,"GUINEA BISSAU",null,null,null,null,null,null,null,null,null,null,null,null,null,null,null,null,null,null,null,null,null,null,null,null,null,100,"SASTRE"]
[337,"GUYANA",null,null,null,null,null,null,null,null,null,null,null,null,null,null,null,null,null,null,null,null,null,null,null,null,null,101,"SECRETARIA"]
[341,"HAITI",null,null,null,null,null,null,null,null,null,null,null,null,null,null,null,null,null,null,null,null,null,null,null,null,null,102,"SEGURIDAD"]
[345,"HONDURAS",null,null,null,null,null,null,null,null,null,null,null,null,null,null,null,null,null,null,null,null,null,null,null,null,null,103,"SOCIOLOGO"]
[351,"HONG KONG",null,null,null,null,null,null,null,null,null,null,null,null,null,null,null,null,null,null,null,null,null,null,null,null,null,104,"TAPICERO"]
[355,"HUNGRIA",null,null,null,null,null,null,null,null,null,null,null,null,null,null,null,null,null,null,null,null,null,null,null,null,null,105,"TAXIDERMISTA, DISECADOR DE ANIMALES"]
[361,"INDIA",null,null,null,null,null,null,null,null,null,null,null,null,null,null,null,null,null,null,null,null,null,null,null,null,null,106,"TECNICO"]
[365,"INDONESIA",null,null,null,null,null,null,null,null,null,null,null,null,null,null,null,null,null,null,null,null,null,null,null,null,null,107,"TRANSPORTISTA"]
[369,"IRAK",null,null,null,null,null,null,null,null,null,null,null,null,null,null,null,null,null,null,null,null,null,null,null,null,null,108,"TURISTA"]
[372,"IRAN",null,null,null,null,null,null,null,null,null,null,null,null,null,null,null,null,null,null,null,null,null,null,null,null,null,109,"VARIOS"]
[375,"IRLANDA -EIRE-",null,null,null,null,null,null,null,null,null,null,null,null,null,null,null,null,null,null,null,null,null,null,null,null,null,110,"VENDEDOR"]
[379,"ISLANDIA",null,null,null,null,null,null,null,null,null,null,null,null,null,null,null,null,null,null,null,null,null,null,null,null,null,999,"OTROS"]
[383,"ISRAEL",null,null,null,null,null,null,null,null,null,null,null,null,null,null,null,null,null,null,null,null,null,null,null,null,null,111,"NEGOCIO INDEPENDIENTE"]
[386,"ITALY",null,null,null,null,null,null,null,null,null,null,null,null,null,null,null,null,null,null,null,null,null,null,null,null,null,112,"VENTA DE ALIMENTOS BEBIDAS Y TABACO    "]
[391,"JAMAICA",null,null,null,null,null,null,null,null,null,null,null,null,null,null,null,null,null,null,null,null,null,null,null,null,null,113,"OTROS - BACK OFFICE"]
[399,"JAPAN",null,null,null,null,null,null,null,null,null,null,null,null,null,null,null,null,null,null,null,null,null,null,null,null,null,114,"RENTISTA"]
[403,"JORDANIA",null,null,null,null,null,null,null,null,null,null,null,null,null,null,null,null,null,null,null,null,null,null,null,null,null,115,"BACHILLER                              "]
[410,"KENIA",null,null,null,null,null,null,null,null,null,null,null,null,null,null,null,null,null,null,null,null,null,null,null,null,null,116,"SECUNDARIA COMPLETA"]
[413,"KUWAIT",null,null,null,null,null,null,null,null,null,null,null,null,null,null,null,null,null,null,null,null,null,null,null,null,null,118,"AMA DE CASA"]
[420,"LAOS",null,null,null,null,null,null,null,null,null,null,null,null,null,null,null,null,null,null,null,null,null,null,null,null,null,122,"COCINERA                               "]
[426,"LESOTHO",null,null,null,null,null,null,null,null,null,null,null,null,null,null,null,null,null,null,null,null,null,null,null,null,null,123,"ENFERMERA                              "]
[427,"LATVIA",null,null,null,null,null,null,null,null,null,null,null,null,null,null,null,null,null,null,null,null,null,null,null,null,null,124,"COCINERO                               "]
[431,"LIBANO",null,null,null,null,null,null,null,null,null,null,null,null,null,null,null,null,null,null,null,null,null,null,null,null,null,125,"ASISTENTE ADMINISTRATIVO               "]
[434,"LIBERIA",null,null,null,null,null,null,null,null,null,null,null,null,null,null,null,null,null,null,null,null,null,null,null,null,null,126,"ASISTENTE CONTABLE                     "]
[438,"LIBIA",null,null,null,null,null,null,null,null,null,null,null,null,null,null,null,null,null,null,null,null,null,null,null,null,null,127,"AUXILIAR CONTABLE                      "]
[440,"LIECHTENSTEIN",null,null,null,null,null,null,null,null,null,null,null,null,null,null,null,null,null,null,null,null,null,null,null,null,null,128,"PROMOTOR DE SERVICIOS                  "]
[441,"LUXEMBURGO",null,null,null,null,null,null,null,null,null,null,null,null,null,null,null,null,null,null,null,null,null,null,null,null,null,129,"ASISTENTE DE VENTAS Y SERVICIOS        "]
[447,"MACAO",null,null,null,null,null,null,null,null,null,null,null,null,null,null,null,null,null,null,null,null,null,null,null,null,null,130,"FUNCIONARIO DE BANCA PERSONAL          "]
[450,"MADAGASCAR",null,null,null,null,null,null,null,null,null,null,null,null,null,null,null,null,null,null,null,null,null,null,null,null,null,131,"FUNCIONARIO DE NEGOCIOS                "]
[455,"MALASIA",null,null,null,null,null,null,null,null,null,null,null,null,null,null,null,null,null,null,null,null,null,null,null,null,null,132,"FUNCIONARIO PYME                        "]
[458,"MALAWI",null,null,null,null,null,null,null,null,null,null,null,null,null,null,null,null,null,null,null,null,null,null,null,null,null,133,"ASESOR DE VENTAS Y SERVICIOS           "]
[461,"MALDIVAS",null,null,null,null,null,null,null,null,null,null,null,null,null,null,null,null,null,null,null,null,null,null,null,null,null,134,"QUIMICO FARMACEUTICO                   "]
[464,"MALI",null,null,null,null,null,null,null,null,null,null,null,null,null,null,null,null,null,null,null,null,null,null,null,null,null,135,"OPERARIO DE LIMPIEZA                   "]
[467,"MALTA",null,null,null,null,null,null,null,null,null,null,null,null,null,null,null,null,null,null,null,null,null,null,null,null,null,136,"ATENCIàN AL CLIENTE                    "]
[474,"MARRUECOS",null,null,null,null,null,null,null,null,null,null,null,null,null,null,null,null,null,null,null,null,null,null,null,null,null,137,"GERENTE DE AGENCIA MASTER              "]
[477,"MARTINICA",null,null,null,null,null,null,null,null,null,null,null,null,null,null,null,null,null,null,null,null,null,null,null,null,null,138,"CAJERO                                  "]
[485,"MAURICIO",null,null,null,null,null,null,null,null,null,null,null,null,null,null,null,null,null,null,null,null,null,null,null,null,null,139,"ASESOR DE COBRANZA                     "]
[488,"MAURITANIA",null,null,null,null,null,null,null,null,null,null,null,null,null,null,null,null,null,null,null,null,null,null,null,null,null,140,"FISCALIZACIàN GTU                      "]
[493,"MEXICO",null,null,null,null,null,null,null,null,null,null,null,null,null,null,null,null,null,null,null,null,null,null,null,null,null,141,"SUPERVISOR                             "]
[496,"MONACO,PRINCIPADO DE",null,null,null,null,null,null,null,null,null,null,null,null,null,null,null,null,null,null,null,null,null,null,null,null,null,142,"JEFE DE ALMACEN                        "]
[497,"MONGOLIA REP.POPULAR DE",null,null,null,null,null,null,null,null,null,null,null,null,null,null,null,null,null,null,null,null,null,null,null,null,null,143,"ASISTENTE DE MARKETING"]
[501,"MONTSERRAT, ISLA",null,null,null,null,null,null,null,null,null,null,null,null,null,null,null,null,null,null,null,null,null,null,null,null,null,144,"TRABAJADORA DEL HOGAR"]
[504,"MOYOTTE",null,null,null,null,null,null,null,null,null,null,null,null,null,null,null,null,null,null,null,null,null,null,null,null,null,145,"ASESOR COMERCIAL"]
[505,"MOZAMBIQUE",null,null,null,null,null,null,null,null,null,null,null,null,null,null,null,null,null,null,null,null,null,null,null,null,null,146,"PRACTICANTE DE TI                      "]
[508,"NAURU",null,null,null,null,null,null,null,null,null,null,null,null,null,null,null,null,null,null,null,null,null,null,null,null,null,147,"OBSTETRA                               "]
[511,"NAVIDAD, ISLAS",null,null,null,null,null,null,null,null,null,null,null,null,null,null,null,null,null,null,null,null,null,null,null,null,null,148,"TECNICO                                "]
[517,"NEPAL",null,null,null,null,null,null,null,null,null,null,null,null,null,null,null,null,null,null,null,null,null,null,null,null,null,149]
[521,"NICARAGUA",null,null,null,null,null,null,null,null,null,null,null,null,null,null,null,null,null,null,null,null,null,null,null,null,null,150,1]
[525,"NIGER",null,null,null,null,null,null,null,null,null,null,null,null,null,null,null,null,null,null,null,null,null,null,null,null,null,151,"COMERCIANTE                            "]
[528,"NIGERIA",null,null,null,null,null,null,null,null,null,null,null,null,null,null,null,null,null,null,null,null,null,null,null,null,null,152,"OBRERO  "]
[531,"NIUE, ISLA"]
[535,"NORFOLK,ISLA"]
[538,"NORUEGA"]
[542,"NUEVA CALEDONIA"]
[545,"PAPUA NUEVA GUINEA"]
[548,"NUEVA ZELANDIA"]
[551,"NUEVAS HEBRIDAS"]
[556,"OMAN"]
[563,"PACIFICO,ISLAS-ADMINISTR.EEUU-"]
[566,"PACIFICO,ISLAS-POSESION EEUU-"]
[569,"PACIFICO,ISLAS-FIDEICOMIS.EEUU"]
[573,"PAISES BAJOS"]
[576,"PAKISTAN"]
[580,"PANAMA"]
[586,"PARAGUAY"]
[13,"AFGANISTAN"]
[593,"PITCAIRN, ISLA"]
[599,"POLINESIA FRANCESA"]
[603,"POLONIA"]
[607,"PORTUGAL"]
[611,"PUERTO RICO"]
[618,"QATAR"]
[628,"ENGLAND"]
[640,"REPUBLICA CENTROAFRICANA"]
[647,"REPUBLICA DOMINICANA"]
[660,"REUNION,ISLA"]
[665,"RODESIA"]
[670,"RUMANIA"]
[675,"RWANDA"]
[690,"SAMOA OCCIDENTAL,EDOS INDEP."]
[695,"S.CRISTOBAL NEVIS Y ANGUILLA"]
[700,"SAN PEDRO Y MIQUELON"]
[705,"SAN VICENTE,ISLA"]
[710,"SANTA ELENA"]
[715,"SANTA LUCIA,ISLA"]
[720,"SANTO TOME Y PRINCIPE,ISLAS"]
[728,"SENEGAL"]
[731,"SEYCHELLES"]
[735,"SIERRA LEONA"]
[741,"SINGAPUR"]
[744,"SIRIA"]
[748,"SOMALIA"]
[750,"SRI LANKA"]
[756,"SUDAFRICA Y NAMIBIA, RCA DE"]
[759,"SUDAN"]
[764,"SWEDEN"]
[767,"SWITZERLAND"]
[770,"SURINAM"]
[776,"TAILANDIA"]
[780,"TANZANIA"]
[783,"DJIBOUTI"]
[785,"TERRIT.ALTA COMIS.PACIFICO OCC"]
[800,"TOGO"]
[810,"REINO DE TONGA"]
[815,"TRINIDAD Y TOBAGO"]
[820,"TUNEZ"]
[823,"TURCAS Y CAICOS,ISLAS"]
[827,"TURQUIA"]
[833,"UGANDA"]
[840,"U. R. S. S."]
[845,"URUGUAY"]
[850,"VENEZUELA"]
[855,"VIETNAM"]
[863,"VIRGENES,ISLAS-BRITANICAS-"]
[866,"VISGENES,ISLAS-U.S.A.-"]
[870,"FIDJI, ISLAS"]
[875,"WALLIS Y FUTUNA, ISLA"]
[880,"YEMEN DEL NORTE"]
[881,"YEMEN DEL SUR"]
[885,"YUGOESLAVIA"]
[888,"ZAIRE"]
[890,"ZAMBIA"]
[895,"ZONA DEL CANAL DE PANAMA"]
[901,"ARMENIA"]
[902,"AZERBAIJAN"]
[903,"GEORGIA"]
[904,"KAZAKHASTAN"]
[905,"KYRGYZSTAN"]
[906,"MOLDAVIA"]
[907,"RUSIA"]
[908,"TAJIKISTAN"]
[909,"TURKMENISTAN"]
[910,"UZBEKISTAN"]
[911,"BELARUS"]
[912,"UCRANIA"]
[913,"ESTONIA"]
[914,"LETONIA"]
[915,"LITUANIA"]
[916,"CROACIA"]
[917,"ESLOVENIA"]
[920,"ISLE OF MAN"]
[10,"SELECCIONAR"]
[999,"NO DECLARADOS"]

{"sheet":"Rangos","index":5,"n_rows":6,"n_cols":7,"rows_kept":6,"cut":false,"hidden":true,"merged":[]}
[null,null,"0-450",450,null,"0-1575",450]
[null,null,"10001-1000000",1000000,null,"1576-4200",1200]
[null,null,"1201-2000",2000,null,"17501-35000",10000]
[null,null,"2001-5000",5000,null,"35001-3500000",1000000]
[null,null,"451-1200",1200,null,"4201-7000",2000]
[null,null,"5001-10000",10000,null,"7001-17500",5000]

{"sheet":"Ubigeo","index":6,"n_rows":1834,"n_cols":28,"rows_kept":1834,"cut":false,"hidden":true,"merged":[[0,0,0,2],[0,4,0,7],[0,9,0,13]]}
["Tabla de Departamentos",null,null,null,"Tabla de Provincias",null,null,null,null,"Tabla de Distritos"]
["País","Cód.Dpto","Descripción",null,"País","Cod.Dpto","Cod.Provincia","Descripción",null,"País","Cod.Dpto","Cod.Provincia","Cod.Distrito","Descripción"]
[589,1,"AMAZONAS",null,589,1,1,"CHACHAPOYAS",null,589,1,1,1,"CHACHAPOYAS"]
[589,2,"ANCASH",null,589,1,2,"BAGUA",null,589,1,1,2,"ASUNCION",null,null,null,null,null,null,null,null,null,null,null,null,"ANCASH",{"$error":"#VALUE!"}]
[589,3,"APURIMAC",null,589,1,3,"BONGARA",null,589,1,1,3,"BALSAS",null,null,null,null,null,null,null,null,null,null,null,null,"APURIMAC",{"$error":"#VALUE!"}]
[589,4,"AREQUIPA",null,589,1,4,"CONDORCANQUI",null,589,1,1,4,"CHETO",null,null,null,null,null,null,null,null,null,null,null,null,"AREQUIPA",{"$error":"#VALUE!"}]
[589,5,"AYACUCHO",null,589,1,5,"LUYA",null,589,1,1,5,"CHILIQUIN",null,null,null,null,null,null,null,null,null,null,null,null,"AYACUCHO",{"$error":"#VALUE!"}]
[589,6,"CAJAMARCA",null,589,1,6,"RODRIGUEZ DE ME",null,589,1,1,6,"CHUQUIBAMBA",null,null,null,null,null,null,null,null,null,null,null,null,"CAJAMARCA",{"$error":"#VALUE!"}]
[589,7,"CALLAO",null,589,1,7,"UTCUBAMBA",null,589,1,1,7,"GRANADA",null,null,null,null,null,null,null,null,null,null,null,null,"CALLAO",{"$error":"#VALUE!"}]
[589,8,"CUZCO",null,589,2,1,"HUARAZ",null,589,1,1,8,"HUANCAS",null,null,null,null,null,null,null,null,null,null,null,null,"CUZCO",{"$error":"#VALUE!"}]
[589,9,"HUANCAVELICA",null,589,2,2,"AIJA",null,589,1,1,9,"LA JALCA",null,null,null,null,null,null,null,null,null,null,null,null,"HUANCAVELICA"]
[589,10,"HUANUCO",null,589,2,3,"ANTONIO RAYMOND",null,589,1,1,10,"LEIMEBAMBA",null,null,null,null,null,null,null,null,null,null,null,null,"HUANUCO"]
[589,11,"ICA",null,589,2,4,"ASUNCION",null,589,1,1,11,"LEVANTO",null,null,null,null,null,null,null,null,null,null,null,null,"ICA"]
[589,12,"JUNIN",null,589,2,5,"BOLOGNESI",null,589,1,1,12,"MAGDALENA",null,null,null,null,null,null,null,null,null,null,null,null,"JUNIN"]
[589,13,"LA LIBERTAD",null,589,2,6,"CARHUAZ",null,589,1,1,13,"MARISCAL CASTIL",null,null,null,null,null,null,null,null,null,null,null,null,"LA LIBERTAD"]
[589,14,"LAMBAYEQUE",null,589,2,7,"CARLOS F. FITZC",null,589,1,1,14,"MOLINOPAMPA",null,null,null,null,null,null,null,null,null,null,null,null,"LAMBAYEQUE"]
[589,15,"LIMA",null,589,2,8,"CASMA",null,589,1,1,15,"MONTEVIDEO",null,null,null,null,null,null,null,null,null,null,null,null,"LIMA"]
[589,16,"LORETO",null,589,2,9,"CORONGO",null,589,1,1,16,"OLLEROS",null,null,null,null,null,null,null,null,null,null,null,null,"LORETO"]
[589,17,"MADRE DE DIOS",null,589,2,10,"HUARI",null,589,1,1,17,"QUINJALCA",null,null,null,null,null,null,null,null,null,null,null,null,"MADRE DE DIOS"]
[589,18,"MOQUEGUA",null,589,2,11,"HUARMEY",null,589,1,1,18,"SAN FRANCISCO D",null,null,null,null,null,null,null,null,null,null,null,null,"MOQUEGUA"]
[589,19,"PASCO",null,589,2,12,"HUAYLAS",null,589,1,1,19,"SAN ISIDRO DE M",null,null,null,null,null,null,null,null,null,null,null,null,"PASCO"]
[589,20,"PIURA",null,589,2,13,"MARISCAL LUZURI",null,589,1,1,20,"SOLOCO",null,null,null,null,null,null,null,null,null,null,null,null,"PIURA"]
[589,21,"PUNO",null,589,2,14,"OCROS",null,589,1,1,21,"SONCHE",null,null,null,null,null,null,null,null,null,null,null,null,"PUNO"]
[589,22,"SAN MARTIN",null,589,2,15,"PALLASCA",null,589,1,2,1,"LA PECA",null,null,null,null,null,null,null,null,null,null,null,null,"SAN MARTIN"]
[589,23,"TACNA",null,589,2,16,"POMABAMBA",null,589,1,2,2,"ARAMANGO",null,null,null,null,null,null,null,null,null,null,null,null,"TACNA"]
[589,24,"TUMBES",null,589,2,17,"RECUAY",null,589,1,2,3,"COPALLIN",null,null,null,null,null,null,null,null,null,null,null,null,"TUMBES"]
[589,25,"UCAYALI",null,589,2,18,"SANTA",null,589,1,2,4,"EL PARCO",null,null,null,null,null,null,null,null,null,null,null,null,"UCAYALI"]
[null,null,null,null,589,2,19,"SIHUAS",null,589,1,2,5,"IMAZA"]
[null,null,null,null,589,2,20,"YUNGAY",null,589,1,3,1,"JUMBILLA"]
[null,null,null,null,589,3,1,"ABANCAY",null,589,1,3,2,"CHISQUILLA"]
[null,null,null,null,589,3,2,"ANDAHUAYLAS",null,589,1,3,3,"CHURUJA"]
[null,null,null,null,589,3,3,"ANTABAMBA",null,589,1,3,4,"COROSHA"]
[null,null,null,null,589,3,4,"AYMARAES",null,589,1,3,5,"CUISPES"]
[null,null,null,null,589,3,5,"COTABAMBAS",null,589,1,3,6,"FLORIDA"]
[null,null,null,null,589,3,6,"CHINCHEROS",null,589,1,3,7,"JAZAN"]
[null,null,null,null,589,3,7,"GRAU",null,589,1,3,8,"RECTA"]
[null,null,null,null,589,4,1,"AREQUIPA",null,589,1,3,9,"SAN CARLOS"]
[null,null,null,null,589,4,2,"CAMANA",null,589,1,3,10,"SHIPASBAMBA"]
[null,null,null,null,589,4,3,"CARAVELI",null,589,1,3,11,"VALERA"]
[null,null,null,null,589,4,4,"CASTILLA",null,589,1,3,12,"YAMBRASBAMBA"]
[null,null,null,null,589,4,5,"CAYLLOMA",null,589,1,4,1,"NIEVA"]
[null,null,null,null,589,4,6,"CONDESUYOS",null,589,1,4,2,"EL CENEPA"]
[null,null,null,null,589,4,7,"ISLAY",null,589,1,4,3,"RIO SANTIAGO"]
[null,null,null,null,589,4,8,"LA UNION",null,589,1,5,1,"LAMUD"]
[null,null,null,null,589,5,1,"HUAMANGA",null,589,1,5,2,"CAMPORREDONDO"]
[null,null,null,null,589,5,2,"CANGALLO",null,589,1,5,3,"COCABAMBA"]
[null,null,null,null,589,5,3,"HUANCA SANCOS",null,589,1,5,4,"COLCAMAR"]
[null,null,null,null,589,5,4,"HUANTA",null,589,1,5,5,"CONILA"]
[null,null,null,null,589,5,5,"LA MAR",null,589,1,5,6,"INGUILPATA"]
[null,null,null,null,589,5,6,"LUCANAS",null,589,1,5,7,"LONGUITA"]
[null,null,null,null,589,5,7,"PARINACOCHAS",null,589,1,5,8,"LONYA CHICO"]
[null,null,null,null,589,5,8,"PAUCAR DEL SARA",null,589,1,5,9,"LUYA"]
[null,null,null,null,589,5,9,"SUCRE",null,589,1,5,10,"LUYA VIEJO"]
[null,null,null,null,589,5,10,"VICTOR FAJARDO",null,589,1,5,11,"MARIA"]
[null,null,null,null,589,5,11,"VILCAS HUAMAN",null,589,1,5,12,"OCALLI"]
[null,null,null,null,589,6,1,"CAJAMARCA",null,589,1,5,13,"OCUMAL"]
[null,null,null,null,589,6,2,"CAJABAMBA",null,589,1,5,14,"PISUQUIA"]
[null,null,null,null,589,6,3,"CELENDIN",null,589,1,5,15,"PROVIDENCIA"]
[null,null,null,null,589,6,4,"CHOTA",null,589,1,5,16,"SAN CRISTOBAL"]
[null,null,null,null,589,6,5,"CONTUMAZA",null,589,1,5,17,"SAN FRANCISCO D"]
[null,null,null,null,589,6,6,"CUTERVO",null,589,1,5,18,"SAN JERONIMO"]
[null,null,null,null,589,6,7,"HUALGAYOC",null,589,1,5,19,"SAN JUAN DE LOP"]
[null,null,null,null,589,6,8,"JAEN",null,589,1,5,20,"SANTA CATALINA"]
[null,null,null,null,589,6,9,"SAN IGNACIO",null,589,1,5,21,"SANTO TOMAS"]
[null,null,null,null,589,6,10,"SAN MARCOS",null,589,1,5,22,"TINGO"]
[null,null,null,null,589,6,11,"SAN MIGUEL",null,589,1,5,23,"TRITA"]
[null,null,null,null,589,6,12,"SAN PABLO",null,589,1,6,1,"SAN NICOLAS"]
[null,null,null,null,589,6,13,"SANTA CRUZ",null,589,1,6,2,"CHIRIMOTO"]
[null,null,null,null,589,7,1,"CALLAO",null,589,1,6,3,"COCHAMAL"]
[null,null,null,null,589,8,1,"CUSCO",null,589,1,6,4,"HUAMBO"]
[null,null,null,null,589,8,2,"ACOMAYO",null,589,1,6,5,"LIMABAMBA"]
[null,null,null,null,589,8,3,"ANTA",null,589,1,6,6,"LONGAR"]
[null,null,null,null,589,8,4,"CALCA",null,589,1,6,7,"MARISCAL BENAVI"]
[null,null,null,null,589,8,5,"CANAS",null,589,1,6,8,"MILPUC"]
[null,null,null,null,589,8,6,"CANCHIS",null,589,1,6,9,"OMIA"]
[null,null,null,null,589,8,7,"CHUMBIVILCAS",null,589,1,6,10,"SANTA ROSA"]
[null,null,null,null,589,8,8,"ESPINAR",null,589,1,6,11,"TOTORA"]
[null,null,null,null,589,8,9,"LA CONVENCION",null,589,1,6,12,"VISTA ALEGRE"]
[null,null,null,null,589,8,10,"PARURO",null,589,1,7,1,"BAGUA GRANDE"]
[null,null,null,null,589,8,11,"PAUCARTAMBO",null,589,1,7,2,"CAJARURO"]
[null,null,null,null,589,8,12,"QUISPICANCHI",null,589,1,7,3,"CUMBA"]
[null,null,null,null,589,8,13,"URUBAMBA",null,589,1,7,4,"EL MILAGRO"]
[null,null,null,null,589,9,1,"HUANCAVELICA",null,589,1,7,5,"JAMALCA"]
[null,null,null,null,589,9,2,"ACOBAMBA",null,589,1,7,6,"LONYA GRANDE"]
[null,null,null,null,589,9,3,"ANGARAES",null,589,1,7,7,"YAMON"]
[null,null,null,null,589,9,4,"CASTROVIRREYNA",null,589,2,1,1,"HUARAZ"]
[null,null,null,null,589,9,5,"CHURCAMPA",null,589,2,1,2,"COCHABAMBA"]
[null,null,null,null,589,9,6,"HUAYTARA",null,589,2,1,3,"COLCABAMBA"]
[null,null,null,null,589,9,7,"TAYACAJA",null,589,2,1,4,"HUANCHAY"]
[null,null,null,null,589,10,1,"HUANUCO",null,589,2,1,5,"INDEPENDENCIA"]
[null,null,null,null,589,10,2,"AMBO",null,589,2,1,6,"JANGAS"]
[null,null,null,null,589,10,3,"DOS DE MAYO",null,589,2,1,7,"LA LIBERTAD"]
[null,null,null,null,589,10,4,"HUACAYBAMBA",null,589,2,1,8,"OLLEROS"]
[null,null,null,null,589,10,5,"HUAMALIES",null,589,2,1,9,"PAMPAS"]
[null,null,null,null,589,10,6,"LEONCIO PRADO",null,589,2,1,10,"PARIACOTO"]
[null,null,null,null,589,10,7,"MARAÑON",null,589,2,1,11,"PIRA"]
[null,null,null,null,589,10,8,"PACHITEA",null,589,2,1,12,"TARICA"]
[null,null,null,null,589,10,9,"PUERTO INCA",null,589,2,2,1,"AIJA"]
[null,null,null,null,589,10,10,"LAURICOCHA",null,589,2,2,2,"CORIS"]
[null,null,null,null,589,10,11,"YAROWILCA",null,589,2,2,3,"HUACLLAN"]
[null,null,null,null,589,11,1,"ICA",null,589,2,2,4,"LA MERCED"]
[null,null,null,null,589,11,2,"CHINCHA",null,589,2,2,5,"SUCCHA"]
[null,null,null,null,589,11,3,"NAZCA",null,589,2,3,1,"LLAMELLIN"]
[null,null,null,null,589,11,4,"PALPA",null,589,2,3,2,"ACZO"]
[null,null,null,null,589,11,5,"PISCO",null,589,2,3,3,"CHACCHO"]
[null,null,null,null,589,12,1,"HUANCAYO",null,589,2,3,4,"CHINGAS"]
[null,null,null,null,589,12,2,"CONCEPCION",null,589,2,3,5,"MIRGAS"]
[null,null,null,null,589,12,3,"CHANCHAMAYO",null,589,2,3,6,"SAN JUAN DE RON"]
[null,null,null,null,589,12,4,"JAUJA",null,589,2,4,1,"CHACAS"]
[null,null,null,null,589,12,5,"JUNIN",null,589,2,4,2,"ACOCHACA"]
[null,null,null,null,589,12,6,"SATIPO",null,589,2,5,1,"CHIQUIAN"]
[null,null,null,null,589,12,7,"TARMA",null,589,2,5,2,"ABELARDO PARDO"]
[null,null,null,null,589,12,8,"YAULI",null,589,2,5,3,"ANTONIO RAYMOND"]
[null,null,null,null,589,12,9,"CHUPACA",null,589,2,5,4,"AQUIA"]
[null,null,null,null,589,13,1,"TRUJILLO",null,589,2,5,5,"CAJACAY"]
[null,null,null,null,589,13,2,"ASCOPE",null,589,2,5,6,"CANIS"]
[null,null,null,null,589,13,3,"BOLIVAR",null,589,2,5,7,"COLQUIOC"]
[null,null,null,null,589,13,4,"CHEPEN",null,589,2,5,8,"HUALLANCA"]
[null,null,null,null,589,13,5,"JULCAN",null,589,2,5,9,"HUASTA"]
[null,null,null,null,589,13,6,"OTUZCO",null,589,2,5,10,"HUAYLLACAYAN"]
[null,null,null,null,589,13,7,"PACASMAYO",null,589,2,5,11,"LA PRIMAVERA"]
[null,null,null,null,589,13,8,"PATAZ",null,589,2,5,12,"MANGAS"]
[null,null,null,null,589,13,9,"SANCHEZ CARRION",null,589,2,5,13,"PACLLON"]
[null,null,null,null,589,13,10,"SANTIAGO DE CHU",null,589,2,5,14,"SAN MIGUEL DE C"]
[null,null,null,null,589,13,11,"GRAN CHIMU",null,589,2,5,15,"TICLLOS"]
[null,null,null,null,589,13,12,"VIRU",null,589,2,6,1,"CARHUAZ"]
[null,null,null,null,589,14,1,"CHICLAYO",null,589,2,6,2,"ACOPAMPA"]
[null,null,null,null,589,14,2,"FERREÑAFE",null,589,2,6,3,"AMASHCA"]
[null,null,null,null,589,14,3,"LAMBAYEQUE",null,589,2,6,4,"ANTA"]
[null,null,null,null,589,15,1,"LIMA",null,589,2,6,5,"ATAQUERO"]
[null,null,null,null,589,15,2,"BARRANCA",null,589,2,6,6,"MARCARA"]
[null,null,null,null,589,15,3,"CAJATAMBO",null,589,2,6,7,"PARIAHUANCA"]
[null,null,null,null,589,15,4,"CANTA",null,589,2,6,8,"SAN MIGUEL DE A"]
[null,null,null,null,589,15,5,"CAÑETE",null,589,2,6,9,"SHILLA"]
[null,null,null,null,589,15,6,"HUARAL",null,589,2,6,10,"TINCO"]
[null,null,null,null,589,15,7,"HUAROCHIRI",null,589,2,6,11,"YUNGAR"]
[null,null,null,null,589,15,8,"HUAURA",null,589,2,7,1,"SAN LUIS"]
[null,null,null,null,589,15,9,"OYON",null,589,2,7,2,"SAN NICOLAS"]
[null,null,null,null,589,15,10,"YAUYOS",null,589,2,7,3,"YAUYA"]
[null,null,null,null,589,16,1,"MAYNAS",null,589,2,8,1,"CASMA"]
[null,null,null,null,589,16,2,"ALTO AMAZONAS",null,589,2,8,2,"BUENA VISTA ALT"]
[null,null,null,null,589,16,3,"LORETO",null,589,2,8,3,"COMANDANTE NOEL"]
[null,null,null,null,589,16,4,"MARISCAL RAMON",null,589,2,8,4,"YAUTAN"]
[null,null,null,null,589,16,5,"REQUENA",null,589,2,9,1,"CORONGO"]
[null,null,null,null,589,16,6,"UCAYALI",null,589,2,9,2,"ACO"]
[null,null,null,null,589,17,1,"TAMBOPATA",null,589,2,9,3,"BAMBAS"]
[null,null,null,null,589,17,2,"MANU",null,589,2,9,4,"CUSCA"]
[null,null,null,null,589,17,3,"TAHUAMANU",null,589,2,9,5,"LA PAMPA"]
[null,null,null,null,589,18,1,"MARISCAL NIETO",null,589,2,9,6,"YANAC"]
[null,null,null,null,589,18,2,"GENERAL SANCHEZ",null,589,2,9,7,"YUPAN"]
[null,null,null,null,589,18,3,"ILO",null,589,2,10,1,"HUARI"]
[null,null,null,null,589,19,1,"PASCO",null,589,2,10,2,"ANRA"]
[null,null,null,null,589,19,2,"DANIEL ALCIDES",null,589,2,10,3,"CAJAY"]
[null,null,null,null,589,19,3,"OXAPAMPA",null,589,2,10,4,"CHAVIN DE HUANT"]
[null,null,null,null,589,20,1,"PIURA",null,589,2,10,5,"HUACACHI"]
[null,null,null,null,589,20,2,"AYABACA",null,589,2,10,6,"HUACCHIS"]
[null,null,null,null,589,20,3,"HUANCABAMBA",null,589,2,10,7,"HUACHIS"]
[null,null,null,null,589,20,4,"MORROPON",null,589,2,10,8,"HUANTAR"]
[null,null,null,null,589,20,5,"PAITA",null,589,2,10,9,"MASIN"]
[null,null,null,null,589,20,6,"SULLANA",null,589,2,10,10,"PAUCAS"]
[null,null,null,null,589,20,7,"TALARA",null,589,2,10,11,"PONTO"]
[null,null,null,null,589,20,8,"SECHURA",null,589,2,10,12,"RAHUAPAMPA"]
[null,null,null,null,589,21,1,"PUNO",null,589,2,10,13,"RAPAYAN"]
[null,null,null,null,589,21,2,"AZANGARO",null,589,2,10,14,"SAN MARCOS"]
[null,null,null,null,589,21,3,"CARABAYA",null,589,2,10,15,"SAN PEDRO DE CH"]
[null,null,null,null,589,21,4,"CHUCUITO",null,589,2,10,16,"UCO"]
[null,null,null,null,589,21,5,"EL COLLAO",null,589,2,11,1,"HUARMEY"]
[null,null,null,null,589,21,6,"HUANCANE",null,589,2,11,2,"COCHAPETI"]
[null,null,null,null,589,21,7,"LAMPA",null,589,2,11,3,"CULEBRAS"]
[null,null,null,null,589,21,8,"MELGAR",null,589,2,11,4,"HUAYAN"]
[null,null,null,null,589,21,9,"MOHO",null,589,2,11,5,"MALVAS"]
[null,null,null,null,589,21,10,"SAN ANTONIO DE",null,589,2,12,1,"CARAZ"]
[null,null,null,null,589,21,11,"SAN ROMAN",null,589,2,12,2,"HUALLANCA"]
[null,null,null,null,589,21,12,"SANDIA",null,589,2,12,3,"HUATA"]
[null,null,null,null,589,21,13,"YUNGUYO",null,589,2,12,4,"HUAYLAS"]
[null,null,null,null,589,22,1,"MOYOBAMBA",null,589,2,12,5,"MATO"]
[null,null,null,null,589,22,2,"BELLAVISTA",null,589,2,12,6,"PAMPAROMAS"]
[null,null,null,null,589,22,3,"EL DORADO",null,589,2,12,7,"PUEBLO LIBRE"]
[null,null,null,null,589,22,4,"HUALLAGA",null,589,2,12,8,"SANTA CRUZ"]
[null,null,null,null,589,22,5,"LAMAS",null,589,2,12,9,"SANTO TORIBIO"]
[null,null,null,null,589,22,6,"MARISCAL CACERES",null,589,2,12,10,"YURACMARCA"]
[null,null,null,null,589,22,7,"PICOTA",null,589,2,13,1,"PISCOBAMBA"]
[null,null,null,null,589,22,8,"RIOJA",null,589,2,13,2,"CASCA"]
[null,null,null,null,589,22,9,"SAN MARTIN",null,589,2,13,3,"ELEAZAR GUZMAN"]
[null,null,null,null,589,22,10,"TOCACHE",null,589,2,13,4,"FIDEL OLIVAS ES"]
[null,null,null,null,589,23,1,"TACNA",null,589,2,13,5,"LLAMA"]
[null,null,null,null,589,23,2,"CANDARAVE",null,589,2,13,6,"LLUMPA"]
[null,null,null,null,589,23,3,"JORGE BASADRE",null,589,2,13,7,"LUCMA"]
[null,null,null,null,589,23,4,"TARATA",null,589,2,13,8,"MUSGA"]
[null,null,null,null,589,24,1,"TUMBES",null,589,2,14,1,"OCROS"]
[null,null,null,null,589,24,2,"CONTRALMIRANTE",null,589,2,14,2,"ACAS"]
[null,null,null,null,589,24,3,"ZARUMILLA",null,589,2,14,3,"CAJAMARQUILLA"]
[null,null,null,null,589,25,1,"CORONEL PORTILLA",null,589,2,14,4,"CARHUAPAMPA"]
[null,null,null,null,589,25,2,"ATALAYA",null,589,2,14,5,"COCHAS"]
[null,null,null,null,589,25,3,"PADRE ABAD",null,589,2,14,6,"CONGAS"]
[null,null,null,null,589,25,4,"PURUS",null,589,2,14,7,"LLIPA"]
[null,null,null,null,589,25,12,"CORACORA",null,589,2,14,8,"SAN CRISTOBAL D"]
[null,null,null,null,null,null,null,null,null,589,2,14,9,"SAN PEDRO"]
[null,null,null,null,null,null,null,null,null,589,2,14,10,"SANTIAGO DE CHI"]
[null,null,null,null,null,null,null,null,null,589,2,15,1,"CABANA"]
[null,null,null,null,null,null,null,null,null,589,2,15,2,"BOLOGNESI"]
[null,null,null,null,null,null,null,null,null,589,2,15,3,"CONCHUCOS"]
[null,null,null,null,null,null,null,null,null,589,2,15,4,"HUACASCHUQUE"]
[null,null,null,null,null,null,null,null,null,589,2,15,5,"HUANDOVAL"]
[null,null,null,null,null,null,null,null,null,589,2,15,6,"LACABAMBA"]
[null,null,null,null,null,null,null,null,null,589,2,15,7,"LLAPO"]
[null,null,null,null,null,null,null,null,null,589,2,15,8,"PALLASCA"]
[null,null,null,null,null,null,null,null,null,589,2,15,9,"PAMPAS"]
[null,null,null,null,null,null,null,null,null,589,2,15,10,"SANTA ROSA"]
[null,null,null,null,null,null,null,null,null,589,2,15,11,"TAUCA"]
[null,null,null,null,null,null,null,null,null,589,2,16,1,"POMABAMBA"]
[null,null,null,null,null,null,null,null,null,589,2,16,2,"HUAYLLAN"]
[null,null,null,null,null,null,null,null,null,589,2,16,3,"PAROBAMBA"]
[null,null,null,null,null,null,null,null,null,589,2,16,4,"QUINUABAMBA"]
[null,null,null,null,null,null,null,null,null,589,2,17,1,"RECUAY"]
[null,null,null,null,null,null,null,null,null,589,2,17,2,"CATAC"]
[null,null,null,null,null,null,null,null,null,589,2,17,3,"COTAPARACO"]
[null,null,null,null,null,null,null,null,null,589,2,17,4,"HUAYLLAPAMPA"]
[null,null,null,null,null,null,null,null,null,589,2,17,5,"LLACLLIN"]
[null,null,null,null,null,null,null,null,null,589,2,17,6,"MARCA"]
[null,null,null,null,null,null,null,null,null,589,2,17,7,"PAMPAS CHICO"]
[null,null,null,null,null,null,null,null,null,589,2,17,8,"PARARIN"]
[null,null,null,null,null,null,null,null,null,589,2,17,9,"TAPACOCHA"]
[null,null,null,null,null,null,null,null,null,589,2,17,10,"TICAPAMPA"]
[null,null,null,null,null,null,null,null,null,589,2,18,1,"CHIMBOTE"]
[null,null,null,null,null,null,null,null,null,589,2,18,2,"CACERES DEL PER"]
[null,null,null,null,null,null,null,null,null,589,2,18,3,"COISHCO"]
[null,null,null,null,null,null,null,null,null,589,2,18,4,"MACATE"]
[null,null,null,null,null,null,null,null,null,589,2,18,5,"MORO"]
[null,null,null,null,null,null,null,null,null,589,2,18,6,"NEPEÑA"]
[null,null,null,null,null,null,null,null,null,589,2,18,7,"SAMANCO"]
[null,null,null,null,null,null,null,null,null,589,2,18,8,"SANTA"]
[null,null,null,null,null,null,null,null,null,589,2,18,9,"NUEVO CHIMBOTE"]
[null,null,null,null,null,null,null,null,null,589,2,19,1,"SIHUAS"]
[null,null,null,null,null,null,null,null,null,589,2,19,2,"ACOBAMBA"]
[null,null,null,null,null,null,null,null,null,589,2,19,3,"ALFONSO UGARTE"]
[null,null,null,null,null,null,null,null,null,589,2,19,4,"CASHAPAMPA"]
[null,null,null,null,null,null,null,null,null,589,2,19,5,"CHINGALPO"]
[null,null,null,null,null,null,null,null,null,589,2,19,6,"HUAYLLABAMBA"]
[null,null,null,null,null,null,null,null,null,589,2,19,7,"QUICHES"]
[null,null,null,null,null,null,null,null,null,589,2,19,8,"RAGASH"]
[null,null,null,null,null,null,null,null,null,589,2,19,9,"SAN JUAN"]
[null,null,null,null,null,null,null,null,null,589,2,19,10,"SICSIBAMBA"]
[null,null,null,null,null,null,null,null,null,589,2,20,1,"YUNGAY"]
[null,null,null,null,null,null,null,null,null,589,2,20,2,"CASCAPARA"]
[null,null,null,null,null,null,null,null,null,589,2,20,3,"MANCOS"]
[null,null,null,null,null,null,null,null,null,589,2,20,4,"MATACOTO"]
[null,null,null,null,null,null,null,null,null,589,2,20,5,"QUILLO"]
[null,null,null,null,null,null,null,null,null,589,2,20,6,"RANRAHIRCA"]
[null,null,null,null,null,null,null,null,null,589,2,20,7,"SHUPLUY"]
[null,null,null,null,null,null,null,null,null,589,2,20,8,"YANAMA"]
[null,null,null,null,null,null,null,null,null,589,3,1,1,"ABANCAY"]
[null,null,null,null,null,null,null,null,null,589,3,1,2,"CHACOCHE"]
[null,null,null,null,null,null,null,null,null,589,3,1,3,"CIRCA"]
[null,null,null,null,null,null,null,null,null,589,3,1,4,"CURAHUASI"]
[null,null,null,null,null,null,null,null,null,589,3,1,5,"HUANIPACA"]
[null,null,null,null,null,null,null,null,null,589,3,1,6,"LAMBRAMA"]
[null,null,null,null,null,null,null,null,null,589,3,1,7,"PICHIRHUA"]
[null,null,null,null,null,null,null,null,null,589,3,1,8,"SAN PEDRO DE CA"]
[null,null,null,null,null,null,null,null,null,589,3,1,9,"TAMBURCO"]
[null,null,null,null,null,null,null,null,null,589,3,2,1,"ANDAHUAYLAS"]
[null,null,null,null,null,null,null,null,null,589,3,2,2,"ANDARAPA"]
[null,null,null,null,null,null,null,null,null,589,3,2,3,"CHIARA"]
[null,null,null,null,null,null,null,null,null,589,3,2,4,"HUANCARAMA"]
[null,null,null,null,null,null,null,null,null,589,3,2,5,"HUANCARAY"]
[null,null,null,null,null,null,null,null,null,589,3,2,6,"HUAYANA"]
[null,null,null,null,null,null,null,null,null,589,3,2,7,"KISHUARA"]
[null,null,null,null,null,null,null,null,null,589,3,2,8,"PACOBAMBA"]
[null,null,null,null,null,null,null,null,null,589,3,2,9,"PACUCHA"]
[null,null,null,null,null,null,null,null,null,589,3,2,10,"PAMPACHIRI"]
[null,null,null,null,null,null,null,null,null,589,3,2,11,"POMACOCHA"]
[null,null,null,null,null,null,null,null,null,589,3,2,12,"SAN ANTONIO DE"]
[null,null,null,null,null,null,null,null,null,589,3,2,13,"SAN JERONIMO"]
[null,null,null,null,null,null,null,null,null,589,3,2,14,"SAN MIGUEL DE C"]
[null,null,null,null,null,null,null,null,null,589,3,2,15,"SANTA MARIA DE"]
[null,null,null,null,null,null,null,null,null,589,3,2,16,"TALAVERA"]
[null,null,null,null,null,null,null,null,null,589,3,2,17,"TUMAY HUARACA"]
[null,null,null,null,null,null,null,null,null,589,3,2,18,"TURPO"]
[null,null,null,null,null,null,null,null,null,589,3,2,19,"KAQUIABAMBA"]
[null,null,null,null,null,null,null,null,null,589,3,3,1,"ANTABAMBA"]
[null,null,null,null,null,null,null,null,null,589,3,3,2,"EL ORO"]
[null,null,null,null,null,null,null,null,null,589,3,3,3,"HUAQUIRCA"]
[null,null,null,null,null,null,null,null,null,589,3,3,4,"JUAN ESPINOZA M"]
[null,null,null,null,null,null,null,null,null,589,3,3,5,"OROPESA"]
[null,null,null,null,null,null,null,null,null,589,3,3,6,"PACHACONAS"]
[null,null,null,null,null,null,null,null,null,589,3,3,7,"SABAINO"]
[null,null,null,null,null,null,null,null,null,589,3,4,1,"CHALHUANCA"]
[null,null,null,null,null,null,null,null,null,589,3,4,2,"CAPAYA"]
[null,null,null,null,null,null,null,null,null,589,3,4,3,"CARAYBAMBA"]
[null,null,null,null,null,null,null,null,null,589,3,4,4,"CHAPIMARCA"]
[null,null,null,null,null,null,null,null,null,589,3,4,5,"COLCABAMBA"]
[null,null,null,null,null,null,null,null,null,589,3,4,6,"COTARUSE"]
[null,null,null,null,null,null,null,null,null,589,3,4,7,"HUAYLLO"]
[null,null,null,null,null,null,null,null,null,589,3,4,8,"JUSTO APU SAHUA"]
[null,null,null,null,null,null,null,null,null,589,3,4,9,"LUCRE"]
[null,null,null,null,null,null,null,null,null,589,3,4,10,"POCOHUANCA"]
[null,null,null,null,null,null,null,null,null,589,3,4,11,"SAN JUAN DE CHA"]
[null,null,null,null,null,null,null,null,null,589,3,4,12,"SAÑAYCA"]
[null,null,null,null,null,null,null,null,null,589,3,4,13,"SORAYA"]
[null,null,null,null,null,null,null,null,null,589,3,4,14,"TAPAIRIHUA"]
[null,null,null,null,null,null,null,null,null,589,3,4,15,"TINTAY"]
[null,null,null,null,null,null,null,null,null,589,3,4,16,"TORAYA"]
[null,null,null,null,null,null,null,null,null,589,3,4,17,"YANACA"]
[null,null,null,null,null,null,null,null,null,589,3,5,1,"TAMBOBAMBA"]
[null,null,null,null,null,null,null,null,null,589,3,5,2,"COTABAMBAS"]
[null,null,null,null,null,null,null,null,null,589,3,5,3,"COYLLURQUI"]
[null,null,null,null,null,null,null,null,null,589,3,5,4,"HAQUIRA"]
[null,null,null,null,null,null,null,null,null,589,3,5,5,"MARA"]
[null,null,null,null,null,null,null,null,null,589,3,5,6,"CHALLHUAHUACHO"]
[null,null,null,null,null,null,null,null,null,589,3,6,1,"CHINCHEROS"]
[null,null,null,null,null,null,null,null,null,589,3,6,2,"ANCO-HUALLO"]
[null,null,null,null,null,null,null,null,null,589,3,6,3,"COCHARCAS"]
[null,null,null,null,null,null,null,null,null,589,3,6,4,"HUACCANA"]
[null,null,null,null,null,null,null,null,null,589,3,6,5,"OCOBAMBA"]
[null,null,null,null,null,null,null,null,null,589,3,6,6,"ONGOY"]
[null,null,null,null,null,null,null,null,null,589,3,6,7,"URANMARCA"]
[null,null,null,null,null,null,null,null,null,589,3,6,8,"RANRACANCHA"]
[null,null,null,null,null,null,null,null,null,589,3,7,1,"CHUQUIBAMBILLA"]
[null,null,null,null,null,null,null,null,null,589,3,7,2,"CURPAHUASI"]
[null,null,null,null,null,null,null,null,null,589,3,7,3,"GAMARRA"]
[null,null,null,null,null,null,null,null,null,589,3,7,4,"HUAYLLATI"]
[null,null,null,null,null,null,null,null,null,589,3,7,5,"MAMARA"]
[null,null,null,null,null,null,null,null,null,589,3,7,6,"MICAELA BASTIDA"]
[null,null,null,null,null,null,null,null,null,589,3,7,7,"PATAYPAMPA"]
[null,null,null,null,null,null,null,null,null,589,3,7,8,"PROGRESO"]
[null,null,null,null,null,null,null,null,null,589,3,7,9,"SAN ANTONIO"]
[null,null,null,null,null,null,null,null,null,589,3,7,10,"SANTA ROSA"]
[null,null,null,null,null,null,null,null,null,589,3,7,11,"TURPAY"]
[null,null,null,null,null,null,null,null,null,589,3,7,12,"VILCABAMBA"]
[null,null,null,null,null,null,null,null,null,589,3,7,13,"VIRUNDO"]
[null,null,null,null,null,null,null,null,null,589,3,7,14,"CURASCO"]
[null,null,null,null,null,null,null,null,null,589,4,1,1,"AREQUIPA"]
[null,null,null,null,null,null,null,null,null,589,4,1,2,"ALTO SELVA ALEG"]
[null,null,null,null,null,null,null,null,null,589,4,1,3,"CAYMA"]
[null,null,null,null,null,null,null,null,null,589,4,1,4,"CERRO COLORADO"]
[null,null,null,null,null,null,null,null,null,589,4,1,5,"CHARACATO"]
[null,null,null,null,null,null,null,null,null,589,4,1,6,"CHIGUATA"]
[null,null,null,null,null,null,null,null,null,589,4,1,7,"JACOBO HUNTER"]
[null,null,null,null,null,null,null,null,null,589,4,1,8,"LA JOYA"]
[null,null,null,null,null,null,null,null,null,589,4,1,9,"MARIANO MELGAR"]
[null,null,null,null,null,null,null,null,null,589,4,1,10,"MIRAFLORES"]
[null,null,null,null,null,null,null,null,null,589,4,1,11,"MOLLEBAYA"]
[null,null,null,null,null,null,null,null,null,589,4,1,12,"PAUCARPATA"]
[null,null,null,null,null,null,null,null,null,589,4,1,13,"POCSI"]
[null,null,null,null,null,null,null,null,null,589,4,1,14,"POLOBAYA"]
[null,null,null,null,null,null,null,null,null,589,4,1,15,"QUEQUEÑA"]
[null,null,null,null,null,null,null,null,null,589,4,1,16,"SABANDIA"]
[null,null,null,null,null,null,null,null,null,589,4,1,17,"SACHACA"]
[null,null,null,null,null,null,null,null,null,589,4,1,18,"SAN JUAN DE SIG"]
[null,null,null,null,null,null,null,null,null,589,4,1,19,"SAN JUAN DE TAR"]
[null,null,null,null,null,null,null,null,null,589,4,1,20,"SANTA ISABEL DE"]
[null,null,null,null,null,null,null,null,null,589,4,1,21,"SANTA RITA DE S"]
[null,null,null,null,null,null,null,null,null,589,4,1,22,"SOCABAYA"]
[null,null,null,null,null,null,null,null,null,589,4,1,23,"TIABAYA"]
[null,null,null,null,null,null,null,null,null,589,4,1,24,"UCHUMAYO"]
[null,null,null,null,null,null,null,null,null,589,4,1,25,"VITOR"]
[null,null,null,null,null,null,null,null,null,589,4,1,26,"YANAHUARA"]
[null,null,null,null,null,null,null,null,null,589,4,1,27,"YARABAMBA"]
[null,null,null,null,null,null,null,null,null,589,4,1,28,"YURA"]
[null,null,null,null,null,null,null,null,null,589,4,1,29,"JOSE LUIS BUSTA"]
[null,null,null,null,null,null,null,null,null,589,4,2,1,"CAMANA"]
[null,null,null,null,null,null,null,null,null,589,4,2,2,"JOSE MARIA QUIM"]
[null,null,null,null,null,null,null,null,null,589,4,2,3,"MARIANO NICOLAS"]
[null,null,null,null,null,null,null,null,null,589,4,2,4,"MARISCAL CACERE"]
[null,null,null,null,null,null,null,null,null,589,4,2,5,"NICOLAS DE PIER"]
[null,null,null,null,null,null,null,null,null,589,4,2,6,"OCOÑA"]
[null,null,null,null,null,null,null,null,null,589,4,2,7,"QUILCA"]
[null,null,null,null,null,null,null,null,null,589,4,2,8,"SAMUEL PASTOR"]
[null,null,null,null,null,null,null,null,null,589,4,3,1,"CARAVELI"]
[null,null,null,null,null,null,null,null,null,589,4,3,2,"ACARI"]
[null,null,null,null,null,null,null,null,null,589,4,3,3,"ATICO"]
[null,null,null,null,null,null,null,null,null,589,4,3,4,"ATIQUIPA"]
[null,null,null,null,null,null,null,null,null,589,4,3,5,"BELLA UNION"]
[null,null,null,null,null,null,null,null,null,589,4,3,6,"CAHUACHO"]
[null,null,null,null,null,null,null,null,null,589,4,3,7,"CHALA"]
[null,null,null,null,null,null,null,null,null,589,4,3,8,"CHAPARRA"]
[null,null,null,null,null,null,null,null,null,589,4,3,9,"HUANUHUANU"]
[null,null,null,null,null,null,null,null,null,589,4,3,10,"JAQUI"]
[null,null,null,null,null,null,null,null,null,589,4,3,11,"LOMAS"]
[null,null,null,null,null,null,null,null,null,589,4,3,12,"QUICACHA"]
[null,null,null,null,null,null,null,null,null,589,4,3,13,"YAUCA"]
[null,null,null,null,null,null,null,null,null,589,4,4,1,"APLAO"]
[null,null,null,null,null,null,null,null,null,589,4,4,2,"ANDAGUA"]
[null,null,null,null,null,null,null,null,null,589,4,4,3,"AYO"]
[null,null,null,null,null,null,null,null,null,589,4,4,4,"CHACHAS"]
[null,null,null,null,null,null,null,null,null,589,4,4,5,"CHILCAYMARCA"]
[null,null,null,null,null,null,null,null,null,589,4,4,6,"CHOCO"]
[null,null,null,null,null,null,null,null,null,589,4,4,7,"HUANCARQUI"]
[null,null,null,null,null,null,null,null,null,589,4,4,8,"MACHAGUAY"]
[null,null,null,null,null,null,null,null,null,589,4,4,9,"ORCOPAMPA"]
[null,null,null,null,null,null,null,null,null,589,4,4,10,"PAMPACOLCA"]
[null,null,null,null,null,null,null,null,null,589,4,4,11,"TIPAN"]
[null,null,null,null,null,null,null,null,null,589,4,4,12,"UÑON"]
[null,null,null,null,null,null,null,null,null,589,4,4,13,"URACA"]
[null,null,null,null,null,null,null,null,null,589,4,4,14,"VIRACO"]
[null,null,null,null,null,null,null,null,null,589,4,5,1,"CHIVAY"]
[null,null,null,null,null,null,null,null,null,589,4,5,2,"ACHOMA"]
[null,null,null,null,null,null,null,null,null,589,4,5,3,"CABANACONDE"]
[null,null,null,null,null,null,null,null,null,589,4,5,4,"CALLALLI"]
[null,null,null,null,null,null,null,null,null,589,4,5,5,"CAYLLOMA"]
[null,null,null,null,null,null,null,null,null,589,4,5,6,"COPORAQUE"]
[null,null,null,null,null,null,null,null,null,589,4,5,7,"HUAMBO"]
[null,null,null,null,null,null,null,null,null,589,4,5,8,"HUANCA"]
[null,null,null,null,null,null,null,null,null,589,4,5,9,"ICHUPAMPA"]
[null,null,null,null,null,null,null,null,null,589,4,5,10,"LARI"]
[null,null,null,null,null,null,null,null,null,589,4,5,11,"LLUTA"]
[null,null,null,null,null,null,null,null,null,589,4,5,12,"MACA"]
[null,null,null,null,null,null,null,null,null,589,4,5,13,"MADRIGAL"]
[null,null,null,null,null,null,null,null,null,589,4,5,14,"SAN ANTONIO DE"]
[null,null,null,null,null,null,null,null,null,589,4,5,15,"SIBAYO"]
[null,null,null,null,null,null,null,null,null,589,4,5,16,"TAPAY"]
[null,null,null,null,null,null,null,null,null,589,4,5,17,"TISCO"]
[null,null,null,null,null,null,null,null,null,589,4,5,18,"TUTI"]
[null,null,null,null,null,null,null,null,null,589,4,5,19,"YANQUE"]
[null,null,null,null,null,null,null,null,null,589,4,5,20,"MAJES"]
[null,null,null,null,null,null,null,null,null,589,4,6,1,"CHUQUIBAMBA"]
[null,null,null,null,null,null,null,null,null,589,4,6,2,"ANDARAY"]
[null,null,null,null,null,null,null,null,null,589,4,6,3,"CAYARANI"]
[null,null,null,null,null,null,null,null,null,589,4,6,4,"CHICHAS"]
[null,null,null,null,null,null,null,null,null,589,4,6,5,"IRAY"]
[null,null,null,null,null,null,null,null,null,589,4,6,6,"RIO GRANDE"]
[null,null,null,null,null,null,null,null,null,589,4,6,7,"SALAMANCA"]
[null,null,null,null,null,null,null,null,null,589,4,6,8,"YANAQUIHUA"]
[null,null,null,null,null,null,null,null,null,589,4,7,1,"MOLLENDO"]
[null,null,null,null,null,null,null,null,null,589,4,7,2,"COCACHACRA"]
[null,null,null,null,null,null,null,null,null,589,4,7,3,"DEAN VALDIVIA"]
[null,null,null,null,null,null,null,null,null,589,4,7,4,"ISLAY"]
[null,null,null,null,null,null,null,null,null,589,4,7,5,"MEJIA"]
[null,null,null,null,null,null,null,null,null,589,4,7,6,"PUNTA DE BOMBON"]
[null,null,null,null,null,null,null,null,null,589,4,8,1,"COTAHUASI"]
[null,null,null,null,null,null,null,null,null,589,4,8,2,"ALCA"]
[null,null,null,null,null,null,null,null,null,589,4,8,3,"CHARCANA"]
[null,null,null,null,null,null,null,null,null,589,4,8,4,"HUAYNACOTAS"]
[null,null,null,null,null,null,null,null,null,589,4,8,5,"PAMPAMARCA"]
[null,null,null,null,null,null,null,null,null,589,4,8,6,"PUYCA"]
[null,null,null,null,null,null,null,null,null,589,4,8,7,"QUECHUALLA"]
[null,null,null,null,null,null,null,null,null,589,4,8,8,"SAYLA"]
[null,null,null,null,null,null,null,null,null,589,4,8,9,"TAURIA"]
[null,null,null,null,null,null,null,null,null,589,4,8,10,"TOMEPAMPA"]
[null,null,null,null,null,null,null,null,null,589,4,8,11,"TORO"]
[null,null,null,null,null,null,null,null,null,589,5,1,1,"AYACUCHO"]
[null,null,null,null,null,null,null,null,null,589,5,1,2,"ACOCRO"]
[null,null,null,null,null,null,null,null,null,589,5,1,3,"ACOS VINCHOS"]
[null,null,null,null,null,null,null,null,null,589,5,1,4,"CARMEN ALTO"]
[null,null,null,null,null,null,null,null,null,589,5,1,5,"CHIARA"]
[null,null,null,null,null,null,null,null,null,589,5,1,6,"OCROS"]
[null,null,null,null,null,null,null,null,null,589,5,1,7,"PACAYCASA"]
[null,null,null,null,null,null,null,null,null,589,5,1,8,"QUINUA"]
[null,null,null,null,null,null,null,null,null,589,5,1,9,"SAN JOSE DE TIC"]
[null,null,null,null,null,null,null,null,null,589,5,1,10,"SAN JUAN BAUTIS"]
[null,null,null,null,null,null,null,null,null,589,5,1,11,"SANTIAGO DE PIS"]
[null,null,null,null,null,null,null,null,null,589,5,1,12,"SOCOS"]
[null,null,null,null,null,null,null,null,null,589,5,1,13,"TAMBILLO"]
[null,null,null,null,null,null,null,null,null,589,5,1,14,"VINCHOS"]
[null,null,null,null,null,null,null,null,null,589,5,1,15,"JESUS NAZARENO"]
[null,null,null,null,null,null,null,null,null,589,5,2,1,"CANGALLO"]
[null,null,null,null,null,null,null,null,null,589,5,2,2,"CHUSCHI"]
[null,null,null,null,null,null,null,null,null,589,5,2,3,"LOS MOROCHUCOS"]
[null,null,null,null,null,null,null,null,null,589,5,2,4,"MARIA PARADO DE"]
[null,null,null,null,null,null,null,null,null,589,5,2,5,"PARAS"]
[null,null,null,null,null,null,null,null,null,589,5,2,6,"TOTOS"]
[null,null,null,null,null,null,null,null,null,589,5,3,1,"SANCOS"]
[null,null,null,null,null,null,null,null,null,589,5,3,2,"CARAPO"]
[null,null,null,null,null,null,null,null,null,589,5,3,3,"SACSAMARCA"]
[null,null,null,null,null,null,null,null,null,589,5,3,4,"SANTIAGO DE LUC"]
[null,null,null,null,null,null,null,null,null,589,5,4,1,"HUANTA"]
[null,null,null,null,null,null,null,null,null,589,5,4,2,"AYAHUANCO"]
[null,null,null,null,null,null,null,null,null,589,5,4,3,"HUAMANGUILLA"]
[null,null,null,null,null,null,null,null,null,589,5,4,4,"IGUAIN"]
[null,null,null,null,null,null,null,null,null,589,5,4,5,"LURICOCHA"]
[null,null,null,null,null,null,null,null,null,589,5,4,6,"SANTILLANA"]
[null,null,null,null,null,null,null,null,null,589,5,4,7,"SIVIA"]
[null,null,null,null,null,null,null,null,null,589,5,4,8,"LLOCHEGUA"]
[null,null,null,null,null,null,null,null,null,589,5,5,1,"SAN MIGUEL"]
[null,null,null,null,null,null,null,null,null,589,5,5,2,"ANCO"]
[null,null,null,null,null,null,null,null,null,589,5,5,3,"AYNA"]
[null,null,null,null,null,null,null,null,null,589,5,5,4,"CHILCAS"]
[null,null,null,null,null,null,null,null,null,589,5,5,5,"CHUNGUI"]
[null,null,null,null,null,null,null,null,null,589,5,5,6,"LUIS CARRANZA"]
[null,null,null,null,null,null,null,null,null,589,5,5,7,"SANTA ROSA"]
[null,null,null,null,null,null,null,null,null,589,5,5,8,"TAMBO"]
[null,null,null,null,null,null,null,null,null,589,5,6,1,"PUQUIO"]
[null,null,null,null,null,null,null,null,null,589,5,6,2,"AUCARA"]
[null,null,null,null,null,null,null,null,null,589,5,6,3,"CABANA"]
[null,null,null,null,null,null,null,null,null,589,5,6,4,"CARMEN SALCEDO"]
[null,null,null,null,null,null,null,null,null,589,5,6,5,"CHAVIÑA"]
[null,null,null,null,null,null,null,null,null,589,5,6,6,"CHIPAO"]
[null,null,null,null,null,null,null,null,null,589,5,6,7,"HUAC-HUAS"]
[null,null,null,null,null,null,null,null,null,589,5,6,8,"LARAMATE"]
[null,null,null,null,null,null,null,null,null,589,5,6,9,"LEONCIO PRADO"]
[null,null,null,null,null,null,null,null,null,589,5,6,10,"LLAUTA"]
[null,null,null,null,null,null,null,null,null,589,5,6,11,"LUCANAS"]
[null,null,null,null,null,null,null,null,null,589,5,6,12,"OCAÑA"]
[null,null,null,null,null,null,null,null,null,589,5,6,13,"OTOCA"]
[null,null,null,null,null,null,null,null,null,589,5,6,14,"SAISA"]
[null,null,null,null,null,null,null,null,null,589,5,6,15,"SAN CRISTOBAL"]
[null,null,null,null,null,null,null,null,null,589,5,6,16,"SAN JUAN"]
[null,null,null,null,null,null,null,null,null,589,5,6,17,"SAN PEDRO"]
[null,null,null,null,null,null,null,null,null,589,5,6,18,"SAN PEDRO DE PA"]
[null,null,null,null,null,null,null,null,null,589,5,6,19,"SANCOS"]
[null,null,null,null,null,null,null,null,null,589,5,6,20,"SANTA ANA DE HU"]
[null,null,null,null,null,null,null,null,null,589,5,6,21,"SANTA LUCIA"]
[null,null,null,null,null,null,null,null,null,589,5,7,1,"CORACORA"]
[null,null,null,null,null,null,null,null,null,589,5,7,2,"CHUMPI"]
[null,null,null,null,null,null,null,null,null,589,5,7,3,"CORONEL CASTAÑE"]
[null,null,null,null,null,null,null,null,null,589,5,7,4,"PACAPAUSA"]
[null,null,null,null,null,null,null,null,null,589,5,7,5,"PULLO"]
[null,null,null,null,null,null,null,null,null,589,5,7,6,"PUYUSCA"]
[null,null,null,null,null,null,null,null,null,589,5,7,7,"SAN FRANCISCO D"]
[null,null,null,null,null,null,null,null,null,589,5,7,8,"UPAHUACHO"]
[null,null,null,null,null,null,null,null,null,589,5,8,1,"PAUSA"]
[null,null,null,null,null,null,null,null,null,589,5,8,2,"COLTA"]
[null,null,null,null,null,null,null,null,null,589,5,8,3,"CORCULLA"]
[null,null,null,null,null,null,null,null,null,589,5,8,4,"LAMPA"]
[null,null,null,null,null,null,null,null,null,589,5,8,5,"MARCABAMBA"]
[null,null,null,null,null,null,null,null,null,589,5,8,6,"OYOLO"]
[null,null,null,null,null,null,null,null,null,589,5,8,7,"PARARCA"]
[null,null,null,null,null,null,null,null,null,589,5,8,8,"SAN JAVIER DE A"]
[null,null,null,null,null,null,null,null,null,589,5,8,9,"SAN JOSE DE USH"]
[null,null,null,null,null,null,null,null,null,589,5,8,10,"SARA SARA"]
[null,null,null,null,null,null,null,null,null,589,5,9,1,"QUEROBAMBA"]
[null,null,null,null,null,null,null,null,null,589,5,9,2,"BELEN"]
[null,null,null,null,null,null,null,null,null,589,5,9,3,"CHALCOS"]
[null,null,null,null,null,null,null,null,null,589,5,9,4,"CHILCAYOC"]
[null,null,null,null,null,null,null,null,null,589,5,9,5,"HUACAÑA"]
[null,null,null,null,null,null,null,null,null,589,5,9,6,"MORCOLLA"]
[null,null,null,null,null,null,null,null,null,589,5,9,7,"PAICO"]
[null,null,null,null,null,null,null,null,null,589,5,9,8,"SAN PEDRO DE LA"]
[null,null,null,null,null,null,null,null,null,589,5,9,9,"SAN SALVADOR DE"]
[null,null,null,null,null,null,null,null,null,589,5,9,10,"SANTIAGO DE PAU"]
[null,null,null,null,null,null,null,null,null,589,5,9,11,"SORAS"]
[null,null,null,null,null,null,null,null,null,589,5,10,1,"HUANCAPI"]
[null,null,null,null,null,null,null,null,null,589,5,10,2,"ALCAMENCA"]
[null,null,null,null,null,null,null,null,null,589,5,10,3,"APONGO"]
[null,null,null,null,null,null,null,null,null,589,5,10,4,"ASQUIPATA"]
[null,null,null,null,null,null,null,null,null,589,5,10,5,"CANARIA"]
[null,null,null,null,null,null,null,null,null,589,5,10,6,"CAYARA"]
[null,null,null,null,null,null,null,null,null,589,5,10,7,"COLCA"]
[null,null,null,null,null,null,null,null,null,589,5,10,8,"HUAMANQUIQUIA"]
[null,null,null,null,null,null,null,null,null,589,5,10,9,"HUANCARAYLLA"]
[null,null,null,null,null,null,null,null,null,589,5,10,10,"HUAYA"]
[null,null,null,null,null,null,null,null,null,589,5,10,11,"SARHUA"]
[null,null,null,null,null,null,null,null,null,589,5,10,12,"VILCANCHOS"]
[null,null,null,null,null,null,null,null,null,589,5,11,1,"VILCAS HUAMAN"]
[null,null,null,null,null,null,null,null,null,589,5,11,2,"ACCOMARCA"]
[null,null,null,null,null,null,null,null,null,589,5,11,3,"CARHUANCA"]
[null,null,null,null,null,null,null,null,null,589,5,11,4,"CONCEPCION"]
[null,null,null,null,null,null,null,null,null,589,5,11,5,"HUAMBALPA"]
[null,null,null,null,null,null,null,null,null,589,5,11,6,"INDEPENDENCIA"]
[null,null,null,null,null,null,null,null,null,589,5,11,7,"SAURAMA"]
[null,null,null,null,null,null,null,null,null,589,5,11,8,"VISCHONGO"]
[null,null,null,null,null,null,null,null,null,589,6,1,1,"CAJAMARCA"]
[null,null,null,null,null,null,null,null,null,589,6,1,2,"ASUNCION"]
[null,null,null,null,null,null,null,null,null,589,6,1,3,"CHETILLA"]
[null,null,null,null,null,null,null,null,null,589,6,1,4,"COSPAN"]
[null,null,null,null,null,null,null,null,null,589,6,1,5,"ENCAÑADA"]
[null,null,null,null,null,null,null,null,null,589,6,1,6,"JESUS"]
[null,null,null,null,null,null,null,null,null,589,6,1,7,"LLACANORA"]
[null,null,null,null,null,null,null,null,null,589,6,1,8,"LOS BAÑOS DEL I"]
[null,null,null,null,null,null,null,null,null,589,6,1,9,"MAGDALENA"]
[null,null,null,null,null,null,null,null,null,589,6,1,10,"MATARA"]
[null,null,null,null,null,null,null,null,null,589,6,1,11,"NAMORA"]
[null,null,null,null,null,null,null,null,null,589,6,1,12,"SAN JUAN"]
[null,null,null,null,null,null,null,null,null,589,6,2,1,"CAJABAMBA"]
[null,null,null,null,null,null,null,null,null,589,6,2,2,"CACHACHI"]
[null,null,null,null,null,null,null,null,null,589,6,2,3,"CONDEBAMBA"]
[null,null,null,null,null,null,null,null,null,589,6,2,4,"SITACOCHA"]
[null,null,null,null,null,null,null,null,null,589,6,3,1,"CELENDIN"]
[null,null,null,null,null,null,null,null,null,589,6,3,2,"CHUMUCH"]
[null,null,null,null,null,null,null,null,null,589,6,3,3,"CORTEGANA"]
[null,null,null,null,null,null,null,null,null,589,6,3,4,"HUASMIN"]
[null,null,null,null,null,null,null,null,null,589,6,3,5,"JORGE CHAVEZ"]
[null,null,null,null,null,null,null,null,null,589,6,3,6,"JOSE GALVEZ"]
[null,null,null,null,null,null,null,null,null,589,6,3,7,"MIGUEL IGLESIAS"]
[null,null,null,null,null,null,null,null,null,589,6,3,8,"OXAMARCA"]
[null,null,null,null,null,null,null,null,null,589,6,3,9,"SOROCHUCO"]
[null,null,null,null,null,null,null,null,null,589,6,3,10,"SUCRE"]
[null,null,null,null,null,null,null,null,null,589,6,3,11,"UTCO"]
[null,null,null,null,null,null,null,null,null,589,6,3,12,"LA LIBERTAD DE"]
[null,null,null,null,null,null,null,null,null,589,6,4,1,"CHOTA"]
[null,null,null,null,null,null,null,null,null,589,6,4,2,"ANGUIA"]
[null,null,null,null,null,null,null,null,null,589,6,4,3,"CHADIN"]
[null,null,null,null,null,null,null,null,null,589,6,4,4,"CHIGUIRIP"]
[null,null,null,null,null,null,null,null,null,589,6,4,5,"CHIMBAN"]
[null,null,null,null,null,null,null,null,null,589,6,4,6,"CHOROPAMPA"]
[null,null,null,null,null,null,null,null,null,589,6,4,7,"COCHABAMBA"]
[null,null,null,null,null,null,null,null,null,589,6,4,8,"CONCHAN"]
[null,null,null,null,null,null,null,null,null,589,6,4,9,"HUAMBOS"]
[null,null,null,null,null,null,null,null,null,589,6,4,10,"LAJAS"]
[null,null,null,null,null,null,null,null,null,589,6,4,11,"LLAMA"]
[null,null,null,null,null,null,null,null,null,589,6,4,12,"MIRACOSTA"]
[null,null,null,null,null,null,null,null,null,589,6,4,13,"PACCHA"]
[null,null,null,null,null,null,null,null,null,589,6,4,14,"PION"]
[null,null,null,null,null,null,null,null,null,589,6,4,15,"QUEROCOTO"]
[null,null,null,null,null,null,null,null,null,589,6,4,16,"SAN JUAN DE LIC"]
[null,null,null,null,null,null,null,null,null,589,6,4,17,"TACABAMBA"]
[null,null,null,null,null,null,null,null,null,589,6,4,18,"TOCMOCHE"]
[null,null,null,null,null,null,null,null,null,589,6,4,19,"CHALAMARCA"]
[null,null,null,null,null,null,null,null,null,589,6,5,1,"CONTUMAZA"]
[null,null,null,null,null,null,null,null,null,589,6,5,2,"CHILETE"]
[null,null,null,null,null,null,null,null,null,589,6,5,3,"CUPISNIQUE"]
[null,null,null,null,null,null,null,null,null,589,6,5,4,"GUZMANGO"]
[null,null,null,null,null,null,null,null,null,589,6,5,5,"SAN BENITO"]
[null,null,null,null,null,null,null,null,null,589,6,5,6,"SANTA CRUZ DE T"]
[null,null,null,null,null,null,null,null,null,589,6,5,7,"TANTARICA"]
[null,null,null,null,null,null,null,null,null,589,6,5,8,"YONAN"]
[null,null,null,null,null,null,null,null,null,589,6,6,1,"CUTERVO"]
[null,null,null,null,null,null,null,null,null,589,6,6,2,"CALLAYUC"]
[null,null,null,null,null,null,null,null,null,589,6,6,3,"CHOROS"]
[null,null,null,null,null,null,null,null,null,589,6,6,4,"CUJILLO"]
[null,null,null,null,null,null,null,null,null,589,6,6,5,"LA RAMADA"]
[null,null,null,null,null,null,null,null,null,589,6,6,6,"PIMPINGOS"]
[null,null,null,null,null,null,null,null,null,589,6,6,7,"QUEROCOTILLO"]
[null,null,null,null,null,null,null,null,null,589,6,6,8,"SAN ANDRES DE C"]
[null,null,null,null,null,null,null,null,null,589,6,6,9,"SAN JUAN DE CUT"]
[null,null,null,null,null,null,null,null,null,589,6,6,10,"SAN LUIS DE LUC"]
[null,null,null,null,null,null,null,null,null,589,6,6,11,"SANTA CRUZ"]
[null,null,null,null,null,null,null,null,null,589,6,6,12,"SANTO DOMINGO D"]
[null,null,null,null,null,null,null,null,null,589,6,6,13,"SANTO TOMAS"]
[null,null,null,null,null,null,null,null,null,589,6,6,14,"SOCOTA"]
[null,null,null,null,null,null,null,null,null,589,6,6,15,"TORIBIO CASANOV"]
[null,null,null,null,null,null,null,null,null,589,6,7,1,"BAMBAMARCA"]
[null,null,null,null,null,null,null,null,null,589,6,7,2,"CHUGUR"]
[null,null,null,null,null,null,null,null,null,589,6,7,3,"HUALGAYOC"]
[null,null,null,null,null,null,null,null,null,589,6,8,1,"JAEN"]
[null,null,null,null,null,null,null,null,null,589,6,8,2,"BELLAVISTA"]
[null,null,null,null,null,null,null,null,null,589,6,8,3,"CHONTALI"]
[null,null,null,null,null,null,null,null,null,589,6,8,4,"COLASAY"]
[null,null,null,null,null,null,null,null,null,589,6,8,5,"HUABAL"]
[null,null,null,null,null,null,null,null,null,589,6,8,6,"LAS PIRIAS"]
[null,null,null,null,null,null,null,null,null,589,6,8,7,"POMAHUACA"]
[null,null,null,null,null,null,null,null,null,589,6,8,8,"PUCARA"]
[null,null,null,null,null,null,null,null,null,589,6,8,9,"SALLIQUE"]
[null,null,null,null,null,null,null,null,null,589,6,8,10,"SAN FELIPE"]
[null,null,null,null,null,null,null,null,null,589,6,8,11,"SAN JOSE DEL AL"]
[null,null,null,null,null,null,null,null,null,589,6,8,12,"SANTA ROSA"]
[null,null,null,null,null,null,null,null,null,589,6,9,1,"SAN IGNACIO"]
[null,null,null,null,null,null,null,null,null,589,6,9,2,"CHIRINOS"]
[null,null,null,null,null,null,null,null,null,589,6,9,3,"HUARANGO"]
[null,null,null,null,null,null,null,null,null,589,6,9,4,"LA COIPA"]
[null,null,null,null,null,null,null,null,null,589,6,9,5,"NAMBALLE"]
[null,null,null,null,null,null,null,null,null,589,6,9,6,"SAN JOSE DE LOU"]
[null,null,null,null,null,null,null,null,null,589,6,9,7,"TABACONAS"]
[null,null,null,null,null,null,null,null,null,589,6,10,1,"PEDRO GALVEZ"]
[null,null,null,null,null,null,null,null,null,589,6,10,2,"CHANCAY"]
[null,null,null,null,null,null,null,null,null,589,6,10,3,"EDUARDO VILLANU"]
[null,null,null,null,null,null,null,null,null,589,6,10,4,"GREGORIO PITA"]
[null,null,null,null,null,null,null,null,null,589,6,10,5,"ICHOCAN"]
[null,null,null,null,null,null,null,null,null,589,6,10,6,"JOSE MANUEL QUI"]
[null,null,null,null,null,null,null,null,null,589,6,10,7,"JOSE SABOGAL"]
[null,null,null,null,null,null,null,null,null,589,6,11,1,"SAN MIGUEL"]
[null,null,null,null,null,null,null,null,null,589,6,11,2,"BOLIVAR"]
[null,null,null,null,null,null,null,null,null,589,6,11,3,"CALQUIS"]
[null,null,null,null,null,null,null,null,null,589,6,11,4,"CATILLUC"]
[null,null,null,null,null,null,null,null,null,589,6,11,5,"EL PRADO"]
[null,null,null,null,null,null,null,null,null,589,6,11,6,"LA FLORIDA"]
[null,null,null,null,null,null,null,null,null,589,6,11,7,"LLAPA"]
[null,null,null,null,null,null,null,null,null,589,6,11,8,"NANCHOC"]
[null,null,null,null,null,null,null,null,null,589,6,11,9,"NIEPOS"]
[null,null,null,null,null,null,null,null,null,589,6,11,10,"SAN GREGORIO"]
[null,null,null,null,null,null,null,null,null,589,6,11,11,"SAN SILVESTRE D"]
[null,null,null,null,null,null,null,null,null,589,6,11,12,"TONGOD"]
[null,null,null,null,null,null,null,null,null,589,6,11,13,"UNION AGUA BLAN"]
[null,null,null,null,null,null,null,null,null,589,6,12,1,"SAN PABLO"]
[null,null,null,null,null,null,null,null,null,589,6,12,2,"SAN BERNARDINO"]
[null,null,null,null,null,null,null,null,null,589,6,12,3,"SAN LUIS"]
[null,null,null,null,null,null,null,null,null,589,6,12,4,"TUMBADEN"]
[null,null,null,null,null,null,null,null,null,589,6,13,1,"SANTA CRUZ"]
[null,null,null,null,null,null,null,null,null,589,6,13,2,"ANDABAMBA"]
[null,null,null,null,null,null,null,null,null,589,6,13,3,"CATACHE"]
[null,null,null,null,null,null,null,null,null,589,6,13,4,"CHANCAYBAÑOS"]
[null,null,null,null,null,null,null,null,null,589,6,13,5,"LA ESPERANZA"]
[null,null,null,null,null,null,null,null,null,589,6,13,6,"NINABAMBA"]
[null,null,null,null,null,null,null,null,null,589,6,13,7,"PULAN"]
[null,null,null,null,null,null,null,null,null,589,6,13,8,"SAUCEPAMPA"]
[null,null,null,null,null,null,null,null,null,589,6,13,9,"SEXI"]
[null,null,null,null,null,null,null,null,null,589,6,13,10,"UTICYACU"]
[null,null,null,null,null,null,null,null,null,589,6,13,11,"YAUYUCAN"]
[null,null,null,null,null,null,null,null,null,589,7,1,1,"CALLAO"]
[null,null,null,null,null,null,null,null,null,589,7,1,2,"BELLAVISTA"]
[null,null,null,null,null,null,null,null,null,589,7,1,3,"CARMEN DE LA LE"]
[null,null,null,null,null,null,null,null,null,589,7,1,4,"LA PERLA"]
[null,null,null,null,null,null,null,null,null,589,7,1,5,"LA PUNTA"]
[null,null,null,null,null,null,null,null,null,589,7,1,6,"VENTANILLA"]
[null,null,null,null,null,null,null,null,null,589,8,1,1,"CUSCO"]
[null,null,null,null,null,null,null,null,null,589,8,1,2,"CCORCA"]
[null,null,null,null,null,null,null,null,null,589,8,1,3,"POROY"]
[null,null,null,null,null,null,null,null,null,589,8,1,4,"SAN JERONIMO"]
[null,null,null,null,null,null,null,null,null,589,8,1,5,"SAN SEBASTIAN"]
[null,null,null,null,null,null,null,null,null,589,8,1,6,"SANTIAGO"]
[null,null,null,null,null,null,null,null,null,589,8,1,7,"SAYLLA"]
[null,null,null,null,null,null,null,null,null,589,8,1,8,"WANCHAQ"]
[null,null,null,null,null,null,null,null,null,589,8,2,1,"ACOMAYO"]
[null,null,null,null,null,null,null,null,null,589,8,2,2,"ACOPIA"]
[null,null,null,null,null,null,null,null,null,589,8,2,3,"ACOS"]
[null,null,null,null,null,null,null,null,null,589,8,2,4,"MOSOC LLACTA"]
[null,null,null,null,null,null,null,null,null,589,8,2,5,"POMACANCHI"]
[null,null,null,null,null,null,null,null,null,589,8,2,6,"RONDOCAN"]
[null,null,null,null,null,null,null,null,null,589,8,2,7,"SANGARARA"]
[null,null,null,null,null,null,null,null,null,589,8,3,1,"ANTA"]
[null,null,null,null,null,null,null,null,null,589,8,3,2,"ANCAHUASI"]
[null,null,null,null,null,null,null,null,null,589,8,3,3,"CACHIMAYO"]
[null,null,null,null,null,null,null,null,null,589,8,3,4,"CHINCHAYPUJIO"]
[null,null,null,null,null,null,null,null,null,589,8,3,5,"HUAROCONDO"]
[null,null,null,null,null,null,null,null,null,589,8,3,6,"LIMATAMBO"]
[null,null,null,null,null,null,null,null,null,589,8,3,7,"MOLLEPATA"]
[null,null,null,null,null,null,null,null,null,589,8,3,8,"PUCYURA"]
[null,null,null,null,null,null,null,null,null,589,8,3,9,"ZURITE"]
[null,null,null,null,null,null,null,null,null,589,8,4,1,"CALCA"]
[null,null,null,null,null,null,null,null,null,589,8,4,2,"COYA"]
[null,null,null,null,null,null,null,null,null,589,8,4,3,"LAMAY"]
[null,null,null,null,null,null,null,null,null,589,8,4,4,"LARES"]
[null,null,null,null,null,null,null,null,null,589,8,4,5,"PISAC"]
[null,null,null,null,null,null,null,null,null,589,8,4,6,"SAN SALVADOR"]
[null,null,null,null,null,null,null,null,null,589,8,4,7,"TARAY"]
[null,null,null,null,null,null,null,null,null,589,8,4,8,"YANATILE"]
[null,null,null,null,null,null,null,null,null,589,8,5,1,"YANAOCA"]
[null,null,null,null,null,null,null,null,null,589,8,5,2,"CHECCA"]
[null,null,null,null,null,null,null,null,null,589,8,5,3,"KUNTURKANKI"]
[null,null,null,null,null,null,null,null,null,589,8,5,4,"LANGUI"]
[null,null,null,null,null,null,null,null,null,589,8,5,5,"LAYO"]
[null,null,null,null,null,null,null,null,null,589,8,5,6,"PAMPAMARCA"]
[null,null,null,null,null,null,null,null,null,589,8,5,7,"QUEHUE"]
[null,null,null,null,null,null,null,null,null,589,8,5,8,"TUPAC AMARU"]
[null,null,null,null,null,null,null,null,null,589,8,6,1,"SICUANI"]
[null,null,null,null,null,null,null,null,null,589,8,6,2,"CHECACUPE"]
[null,null,null,null,null,null,null,null,null,589,8,6,3,"COMBAPATA"]
[null,null,null,null,null,null,null,null,null,589,8,6,4,"MARANGANI"]
[null,null,null,null,null,null,null,null,null,589,8,6,5,"PITUMARCA"]
[null,null,null,null,null,null,null,null,null,589,8,6,6,"SAN PABLO"]
[null,null,null,null,null,null,null,null,null,589,8,6,7,"SAN PEDRO"]
[null,null,null,null,null,null,null,null,null,589,8,6,8,"TINTA"]
[null,null,null,null,null,null,null,null,null,589,8,7,1,"SANTO TOMAS"]
[null,null,null,null,null,null,null,null,null,589,8,7,2,"CAPACMARCA"]
[null,null,null,null,null,null,null,null,null,589,8,7,3,"CHAMACA"]
[null,null,null,null,null,null,null,null,null,589,8,7,4,"COLQUEMARCA"]
[null,null,null,null,null,null,null,null,null,589,8,7,5,"LIVITACA"]
[null,null,null,null,null,null,null,null,null,589,8,7,6,"LLUSCO"]
[null,null,null,null,null,null,null,null,null,589,8,7,7,"QUIÑOTA"]
[null,null,null,null,null,null,null,null,null,589,8,7,8,"VELILLE"]
[null,null,null,null,null,null,null,null,null,589,8,8,1,"ESPINAR"]
[null,null,null,null,null,null,null,null,null,589,8,8,2,"CONDOROMA"]
[null,null,null,null,null,null,null,null,null,589,8,8,3,"COPORAQUE"]
[null,null,null,null,null,null,null,null,null,589,8,8,4,"OCORURO"]
[null,null,null,null,null,null,null,null,null,589,8,8,5,"PALLPATA"]
[null,null,null,null,null,null,null,null,null,589,8,8,6,"PICHIGUA"]
[null,null,null,null,null,null,null,null,null,589,8,8,7,"SUYCKUTAMBO"]
[null,null,null,null,null,null,null,null,null,589,8,8,8,"ALTO PICHIGUA"]
[null,null,null,null,null,null,null,null,null,589,8,9,1,"SANTA ANA"]
[null,null,null,null,null,null,null,null,null,589,8,9,2,"ECHARATE"]
[null,null,null,null,null,null,null,null,null,589,8,9,3,"HUAYOPATA"]
[null,null,null,null,null,null,null,null,null,589,8,9,4,"MARANURA"]
[null,null,null,null,null,null,null,null,null,589,8,9,5,"OCOBAMBA"]
[null,null,null,null,null,null,null,null,null,589,8,9,6,"QUELLOUNO"]
[null,null,null,null,null,null,null,null,null,589,8,9,7,"QUIMBIRI"]
[null,null,null,null,null,null,null,null,null,589,8,9,8,"SANTA TERESA"]
[null,null,null,null,null,null,null,null,null,589,8,9,9,"VILCABAMBA"]
[null,null,null,null,null,null,null,null,null,589,8,9,10,"PICHARI"]
[null,null,null,null,null,null,null,null,null,589,8,10,1,"PARURO"]
[null,null,null,null,null,null,null,null,null,589,8,10,2,"ACCHA"]
[null,null,null,null,null,null,null,null,null,589,8,10,3,"CCAPI"]
[null,null,null,null,null,null,null,null,null,589,8,10,4,"COLCHA"]
[null,null,null,null,null,null,null,null,null,589,8,10,5,"HUANOQUITE"]
[null,null,null,null,null,null,null,null,null,589,8,10,6,"OMACHA"]
[null,null,null,null,null,null,null,null,null,589,8,10,7,"PACCARITAMBO"]
[null,null,null,null,null,null,null,null,null,589,8,10,8,"PILLPINTO"]
[null,null,null,null,null,null,null,null,null,589,8,10,9,"YAURISQUE"]
[null,null,null,null,null,null,null,null,null,589,8,11,1,"PAUCARTAMBO"]
[null,null,null,null,null,null,null,null,null,589,8,11,2,"CAICAY"]
[null,null,null,null,null,null,null,null,null,589,8,11,3,"CHALLABAMBA"]
[null,null,null,null,null,null,null,null,null,589,8,11,4,"COLQUEPATA"]
[null,null,null,null,null,null,null,null,null,589,8,11,5,"HUANCARANI"]
[null,null,null,null,null,null,null,null,null,589,8,11,6,"KOSÑIPATA"]
[null,null,null,null,null,null,null,null,null,589,8,12,1,"URCOS"]
[null,null,null,null,null,null,null,null,null,589,8,12,2,"ANDAHUAYLILLAS"]
[null,null,null,null,null,null,null,null,null,589,8,12,3,"CAMANTI"]
[null,null,null,null,null,null,null,null,null,589,8,12,4,"CCARHUAYO"]
[null,null,null,null,null,null,null,null,null,589,8,12,5,"CCATCA"]
[null,null,null,null,null,null,null,null,null,589,8,12,6,"CUSIPATA"]
[null,null,null,null,null,null,null,null,null,589,8,12,7,"HUARO"]
[null,null,null,null,null,null,null,null,null,589,8,12,8,"LUCRE"]
[null,null,null,null,null,null,null,null,null,589,8,12,9,"MARCAPATA"]
[null,null,null,null,null,null,null,null,null,589,8,12,10,"OCONGATE"]
[null,null,null,null,null,null,null,null,null,589,8,12,11,"OROPESA"]
[null,null,null,null,null,null,null,null,null,589,8,12,12,"QUIQUIJANA"]
[null,null,null,null,null,null,null,null,null,589,8,13,1,"URUBAMBA"]
[null,null,null,null,null,null,null,null,null,589,8,13,2,"CHINCHERO"]
[null,null,null,null,null,null,null,null,null,589,8,13,3,"HUAYLLABAMBA"]
[null,null,null,null,null,null,null,null,null,589,8,13,4,"MACHUPICCHU"]
[null,null,null,null,null,null,null,null,null,589,8,13,5,"MARAS"]
[null,null,null,null,null,null,null,null,null,589,8,13,6,"OLLANTAYTAMBO"]
[null,null,null,null,null,null,null,null,null,589,8,13,7,"YUCAY"]
[null,null,null,null,null,null,null,null,null,589,9,1,1,"HUANCAVELICA"]
[null,null,null,null,null,null,null,null,null,589,9,1,2,"ACOBAMBILLA"]
[null,null,null,null,null,null,null,null,null,589,9,1,3,"ACORIA"]
[null,null,null,null,null,null,null,null,null,589,9,1,4,"CONAYCA"]
[null,null,null,null,null,null,null,null,null,589,9,1,5,"CUENCA"]
[null,null,null,null,null,null,null,null,null,589,9,1,6,"HUACHOCOLPA"]
[null,null,null,null,null,null,null,null,null,589,9,1,7,"HUAYLLAHUARA"]
[null,null,null,null,null,null,null,null,null,589,9,1,8,"IZCUCHACA"]
[null,null,null,null,null,null,null,null,null,589,9,1,9,"LARIA"]
[null,null,null,null,null,null,null,null,null,589,9,1,10,"MANTA"]
[null,null,null,null,null,null,null,null,null,589,9,1,11,"MARISCAL CACERE"]
[null,null,null,null,null,null,null,null,null,589,9,1,12,"MOYA"]
[null,null,null,null,null,null,null,null,null,589,9,1,13,"NUEVO OCCORO"]
[null,null,null,null,null,null,null,null,null,589,9,1,14,"PALCA"]
[null,null,null,null,null,null,null,null,null,589,9,1,15,"PILCHACA"]
[null,null,null,null,null,null,null,null,null,589,9,1,16,"VILCA"]
[null,null,null,null,null,null,null,null,null,589,9,1,17,"YAULI"]
[null,null,null,null,null,null,null,null,null,589,9,1,18,"ASCENCION"]
[null,null,null,null,null,null,null,null,null,589,9,1,19,"HUANDO"]
[null,null,null,null,null,null,null,null,null,589,9,2,1,"ACOBAMBA"]
[null,null,null,null,null,null,null,null,null,589,9,2,2,"ANDABAMBA"]
[null,null,null,null,null,null,null,null,null,589,9,2,3,"ANTA"]
[null,null,null,null,null,null,null,null,null,589,9,2,4,"CAJA"]
[null,null,null,null,null,null,null,null,null,589,9,2,5,"MARCAS"]
[null,null,null,null,null,null,null,null,null,589,9,2,6,"PAUCARA"]
[null,null,null,null,null,null,null,null,null,589,9,2,7,"POMACOCHA"]
[null,null,null,null,null,null,null,null,null,589,9,2,8,"ROSARIO"]
[null,null,null,null,null,null,null,null,null,589,9,3,1,"LIRCAY"]
[null,null,null,null,null,null,null,null,null,589,9,3,2,"ANCHONGA"]
[null,null,null,null,null,null,null,null,null,589,9,3,3,"CALLANMARCA"]
[null,null,null,null,null,null,null,null,null,589,9,3,4,"CCOCHACCASA"]
[null,null,null,null,null,null,null,null,null,589,9,3,5,"CHINCHO"]
[null,null,null,null,null,null,null,null,null,589,9,3,6,"CONGALLA"]
[null,null,null,null,null,null,null,null,null,589,9,3,7,"HUANCA-HUANCA"]
[null,null,null,null,null,null,null,null,null,589,9,3,8,"HUAYLLAY GRANDE"]
[null,null,null,null,null,null,null,null,null,589,9,3,9,"JULCAMARCA"]
[null,null,null,null,null,null,null,null,null,589,9,3,10,"SAN ANTONIO DE"]
[null,null,null,null,null,null,null,null,null,589,9,3,11,"SANTO TOMAS DE"]
[null,null,null,null,null,null,null,null,null,589,9,3,12,"SECCLLA"]
[null,null,null,null,null,null,null,null,null,589,9,4,1,"CASTROVIRREYNA"]
[null,null,null,null,null,null,null,null,null,589,9,4,2,"ARMA"]
[null,null,null,null,null,null,null,null,null,589,9,4,3,"AURAHUA"]
[null,null,null,null,null,null,null,null,null,589,9,4,4,"CAPILLAS"]
[null,null,null,null,null,null,null,null,null,589,9,4,5,"CHUPAMARCA"]
[null,null,null,null,null,null,null,null,null,589,9,4,6,"COCAS"]
[null,null,null,null,null,null,null,null,null,589,9,4,7,"HUACHOS"]
[null,null,null,null,null,null,null,null,null,589,9,4,8,"HUAMATAMBO"]
[null,null,null,null,null,null,null,null,null,589,9,4,9,"MOLLEPAMPA"]
[null,null,null,null,null,null,null,null,null,589,9,4,10,"SAN JUAN"]
[null,null,null,null,null,null,null,null,null,589,9,4,11,"SANTA ANA"]
[null,null,null,null,null,null,null,null,null,589,9,4,12,"TANTARA"]
[null,null,null,null,null,null,null,null,null,589,9,4,13,"TICRAPO"]
[null,null,null,null,null,null,null,null,null,589,9,5,1,"CHURCAMPA"]
[null,null,null,null,null,null,null,null,null,589,9,5,2,"ANCO"]
[null,null,null,null,null,null,null,null,null,589,9,5,3,"CHINCHIHUASI"]
[null,null,null,null,null,null,null,null,null,589,9,5,4,"EL CARMEN"]
[null,null,null,null,null,null,null,null,null,589,9,5,5,"LA MERCED"]
[null,null,null,null,null,null,null,null,null,589,9,5,6,"LOCROJA"]
[null,null,null,null,null,null,null,null,null,589,9,5,7,"PAUCARBAMBA"]
[null,null,null,null,null,null,null,null,null,589,9,5,8,"SAN MIGUEL DE M"]
[null,null,null,null,null,null,null,null,null,589,9,5,9,"SAN PEDRO DE CO"]
[null,null,null,null,null,null,null,null,null,589,9,5,10,"PACHAMARCA"]
[null,null,null,null,null,null,null,null,null,589,9,6,1,"HUAYTARA"]
[null,null,null,null,null,null,null,null,null,589,9,6,2,"AYAVI"]
[null,null,null,null,null,null,null,null,null,589,9,6,3,"CORDOVA"]
[null,null,null,null,null,null,null,null,null,589,9,6,4,"HUAYACUNDO ARMA"]
[null,null,null,null,null,null,null,null,null,589,9,6,5,"LARAMARCA"]
[null,null,null,null,null,null,null,null,null,589,9,6,6,"OCOYO"]
[null,null,null,null,null,null,null,null,null,589,9,6,7,"PILPICHACA"]
[null,null,null,null,null,null,null,null,null,589,9,6,8,"QUERCO"]
[null,null,null,null,null,null,null,null,null,589,9,6,9,"QUITO-ARMA"]
[null,null,null,null,null,null,null,null,null,589,9,6,10,"SAN ANTONIO DE"]
[null,null,null,null,null,null,null,null,null,589,9,6,11,"SAN FRANCISCO D"]
[null,null,null,null,null,null,null,null,null,589,9,6,12,"SAN ISIDRO"]
[null,null,null,null,null,null,null,null,null,589,9,6,13,"SANTIAGO DE CHO"]
[null,null,null,null,null,null,null,null,null,589,9,6,14,"SANTIAGO DE QUI"]
[null,null,null,null,null,null,null,null,null,589,9,6,15,"SANTO DOMINGO D"]
[null,null,null,null,null,null,null,null,null,589,9,6,16,"TAMBO"]
[null,null,null,null,null,null,null,null,null,589,9,7,1,"PAMPAS"]
[null,null,null,null,null,null,null,null,null,589,9,7,2,"ACOSTAMBO"]
[null,null,null,null,null,null,null,null,null,589,9,7,3,"ACRAQUIA"]
[null,null,null,null,null,null,null,null,null,589,9,7,4,"AHUAYCHA"]
[null,null,null,null,null,null,null,null,null,589,9,7,5,"COLCABAMBA"]
[null,null,null,null,null,null,null,null,null,589,9,7,6,"DANIEL HERNANDE"]
[null,null,null,null,null,null,null,null,null,589,9,7,7,"HUACHOCOLPA"]
[null,null,null,null,null,null,null,null,null,589,9,7,8,"HUANDO"]
[null,null,null,null,null,null,null,null,null,589,9,7,9,"HUARIBAMBA"]
[null,null,null,null,null,null,null,null,null,589,9,7,10,"ÑAHUIMPUQUIO"]
[null,null,null,null,null,null,null,null,null,589,9,7,11,"PAZOS"]
[null,null,null,null,null,null,null,null,null,589,9,7,12,"PACHAMARCA"]
[null,null,null,null,null,null,null,null,null,589,9,7,13,"QUISHUAR"]
[null,null,null,null,null,null,null,null,null,589,9,7,14,"SALCABAMBA"]
[null,null,null,null,null,null,null,null,null,589,9,7,15,"SALCAHUASI"]
[null,null,null,null,null,null,null,null,null,589,9,7,16,"SAN MARCOS DE R"]
[null,null,null,null,null,null,null,null,null,589,9,7,17,"SURCUBAMBA"]
[null,null,null,null,null,null,null,null,null,589,9,7,18,"TINTAY PUNCU"]
[null,null,null,null,null,null,null,null,null,589,10,1,1,"HUANUCO"]
[null,null,null,null,null,null,null,null,null,589,10,1,2,"AMARILIS"]
[null,null,null,null,null,null,null,null,null,589,10,1,3,"CHINCHAO"]
[null,null,null,null,null,null,null,null,null,589,10,1,4,"CHURUBAMBA"]
[null,null,null,null,null,null,null,null,null,589,10,1,5,"MARGOS"]
[null,null,null,null,null,null,null,null,null,589,10,1,6,"QUISQUI"]
[null,null,null,null,null,null,null,null,null,589,10,1,7,"SAN FRANCISCO D"]
[null,null,null,null,null,null,null,null,null,589,10,1,8,"SAN PEDRO DE CH"]
[null,null,null,null,null,null,null,null,null,589,10,1,9,"SANTA MARIA DEL"]
[null,null,null,null,null,null,null,null,null,589,10,1,10,"YARUMAYO"]
[null,null,null,null,null,null,null,null,null,589,10,1,11,"PILLCO MARCA"]
[null,null,null,null,null,null,null,null,null,589,10,2,1,"AMBO"]
[null,null,null,null,null,null,null,null,null,589,10,2,2,"CAYNA"]
[null,null,null,null,null,null,null,null,null,589,10,2,3,"COLPAS"]
[null,null,null,null,null,null,null,null,null,589,10,2,4,"CONCHAMARCA"]
[null,null,null,null,null,null,null,null,null,589,10,2,5,"HUACAR"]
[null,null,null,null,null,null,null,null,null,589,10,2,6,"SAN FRANCISCO"]
[null,null,null,null,null,null,null,null,null,589,10,2,7,"SAN RAFAEL"]
[null,null,null,null,null,null,null,null,null,589,10,2,8,"TOMAY KICHWA"]
[null,null,null,null,null,null,null,null,null,589,10,3,1,"LA UNION"]
[null,null,null,null,null,null,null,null,null,589,10,3,7,"CHUQUIS"]
[null,null,null,null,null,null,null,null,null,589,10,3,11,"MARIAS"]
[null,null,null,null,null,null,null,null,null,589,10,3,13,"PACHAS"]
[null,null,null,null,null,null,null,null,null,589,10,3,16,"QUIVILLA"]
[null,null,null,null,null,null,null,null,null,589,10,3,17,"RIPAN"]
[null,null,null,null,null,null,null,null,null,589,10,3,21,"SHUNQUI"]
[null,null,null,null,null,null,null,null,null,589,10,3,22,"SILLAPATA"]
[null,null,null,null,null,null,null,null,null,589,10,3,23,"YANAS"]
[null,null,null,null,null,null,null,null,null,589,10,4,1,"HUACAYBAMBA"]
[null,null,null,null,null,null,null,null,null,589,10,4,2,"CANCHABAMBA"]
[null,null,null,null,null,null,null,null,null,589,10,4,3,"COCHABAMBA"]
[null,null,null,null,null,null,null,null,null,589,10,4,4,"PINRA"]
[null,null,null,null,null,null,null,null,null,589,10,5,1,"LLATA"]
[null,null,null,null,null,null,null,null,null,589,10,5,2,"ARANCAY"]
[null,null,null,null,null,null,null,null,null,589,10,5,3,"CHAVIN DE PARIA"]
[null,null,null,null,null,null,null,null,null,589,10,5,4,"JACAS GRANDE"]
[null,null,null,null,null,null,null,null,null,589,10,5,5,"JIRCAN"]
[null,null,null,null,null,null,null,null,null,589,10,5,6,"MIRAFLORES"]
[null,null,null,null,null,null,null,null,null,589,10,5,7,"MONZON"]
[null,null,null,null,null,null,null,null,null,589,10,5,8,"PUNCHAO"]
[null,null,null,null,null,null,null,null,null,589,10,5,9,"PUÑOS"]
[null,null,null,null,null,null,null,null,null,589,10,5,10,"SINGA"]
[null,null,null,null,null,null,null,null,null,589,10,5,11,"TANTAMAYO"]
[null,null,null,null,null,null,null,null,null,589,10,6,1,"RUPA-RUPA"]
[null,null,null,null,null,null,null,null,null,589,10,6,2,"DANIEL ALOMIAS"]
[null,null,null,null,null,null,null,null,null,589,10,6,3,"HERMILIO VALDIZ"]
[null,null,null,null,null,null,null,null,null,589,10,6,4,"JOSE CRESPO Y C"]
[null,null,null,null,null,null,null,null,null,589,10,6,5,"LUYANDO"]
[null,null,null,null,null,null,null,null,null,589,10,6,6,"MARIANO DAMASO"]
[null,null,null,null,null,null,null,null,null,589,10,7,1,"HUACRACHUCO"]
[null,null,null,null,null,null,null,null,null,589,10,7,2,"CHOLON"]
[null,null,null,null,null,null,null,null,null,589,10,7,3,"SAN BUENAVENTUR"]
[null,null,null,null,null,null,null,null,null,589,10,8,1,"PANAO"]
[null,null,null,null,null,null,null,null,null,589,10,8,2,"CHAGLLA"]
[null,null,null,null,null,null,null,null,null,589,10,8,3,"MOLINO"]
[null,null,null,null,null,null,null,null,null,589,10,8,4,"UMARI"]
[null,null,null,null,null,null,null,null,null,589,10,9,1,"PUERTO INCA"]
[null,null,null,null,null,null,null,null,null,589,10,9,2,"CODO DEL POZUZO"]
[null,null,null,null,null,null,null,null,null,589,10,9,3,"HONORIA"]
[null,null,null,null,null,null,null,null,null,589,10,9,4,"TOURNAVISTA"]
[null,null,null,null,null,null,null,null,null,589,10,9,5,"YUYAPICHIS"]
[null,null,null,null,null,null,null,null,null,589,10,10,1,"JESUS"]
[null,null,null,null,null,null,null,null,null,589,10,10,2,"BAÑOS"]
[null,null,null,null,null,null,null,null,null,589,10,10,3,"JIVIA"]
[null,null,null,null,null,null,null,null,null,589,10,10,4,"QUEROPALCA"]
[null,null,null,null,null,null,null,null,null,589,10,10,5,"RONDOS"]
[null,null,null,null,null,null,null,null,null,589,10,10,6,"SAN FRANCISCO D"]
[null,null,null,null,null,null,null,null,null,589,10,10,7,"SAN MIGUEL DE C"]
[null,null,null,null,null,null,null,null,null,589,10,11,1,"CHAVINILLO"]
[null,null,null,null,null,null,null,null,null,589,10,11,2,"CAHUAC"]
[null,null,null,null,null,null,null,null,null,589,10,11,3,"CHACABAMBA"]
[null,null,null,null,null,null,null,null,null,589,10,11,4,"CHUPAN"]
[null,null,null,null,null,null,null,null,null,589,10,11,5,"JACAS CHICO"]
[null,null,null,null,null,null,null,null,null,589,10,11,6,"OBAS"]
[null,null,null,null,null,null,null,null,null,589,10,11,7,"PAMPAMARCA"]
[null,null,null,null,null,null,null,null,null,589,10,11,8,"CHORAS"]
[null,null,null,null,null,null,null,null,null,589,11,1,1,"ICA"]
[null,null,null,null,null,null,null,null,null,589,11,1,2,"LA TINGUIÑA"]
[null,null,null,null,null,null,null,null,null,589,11,1,3,"LOS AQUIJES"]
[null,null,null,null,null,null,null,null,null,589,11,1,4,"OCUCAJE"]
[null,null,null,null,null,null,null,null,null,589,11,1,5,"PACHACUTEC"]
[null,null,null,null,null,null,null,null,null,589,11,1,6,"PARCONA"]
[null,null,null,null,null,null,null,null,null,589,11,1,7,"PUEBLO NUEVO"]
[null,null,null,null,null,null,null,null,null,589,11,1,8,"SALAS"]
[null,null,null,null,null,null,null,null,null,589,11,1,9,"SAN JOSE DE LOS"]
[null,null,null,null,null,null,null,null,null,589,11,1,10,"SAN JUAN BAUTIS"]
[null,null,null,null,null,null,null,null,null,589,11,1,11,"SANTIAGO"]
[null,null,null,null,null,null,null,null,null,589,11,1,12,"SUBTANJALLA"]
[null,null,null,null,null,null,null,null,null,589,11,1,13,"TATE"]
[null,null,null,null,null,null,null,null,null,589,11,1,14,"YAUCA DEL ROSAR"]
[null,null,null,null,null,null,null,null,null,589,11,2,1,"CHINCHA ALTA"]
[null,null,null,null,null,null,null,null,null,589,11,2,2,"ALTO LARAN"]
[null,null,null,null,null,null,null,null,null,589,11,2,3,"CHAVIN"]
[null,null,null,null,null,null,null,null,null,589,11,2,4,"CHINCHA BAJA"]
[null,null,null,null,null,null,null,null,null,589,11,2,5,"EL CARMEN"]
[null,null,null,null,null,null,null,null,null,589,11,2,6,"GROCIO PRADO"]
[null,null,null,null,null,null,null,null,null,589,11,2,7,"PUEBLO NUEVO"]
[null,null,null,null,null,null,null,null,null,589,11,2,8,"SAN JUAN DE YAN"]
[null,null,null,null,null,null,null,null,null,589,11,2,9,"SAN PEDRO DE HU"]
[null,null,null,null,null,null,null,null,null,589,11,2,10,"SUNAMPE"]
[null,null,null,null,null,null,null,null,null,589,11,2,11,"TAMBO DE MORA"]
[null,null,null,null,null,null,null,null,null,589,11,3,1,"NAZCA"]
[null,null,null,null,null,null,null,null,null,589,11,3,2,"CHANGUILLO"]
[null,null,null,null,null,null,null,null,null,589,11,3,3,"EL INGENIO"]
[null,null,null,null,null,null,null,null,null,589,11,3,4,"MARCONA"]
[null,null,null,null,null,null,null,null,null,589,11,3,5,"VISTA ALEGRE"]
[null,null,null,null,null,null,null,null,null,589,11,4,1,"PALPA"]
[null,null,null,null,null,null,null,null,null,589,11,4,2,"LLIPATA"]
[null,null,null,null,null,null,null,null,null,589,11,4,3,"RIO GRANDE"]
[null,null,null,null,null,null,null,null,null,589,11,4,4,"SANTA CRUZ"]
[null,null,null,null,null,null,null,null,null,589,11,4,5,"TIBILLO"]
[null,null,null,null,null,null,null,null,null,589,11,5,1,"PISCO"]
[null,null,null,null,null,null,null,null,null,589,11,5,2,"HUANCANO"]
[null,null,null,null,null,null,null,null,null,589,11,5,3,"HUMAY"]
[null,null,null,null,null,null,null,null,null,589,11,5,4,"INDEPENDENCIA"]
[null,null,null,null,null,null,null,null,null,589,11,5,5,"PARACAS"]
[null,null,null,null,null,null,null,null,null,589,11,5,6,"SAN ANDRES"]
[null,null,null,null,null,null,null,null,null,589,11,5,7,"SAN CLEMENTE"]
[null,null,null,null,null,null,null,null,null,589,11,5,8,"TUPAC AMARU INC"]
[null,null,null,null,null,null,null,null,null,589,12,1,1,"HUANCAYO"]
[null,null,null,null,null,null,null,null,null,589,12,1,4,"CARHUACALLANGA"]
[null,null,null,null,null,null,null,null,null,589,12,1,5,"CHACAPAMPA"]
[null,null,null,null,null,null,null,null,null,589,12,1,6,"CHICCHE"]
[null,null,null,null,null,null,null,null,null,589,12,1,7,"CHILCA"]
[null,null,null,null,null,null,null,null,null,589,12,1,8,"CHONGOS ALTO"]
[null,null,null,null,null,null,null,null,null,589,12,1,11,"CHUPURO"]
[null,null,null,null,null,null,null,null,null,589,12,1,12,"COLCA"]
[null,null,null,null,null,null,null,null,null,589,12,1,13,"CULLHUAS"]
[null,null,null,null,null,null,null,null,null,589,12,1,14,"EL TAMBO"]
[null,null,null,null,null,null,null,null,null,589,12,1,16,"HUACRAPUQUIO"]
[null,null,null,null,null,null,null,null,null,589,12,1,17,"HUALHUAS"]
[null,null,null,null,null,null,null,null,null,589,12,1,19,"HUANCAN"]
[null,null,null,null,null,null,null,null,null,589,12,1,20,"HUASICANCHA"]
[null,null,null,null,null,null,null,null,null,589,12,1,21,"HUAYUCACHI"]
[null,null,null,null,null,null,null,null,null,589,12,1,22,"INGENIO"]
[null,null,null,null,null,null,null,null,null,589,12,1,24,"PARIAHUANCA"]
[null,null,null,null,null,null,null,null,null,589,12,1,25,"PILCOMAYO"]
[null,null,null,null,null,null,null,null,null,589,12,1,26,"PUCARA"]
[null,null,null,null,null,null,null,null,null,589,12,1,27,"QUICHUAY"]
[null,null,null,null,null,null,null,null,null,589,12,1,28,"QUILCAS"]
[null,null,null,null,null,null,null,null,null,589,12,1,29,"SAN AGUSTIN"]
[null,null,null,null,null,null,null,null,null,589,12,1,30,"SAN JERONIMO DE"]
[null,null,null,null,null,null,null,null,null,589,12,1,32,"SAÑO"]
[null,null,null,null,null,null,null,null,null,589,12,1,33,"SAPALLANGA"]
[null,null,null,null,null,null,null,null,null,589,12,1,34,"SICAYA"]
[null,null,null,null,null,null,null,null,null,589,12,1,35,"SANTO DOMINGO D"]
[null,null,null,null,null,null,null,null,null,589,12,1,36,"VIQUES"]
[null,null,null,null,null,null,null,null,null,589,12,2,1,"CONCEPCION"]
[null,null,null,null,null,null,null,null,null,589,12,2,2,"ACO"]
[null,null,null,null,null,null,null,null,null,589,12,2,3,"ANDAMARCA"]
[null,null,null,null,null,null,null,null,null,589,12,2,4,"CHAMBARA"]
[null,null,null,null,null,null,null,null,null,589,12,2,5,"COCHAS"]
[null,null,null,null,null,null,null,null,null,589,12,2,6,"COMAS"]
[null,null,null,null,null,null,null,null,null,589,12,2,7,"HEROINAS TOLEDO"]
[null,null,null,null,null,null,null,null,null,589,12,2,8,"MANZANARES"]
[null,null,null,null,null,null,null,null,null,589,12,2,9,"MARISCAL CASTIL"]
[null,null,null,null,null,null,null,null,null,589,12,2,10,"MATAHUASI"]
[null,null,null,null,null,null,null,null,null,589,12,2,11,"MITO"]
[null,null,null,null,null,null,null,null,null,589,12,2,12,"NUEVE DE JULIO"]
[null,null,null,null,null,null,null,null,null,589,12,2,13,"ORCOTUNA"]
[null,null,null,null,null,null,null,null,null,589,12,2,14,"SAN JOSE DE QUE"]
[null,null,null,null,null,null,null,null,null,589,12,2,15,"SANTA ROSA DE O"]
[null,null,null,null,null,null,null,null,null,589,12,3,1,"CHANCHAMAYO"]
[null,null,null,null,null,null,null,null,null,589,12,3,2,"PERENE"]
[null,null,null,null,null,null,null,null,null,589,12,3,3,"PICHANAQUI"]
[null,null,null,null,null,null,null,null,null,589,12,3,4,"SAN LUIS DE SHU"]
[null,null,null,null,null,null,null,null,null,589,12,3,5,"SAN RAMON"]
[null,null,null,null,null,null,null,null,null,589,12,3,6,"VITOC"]
[null,null,null,null,null,null,null,null,null,589,12,4,1,"JAUJA"]
[null,null,null,null,null,null,null,null,null,589,12,4,2,"ACOLLA"]
[null,null,null,null,null,null,null,null,null,589,12,4,3,"APATA"]
[null,null,null,null,null,null,null,null,null,589,12,4,4,"ATAURA"]
[null,null,null,null,null,null,null,null,null,589,12,4,5,"CANCHAYLLO"]
[null,null,null,null,null,null,null,null,null,589,12,4,6,"CURICACA"]
[null,null,null,null,null,null,null,null,null,589,12,4,7,"EL MANTARO"]
[null,null,null,null,null,null,null,null,null,589,12,4,8,"HUAMALI"]
[null,null,null,null,null,null,null,null,null,589,12,4,9,"HUARIPAMPA"]
[null,null,null,null,null,null,null,null,null,589,12,4,10,"HUERTAS"]
[null,null,null,null,null,null,null,null,null,589,12,4,11,"JANJAILLO"]
[null,null,null,null,null,null,null,null,null,589,12,4,12,"JULCAN"]
[null,null,null,null,null,null,null,null,null,589,12,4,13,"LEONOR ORDOÑEZ"]
[null,null,null,null,null,null,null,null,null,589,12,4,14,"LLOCLLAPAMPA"]
[null,null,null,null,null,null,null,null,null,589,12,4,15,"MARCO"]
[null,null,null,null,null,null,null,null,null,589,12,4,16,"MASMA"]
[null,null,null,null,null,null,null,null,null,589,12,4,17,"MASMA CHICCHE"]
[null,null,null,null,null,null,null,null,null,589,12,4,18,"MOLINOS"]
[null,null,null,null,null,null,null,null,null,589,12,4,19,"MONOBAMBA"]
[null,null,null,null,null,null,null,null,null,589,12,4,20,"MUQUI"]
[null,null,null,null,null,null,null,null,null,589,12,4,21,"MUQUIYAUYO"]
[null,null,null,null,null,null,null,null,null,589,12,4,22,"PACA"]
[null,null,null,null,null,null,null,null,null,589,12,4,23,"PACCHA"]
[null,null,null,null,null,null,null,null,null,589,12,4,24,"PANCAN"]
[null,null,null,null,null,null,null,null,null,589,12,4,25,"PARCO"]
[null,null,null,null,null,null,null,null,null,589,12,4,26,"POMACANCHA"]
[null,null,null,null,null,null,null,null,null,589,12,4,27,"RICRAN"]
[null,null,null,null,null,null,null,null,null,589,12,4,28,"SAN LORENZO"]
[null,null,null,null,null,null,null,null,null,589,12,4,29,"SAN PEDRO DE CH"]
[null,null,null,null,null,null,null,null,null,589,12,4,30,"SAUSA"]
[null,null,null,null,null,null,null,null,null,589,12,4,31,"SINCOS"]
[null,null,null,null,null,null,null,null,null,589,12,4,32,"TUNAN MARCA"]
[null,null,null,null,null,null,null,null,null,589,12,4,33,"YAULI"]
[null,null,null,null,null,null,null,null,null,589,12,4,34,"YAUYOS"]
[null,null,null,null,null,null,null,null,null,589,12,5,1,"JUNIN"]
[null,null,null,null,null,null,null,null,null,589,12,5,2,"CARHUAMAYO"]
[null,null,null,null,null,null,null,null,null,589,12,5,3,"ONDORES"]
[null,null,null,null,null,null,null,null,null,589,12,5,4,"ULCUMAYO"]
[null,null,null,null,null,null,null,null,null,589,12,6,1,"SATIPO"]
[null,null,null,null,null,null,null,null,null,589,12,6,2,"COVIRIALI"]
[null,null,null,null,null,null,null,null,null,589,12,6,3,"LLAYLLA"]
[null,null,null,null,null,null,null,null,null,589,12,6,4,"MAZAMARI"]
[null,null,null,null,null,null,null,null,null,589,12,6,5,"PAMPA HERMOSA"]
[null,null,null,null,null,null,null,null,null,589,12,6,6,"PANGOA"]
[null,null,null,null,null,null,null,null,null,589,12,6,7,"RIO NEGRO"]
[null,null,null,null,null,null,null,null,null,589,12,6,8,"RIO TAMBO"]
[null,null,null,null,null,null,null,null,null,589,12,7,1,"TARMA"]
[null,null,null,null,null,null,null,null,null,589,12,7,2,"ACOBAMBA"]
[null,null,null,null,null,null,null,null,null,589,12,7,3,"HUARICOLCA"]
[null,null,null,null,null,null,null,null,null,589,12,7,4,"HUASAHUASI"]
[null,null,null,null,null,null,null,null,null,589,12,7,5,"LA UNION"]
[null,null,null,null,null,null,null,null,null,589,12,7,6,"PALCA"]
[null,null,null,null,null,null,null,null,null,589,12,7,7,"PALCAMAYO"]
[null,null,null,null,null,null,null,null,null,589,12,7,8,"SAN PEDRO DE CA"]
[null,null,null,null,null,null,null,null,null,589,12,7,9,"TAPO"]
[null,null,null,null,null,null,null,null,null,589,12,8,1,"LA OROYA"]
[null,null,null,null,null,null,null,null,null,589,12,8,2,"CHACAPALPA"]
[null,null,null,null,null,null,null,null,null,589,12,8,3,"HUAY-HUAY"]
[null,null,null,null,null,null,null,null,null,589,12,8,4,"MARCAPOMACOCHA"]
[null,null,null,null,null,null,null,null,null,589,12,8,5,"MOROCOCHA"]
[null,null,null,null,null,null,null,null,null,589,12,8,6,"PACCHA"]
[null,null,null,null,null,null,null,null,null,589,12,8,7,"SANTA BARBARA D"]
[null,null,null,null,null,null,null,null,null,589,12,8,8,"SANTA ROSA DE S"]
[null,null,null,null,null,null,null,null,null,589,12,8,9,"SUITUCANCHA"]
[null,null,null,null,null,null,null,null,null,589,12,8,10,"YAULI"]
[null,null,null,null,null,null,null,null,null,589,12,9,1,"CHUPACA"]
[null,null,null,null,null,null,null,null,null,589,12,9,2,"AHUAC"]
[null,null,null,null,null,null,null,null,null,589,12,9,3,"CHONGOS BAJO"]
[null,null,null,null,null,null,null,null,null,589,12,9,4,"HUACHAC"]
[null,null,null,null,null,null,null,null,null,589,12,9,5,"HUAMANCACA CHIC"]
[null,null,null,null,null,null,null,null,null,589,12,9,6,"SAN JUAN DE ISC"]
[null,null,null,null,null,null,null,null,null,589,12,9,7,"SAN JUAN DE JAR"]
[null,null,null,null,null,null,null,null,null,589,12,9,8,"3 DE DICIEMBRE"]
[null,null,null,null,null,null,null,null,null,589,12,9,9,"YANACANCHA"]
[null,null,null,null,null,null,null,null,null,589,13,1,1,"TRUJILLO"]
[null,null,null,null,null,null,null,null,null,589,13,1,2,"EL PORVENIR"]
[null,null,null,null,null,null,null,null,null,589,13,1,3,"FLORENCIA DE MO"]
[null,null,null,null,null,null,null,null,null,589,13,1,4,"HUANCHACO"]
[null,null,null,null,null,null,null,null,null,589,13,1,5,"LA ESPERANZA"]
[null,null,null,null,null,null,null,null,null,589,13,1,6,"LAREDO"]
[null,null,null,null,null,null,null,null,null,589,13,1,7,"MOCHE"]
[null,null,null,null,null,null,null,null,null,589,13,1,8,"POROTO"]
[null,null,null,null,null,null,null,null,null,589,13,1,9,"SALAVERRY"]
[null,null,null,null,null,null,null,null,null,589,13,1,10,"SIMBAL"]
[null,null,null,null,null,null,null,null,null,589,13,1,11,"VICTOR LARCO HE"]
[null,null,null,null,null,null,null,null,null,589,13,2,1,"ASCOPE"]
[null,null,null,null,null,null,null,null,null,589,13,2,2,"CHICAMA"]
[null,null,null,null,null,null,null,null,null,589,13,2,3,"CHOCOPE"]
[null,null,null,null,null,null,null,null,null,589,13,2,4,"MAGDALENA DE CA"]
[null,null,null,null,null,null,null,null,null,589,13,2,5,"PAIJAN"]
[null,null,null,null,null,null,null,null,null,589,13,2,6,"RAZURI"]
[null,null,null,null,null,null,null,null,null,589,13,2,7,"SANTIAGO DE CAO"]
[null,null,null,null,null,null,null,null,null,589,13,2,8,"CASA GRANDE"]
[null,null,null,null,null,null,null,null,null,589,13,3,1,"BOLIVAR"]
[null,null,null,null,null,null,null,null,null,589,13,3,2,"BAMBAMARCA"]
[null,null,null,null,null,null,null,null,null,589,13,3,3,"CONDORMARCA"]
[null,null,null,null,null,null,null,null,null,589,13,3,4,"LONGOTEA"]
[null,null,null,null,null,null,null,null,null,589,13,3,5,"UCHUMARCA"]
[null,null,null,null,null,null,null,null,null,589,13,3,6,"UCUNCHA"]
[null,null,null,null,null,null,null,null,null,589,13,4,1,"CHEPEN"]
[null,null,null,null,null,null,null,null,null,589,13,4,2,"PACANGA"]
[null,null,null,null,null,null,null,null,null,589,13,4,3,"PUEBLO NUEVO"]
[null,null,null,null,null,null,null,null,null,589,13,5,1,"JULCAN"]
[null,null,null,null,null,null,null,null,null,589,13,5,2,"CALAMARCA"]
[null,null,null,null,null,null,null,null,null,589,13,5,3,"CARABAMBA"]
[null,null,null,null,null,null,null,null,null,589,13,5,4,"HUASO"]
[null,null,null,null,null,null,null,null,null,589,13,6,1,"OTUZCO"]
[null,null,null,null,null,null,null,null,null,589,13,6,2,"AGALLPAMPA"]
[null,null,null,null,null,null,null,null,null,589,13,6,4,"CHARAT"]
[null,null,null,null,null,null,null,null,null,589,13,6,5,"HUARANCHAL"]
[null,null,null,null,null,null,null,null,null,589,13,6,6,"LA CUESTA"]
[null,null,null,null,null,null,null,null,null,589,13,6,8,"MACHE"]
[null,null,null,null,null,null,null,null,null,589,13,6,10,"PARANDAY"]
[null,null,null,null,null,null,null,null,null,589,13,6,11,"SALPO"]
[null,null,null,null,null,null,null,null,null,589,13,6,13,"SINSICAP"]
[null,null,null,null,null,null,null,null,null,589,13,6,14,"USQUIL"]
[null,null,null,null,null,null,null,null,null,589,13,7,1,"SAN PEDRO DE LL"]
[null,null,null,null,null,null,null,null,null,589,13,7,2,"GUADALUPE"]
[null,null,null,null,null,null,null,null,null,589,13,7,3,"JEQUETEPEQUE"]
[null,null,null,null,null,null,null,null,null,589,13,7,4,"PACASMAYO"]
[null,null,null,null,null,null,null,null,null,589,13,7,5,"SAN JOSE"]
[null,null,null,null,null,null,null,null,null,589,13,8,1,"TAYABAMBA"]
[null,null,null,null,null,null,null,null,null,589,13,8,2,"BULDIBUYO"]
[null,null,null,null,null,null,null,null,null,589,13,8,3,"CHILLIA"]
[null,null,null,null,null,null,null,null,null,589,13,8,4,"HUANCASPATA"]
[null,null,null,null,null,null,null,null,null,589,13,8,5,"HUAYLILLAS"]
[null,null,null,null,null,null,null,null,null,589,13,8,6,"HUAYO"]
[null,null,null,null,null,null,null,null,null,589,13,8,7,"ONGON"]
[null,null,null,null,null,null,null,null,null,589,13,8,8,"PARCOY"]
[null,null,null,null,null,null,null,null,null,589,13,8,9,"PATAZ"]
[null,null,null,null,null,null,null,null,null,589,13,8,10,"PIAS"]
[null,null,null,null,null,null,null,null,null,589,13,8,11,"SANTIAGO DE CHA"]
[null,null,null,null,null,null,null,null,null,589,13,8,12,"TAURIJA"]
[null,null,null,null,null,null,null,null,null,589,13,8,13,"URPAY"]
[null,null,null,null,null,null,null,null,null,589,13,9,1,"HUAMACHUCO"]
[null,null,null,null,null,null,null,null,null,589,13,9,2,"CHUGAY"]
[null,null,null,null,null,null,null,null,null,589,13,9,3,"COCHORCO"]
[null,null,null,null,null,null,null,null,null,589,13,9,4,"CURGOS"]
[null,null,null,null,null,null,null,null,null,589,13,9,5,"MARCABAL"]
[null,null,null,null,null,null,null,null,null,589,13,9,6,"SANAGORAN"]
[null,null,null,null,null,null,null,null,null,589,13,9,7,"SARIN"]
[null,null,null,null,null,null,null,null,null,589,13,9,8,"SARTIMBAMBA"]
[null,null,null,null,null,null,null,null,null,589,13,10,1,"SANTIAGO DE CHU"]
[null,null,null,null,null,null,null,null,null,589,13,10,2,"ANGASMARCA"]
[null,null,null,null,null,null,null,null,null,589,13,10,3,"CACHICADAN"]
[null,null,null,null,null,null,null,null,null,589,13,10,4,"MOLLEBAMBA"]
[null,null,null,null,null,null,null,null,null,589,13,10,5,"MOLLEPATA"]
[null,null,null,null,null,null,null,null,null,589,13,10,6,"QUIRUVILCA"]
[null,null,null,null,null,null,null,null,null,589,13,10,7,"SANTA CRUZ DE C"]
[null,null,null,null,null,null,null,null,null,589,13,10,8,"SITABAMBA"]
[null,null,null,null,null,null,null,null,null,589,13,11,1,"CASCAS"]
[null,null,null,null,null,null,null,null,null,589,13,11,2,"LUCMA"]
[null,null,null,null,null,null,null,null,null,589,13,11,3,"MARMOT"]
[null,null,null,null,null,null,null,null,null,589,13,11,4,"SAYAPULLO"]
[null,null,null,null,null,null,null,null,null,589,13,12,1,"VIRU"]
[null,null,null,null,null,null,null,null,null,589,13,12,2,"CHAO"]
[null,null,null,null,null,null,null,null,null,589,13,12,3,"GUADALUPITO"]
[null,null,null,null,null,null,null,null,null,589,14,1,1,"CHICLAYO"]
[null,null,null,null,null,null,null,null,null,589,14,1,2,"CHONGOYAPE"]
[null,null,null,null,null,null,null,null,null,589,14,1,3,"ETEN"]
[null,null,null,null,null,null,null,null,null,589,14,1,4,"ETEN PUERTO"]
[null,null,null,null,null,null,null,null,null,589,14,1,5,"JOSE LEONARDO O"]
[null,null,null,null,null,null,null,null,null,589,14,1,6,"LA VICTORIA"]
[null,null,null,null,null,null,null,null,null,589,14,1,7,"LAGUNAS"]
[null,null,null,null,null,null,null,null,null,589,14,1,8,"MONSEFU"]
[null,null,null,null,null,null,null,null,null,589,14,1,9,"NUEVA ARICA"]
[null,null,null,null,null,null,null,null,null,589,14,1,10,"OYOTUN"]
[null,null,null,null,null,null,null,null,null,589,14,1,11,"PICSI"]
[null,null,null,null,null,null,null,null,null,589,14,1,12,"PIMENTEL"]
[null,null,null,null,null,null,null,null,null,589,14,1,13,"REQUE"]
[null,null,null,null,null,null,null,null,null,589,14,1,14,"SANTA ROSA"]
[null,null,null,null,null,null,null,null,null,589,14,1,15,"SAÑA"]
[null,null,null,null,null,null,null,null,null,589,14,1,16,"CAYALTI"]
[null,null,null,null,null,null,null,null,null,589,14,1,17,"PATAPO"]
[null,null,null,null,null,null,null,null,null,589,14,1,18,"POMALCA"]
[null,null,null,null,null,null,null,null,null,589,14,1,19,"PUCALA"]
[null,null,null,null,null,null,null,null,null,589,14,1,20,"TUMAN"]
[null,null,null,null,null,null,null,null,null,589,14,2,1,"FERREÑAFE"]
[null,null,null,null,null,null,null,null,null,589,14,2,2,"CAÑARIS"]
[null,null,null,null,null,null,null,null,null,589,14,2,3,"INCAHUASI"]
[null,null,null,null,null,null,null,null,null,589,14,2,4,"MANUEL ANTONIO"]
[null,null,null,null,null,null,null,null,null,589,14,2,5,"PITIPO"]
[null,null,null,null,null,null,null,null,null,589,14,2,6,"PUEBLO NUEVO"]
[null,null,null,null,null,null,null,null,null,589,14,3,1,"LAMBAYEQUE"]
[null,null,null,null,null,null,null,null,null,589,14,3,2,"CHOCHOPE"]
[null,null,null,null,null,null,null,null,null,589,14,3,3,"ILLIMO"]
[null,null,null,null,null,null,null,null,null,589,14,3,4,"JAYANCA"]
[null,null,null,null,null,null,null,null,null,589,14,3,5,"MOCHUMI"]
[null,null,null,null,null,null,null,null,null,589,14,3,6,"MORROPE"]
[null,null,null,null,null,null,null,null,null,589,14,3,7,"MOTUPE"]
[null,null,null,null,null,null,null,null,null,589,14,3,8,"OLMOS"]
[null,null,null,null,null,null,null,null,null,589,14,3,9,"PACORA"]
[null,null,null,null,null,null,null,null,null,589,14,3,10,"SALAS"]
[null,null,null,null,null,null,null,null,null,589,14,3,11,"SAN JOSE"]
[null,null,null,null,null,null,null,null,null,589,14,3,12,"TUCUME"]
[null,null,null,null,null,null,null,null,null,589,15,1,1,"LIMA"]
[null,null,null,null,null,null,null,null,null,589,15,1,2,"ANCON"]
[null,null,null,null,null,null,null,null,null,589,15,1,3,"ATE"]
[null,null,null,null,null,null,null,null,null,589,15,1,4,"BARRANCO"]
[null,null,null,null,null,null,null,null,null,589,15,1,5,"BREÑA"]
[null,null,null,null,null,null,null,null,null,589,15,1,6,"CARABAYLLO"]
[null,null,null,null,null,null,null,null,null,589,15,1,7,"CHACLACAYO"]
[null,null,null,null,null,null,null,null,null,589,15,1,8,"CHORRILLOS"]
[null,null,null,null,null,null,null,null,null,589,15,1,9,"CIENEGUILLA"]
[null,null,null,null,null,null,null,null,null,589,15,1,10,"COMAS"]
[null,null,null,null,null,null,null,null,null,589,15,1,11,"EL AGUSTINO"]
[null,null,null,null,null,null,null,null,null,589,15,1,12,"INDEPENDENCIA"]
[null,null,null,null,null,null,null,null,null,589,15,1,13,"JESUS MARIA"]
[null,null,null,null,null,null,null,null,null,589,15,1,14,"LA MOLINA"]
[null,null,null,null,null,null,null,null,null,589,15,1,15,"LA VICTORIA"]
[null,null,null,null,null,null,null,null,null,589,15,1,16,"LINCE"]
[null,null,null,null,null,null,null,null,null,589,15,1,17,"LOS OLIVOS"]
[null,null,null,null,null,null,null,null,null,589,15,1,18,"LURIGANCHO"]
[null,null,null,null,null,null,null,null,null,589,15,1,19,"LURIN"]
[null,null,null,null,null,null,null,null,null,589,15,1,20,"MAGDALENA DEL M"]
[null,null,null,null,null,null,null,null,null,589,15,1,21,"PUEBLO LIBRE"]
[null,null,null,null,null,null,null,null,null,589,15,1,22,"MIRAFLORES"]
[null,null,null,null,null,null,null,null,null,589,15,1,23,"PACHACAMAC"]
[null,null,null,null,null,null,null,null,null,589,15,1,24,"PUCUSANA"]
[null,null,null,null,null,null,null,null,null,589,15,1,25,"PUENTE PIEDRA"]
[null,null,null,null,null,null,null,null,null,589,15,1,26,"PUNTA HERMOSA"]
[null,null,null,null,null,null,null,null,null,589,15,1,27,"PUNTA NEGRA"]
[null,null,null,null,null,null,null,null,null,589,15,1,28,"RIMAC"]
[null,null,null,null,null,null,null,null,null,589,15,1,29,"SAN BARTOLO"]
[null,null,null,null,null,null,null,null,null,589,15,1,30,"SAN BORJA"]
[null,null,null,null,null,null,null,null,null,589,15,1,31,"SAN ISIDRO"]
[null,null,null,null,null,null,null,null,null,589,15,1,32,"SAN JUAN DE LUR"]
[null,null,null,null,null,null,null,null,null,589,15,1,33,"SAN JUAN DE MIR"]
[null,null,null,null,null,null,null,null,null,589,15,1,34,"SAN LUIS"]
[null,null,null,null,null,null,null,null,null,589,15,1,35,"SAN MARTIN DE P"]
[null,null,null,null,null,null,null,null,null,589,15,1,36,"SAN MIGUEL"]
[null,null,null,null,null,null,null,null,null,589,15,1,37,"SANTA ANITA"]
[null,null,null,null,null,null,null,null,null,589,15,1,38,"SANTA MARIA DEL"]
[null,null,null,null,null,null,null,null,null,589,15,1,39,"SANTA ROSA"]
[null,null,null,null,null,null,null,null,null,589,15,1,40,"SANTIAGO DE SUR"]
[null,null,null,null,null,null,null,null,null,589,15,1,41,"SURQUILLO"]
[null,null,null,null,null,null,null,null,null,589,15,1,42,"VILLA EL SALVAD"]
[null,null,null,null,null,null,null,null,null,589,15,1,43,"VILLA MARIA DEL"]
[null,null,null,null,null,null,null,null,null,589,15,2,1,"BARRANCA"]
[null,null,null,null,null,null,null,null,null,589,15,2,2,"PARAMONGA"]
[null,null,null,null,null,null,null,null,null,589,15,2,3,"PATIVILCA"]
[null,null,null,null,null,null,null,null,null,589,15,2,4,"SUPE"]
[null,null,null,null,null,null,null,null,null,589,15,2,5,"SUPE PUERTO"]
[null,null,null,null,null,null,null,null,null,589,15,3,1,"CAJATAMBO"]
[null,null,null,null,null,null,null,null,null,589,15,3,2,"COPA"]
[null,null,null,null,null,null,null,null,null,589,15,3,3,"GORGOR"]
[null,null,null,null,null,null,null,null,null,589,15,3,4,"HUANCAPON"]
[null,null,null,null,null,null,null,null,null,589,15,3,5,"MANAS"]
[null,null,null,null,null,null,null,null,null,589,15,4,1,"CANTA"]
[null,null,null,null,null,null,null,null,null,589,15,4,2,"ARAHUAY"]
[null,null,null,null,null,null,null,null,null,589,15,4,3,"HUAMANTANGA"]
[null,null,null,null,null,null,null,null,null,589,15,4,4,"HUAROS"]
[null,null,null,null,null,null,null,null,null,589,15,4,5,"LACHAQUI"]
[null,null,null,null,null,null,null,null,null,589,15,4,6,"SAN BUENAVENTUR"]
[null,null,null,null,null,null,null,null,null,589,15,4,7,"SANTA ROSA DE Q"]
[null,null,null,null,null,null,null,null,null,589,15,5,1,"SAN VICENTE DE"]
[null,null,null,null,null,null,null,null,null,589,15,5,2,"ASIA"]
[null,null,null,null,null,null,null,null,null,589,15,5,3,"CALANGO"]
[null,null,null,null,null,null,null,null,null,589,15,5,4,"CERRO AZUL"]
[null,null,null,null,null,null,null,null,null,589,15,5,5,"CHILCA"]
[null,null,null,null,null,null,null,null,null,589,15,5,6,"COAYLLO"]
[null,null,null,null,null,null,null,null,null,589,15,5,7,"IMPERIAL"]
[null,null,null,null,null,null,null,null,null,589,15,5,8,"LUNAHUANA"]
[null,null,null,null,null,null,null,null,null,589,15,5,9,"MALA"]
[null,null,null,null,null,null,null,null,null,589,15,5,10,"NUEVO IMPERIAL"]
[null,null,null,null,null,null,null,null,null,589,15,5,11,"PACARAN"]
[null,null,null,null,null,null,null,null,null,589,15,5,12,"QUILMANA"]
[null,null,null,null,null,null,null,null,null,589,15,5,13,"SAN ANTONIO"]
[null,null,null,null,null,null,null,null,null,589,15,5,14,"SAN LUIS"]
[null,null,null,null,null,null,null,null,null,589,15,5,15,"SANTA CRUZ DE F"]
[null,null,null,null,null,null,null,null,null,589,15,5,16,"ZUÑIGA"]
[null,null,null,null,null,null,null,null,null,589,15,6,1,"HUARAL"]
[null,null,null,null,null,null,null,null,null,589,15,6,2,"ATAVILLOS ALTO"]
[null,null,null,null,null,null,null,null,null,589,15,6,3,"ATAVILLOS BAJO"]
[null,null,null,null,null,null,null,null,null,589,15,6,4,"AUCALLAMA"]
[null,null,null,null,null,null,null,null,null,589,15,6,5,"CHANCAY"]
[null,null,null,null,null,null,null,null,null,589,15,6,6,"IHUARI"]
[null,null,null,null,null,null,null,null,null,589,15,6,7,"LAMPIAN"]
[null,null,null,null,null,null,null,null,null,589,15,6,8,"PACARAOS"]
[null,null,null,null,null,null,null,null,null,589,15,6,9,"SAN MIGUEL DE A"]
[null,null,null,null,null,null,null,null,null,589,15,6,10,"SANTA CRUZ DE A"]
[null,null,null,null,null,null,null,null,null,589,15,6,11,"SUMBILCA"]
[null,null,null,null,null,null,null,null,null,589,15,6,12,"VEINTISIETE DE"]
[null,null,null,null,null,null,null,null,null,589,15,7,1,"MATUCANA"]
[null,null,null,null,null,null,null,null,null,589,15,7,2,"ANTIOQUIA"]
[null,null,null,null,null,null,null,null,null,589,15,7,3,"CALLAHUANCA"]
[null,null,null,null,null,null,null,null,null,589,15,7,4,"CARAMPOMA"]
[null,null,null,null,null,null,null,null,null,589,15,7,5,"CHICLA"]
[null,null,null,null,null,null,null,null,null,589,15,7,6,"CUENCA"]
[null,null,null,null,null,null,null,null,null,589,15,7,7,"HUACHUPAMPA"]
[null,null,null,null,null,null,null,null,null,589,15,7,8,"HUANZA"]
[null,null,null,null,null,null,null,null,null,589,15,7,9,"HUAROCHIRI"]
[null,null,null,null,null,null,null,null,null,589,15,7,10,"LAHUAYTAMBO"]
[null,null,null,null,null,null,null,null,null,589,15,7,11,"LANGA"]
[null,null,null,null,null,null,null,null,null,589,15,7,12,"LARAOS"]
[null,null,null,null,null,null,null,null,null,589,15,7,13,"MARIATANA"]
[null,null,null,null,null,null,null,null,null,589,15,7,14,"RICARDO PALMA"]
[null,null,null,null,null,null,null,null,null,589,15,7,15,"SAN ANDRES DE T"]
[null,null,null,null,null,null,null,null,null,589,15,7,16,"SAN ANTONIO"]
[null,null,null,null,null,null,null,null,null,589,15,7,17,"SAN BARTOLOME"]
[null,null,null,null,null,null,null,null,null,589,15,7,18,"SAN DAMIAN"]
[null,null,null,null,null,null,null,null,null,589,15,7,19,"SAN JUAN DE IRI"]
[null,null,null,null,null,null,null,null,null,589,15,7,20,"SAN JUAN DE TAN"]
[null,null,null,null,null,null,null,null,null,589,15,7,21,"SAN LORENZO DE"]
[null,null,null,null,null,null,null,null,null,589,15,7,22,"SAN MATEO"]
[null,null,null,null,null,null,null,null,null,589,15,7,23,"SAN MATEO DE OT"]
[null,null,null,null,null,null,null,null,null,589,15,7,24,"SAN PEDRO DE CA"]
[null,null,null,null,null,null,null,null,null,589,15,7,25,"SAN PEDRO DE HU"]
[null,null,null,null,null,null,null,null,null,589,15,7,26,"SANGALLAYA"]
[null,null,null,null,null,null,null,null,null,589,15,7,27,"SANTA CRUZ DE C"]
[null,null,null,null,null,null,null,null,null,589,15,7,28,"SANTA EULALIA"]
[null,null,null,null,null,null,null,null,null,589,15,7,29,"SANTIAGO DE ANC"]
[null,null,null,null,null,null,null,null,null,589,15,7,30,"SANTIAGO DE TUN"]
[null,null,null,null,null,null,null,null,null,589,15,7,31,"SANTO DOMINGO D"]
[null,null,null,null,null,null,null,null,null,589,15,7,32,"SURCO"]
[null,null,null,null,null,null,null,null,null,589,15,8,1,"HUACHO"]
[null,null,null,null,null,null,null,null,null,589,15,8,2,"AMBAR"]
[null,null,null,null,null,null,null,null,null,589,15,8,3,"CALETA DE CARQU"]
[null,null,null,null,null,null,null,null,null,589,15,8,4,"CHECRAS"]
[null,null,null,null,null,null,null,null,null,589,15,8,5,"HUALMAY"]
[null,null,null,null,null,null,null,null,null,589,15,8,6,"HUAURA"]
[null,null,null,null,null,null,null,null,null,589,15,8,7,"LEONCIO PRADO"]
[null,null,null,null,null,null,null,null,null,589,15,8,8,"PACCHO"]
[null,null,null,null,null,null,null,null,null,589,15,8,9,"SANTA LEONOR"]
[null,null,null,null,null,null,null,null,null,589,15,8,10,"SANTA MARIA"]
[null,null,null,null,null,null,null,null,null,589,15,8,11,"SAYAN"]
[null,null,null,null,null,null,null,null,null,589,15,8,12,"VEGUETA"]
[null,null,null,null,null,null,null,null,null,589,15,9,1,"OYON"]
[null,null,null,null,null,null,null,null,null,589,15,9,2,"ANDAJES"]
[null,null,null,null,null,null,null,null,null,589,15,9,3,"CAUJUL"]
[null,null,null,null,null,null,null,null,null,589,15,9,4,"COCHAMARCA"]
[null,null,null,null,null,null,null,null,null,589,15,9,5,"NAVAN"]
[null,null,null,null,null,null,null,null,null,589,15,9,6,"PACHANGARA"]
[null,null,null,null,null,null,null,null,null,589,15,10,1,"YAUYOS"]
[null,null,null,null,null,null,null,null,null,589,15,10,2,"ALIS"]
[null,null,null,null,null,null,null,null,null,589,15,10,3,"AYAUCA"]
[null,null,null,null,null,null,null,null,null,589,15,10,4,"AYAVIRI"]
[null,null,null,null,null,null,null,null,null,589,15,10,5,"AZANGARO"]
[null,null,null,null,null,null,null,null,null,589,15,10,6,"CACRA"]
[null,null,null,null,null,null,null,null,null,589,15,10,7,"CARANIA"]
[null,null,null,null,null,null,null,null,null,589,15,10,8,"CATAHUASI"]
[null,null,null,null,null,null,null,null,null,589,15,10,9,"CHOCOS"]
[null,null,null,null,null,null,null,null,null,589,15,10,10,"COCHAS"]
[null,null,null,null,null,null,null,null,null,589,15,10,11,"COLONIA"]
[null,null,null,null,null,null,null,null,null,589,15,10,12,"HONGOS"]
[null,null,null,null,null,null,null,null,null,589,15,10,13,"HUAMPARA"]
[null,null,null,null,null,null,null,null,null,589,15,10,14,"HUANCAYA"]
[null,null,null,null,null,null,null,null,null,589,15,10,15,"HUANGASCAR"]
[null,null,null,null,null,null,null,null,null,589,15,10,16,"HUANTAN"]
[null,null,null,null,null,null,null,null,null,589,15,10,17,"HUAÑEC"]
[null,null,null,null,null,null,null,null,null,589,15,10,18,"LARAOS"]
[null,null,null,null,null,null,null,null,null,589,15,10,19,"LINCHA"]
[null,null,null,null,null,null,null,null,null,589,15,10,20,"MADEAN"]
[null,null,null,null,null,null,null,null,null,589,15,10,21,"MIRAFLORES"]
[null,null,null,null,null,null,null,null,null,589,15,10,22,"OMAS"]
[null,null,null,null,null,null,null,null,null,589,15,10,23,"PUTINZA"]
[null,null,null,null,null,null,null,null,null,589,15,10,24,"QUINCHES"]
[null,null,null,null,null,null,null,null,null,589,15,10,25,"QUINOCAY"]
[null,null,null,null,null,null,null,null,null,589,15,10,26,"SAN JOAQUIN"]
[null,null,null,null,null,null,null,null,null,589,15,10,27,"SAN PEDRO DE PI"]
[null,null,null,null,null,null,null,null,null,589,15,10,28,"TANTA"]
[null,null,null,null,null,null,null,null,null,589,15,10,29,"TAURIPAMPA"]
[null,null,null,null,null,null,null,null,null,589,15,10,30,"TOMAS"]
[null,null,null,null,null,null,null,null,null,589,15,10,31,"TUPE"]
[null,null,null,null,null,null,null,null,null,589,15,10,32,"VIÑAC"]
[null,null,null,null,null,null,null,null,null,589,15,10,33,"VITIS"]
[null,null,null,null,null,null,null,null,null,589,16,1,1,"IQUITOS"]
[null,null,null,null,null,null,null,null,null,589,16,1,2,"ALTO NANAY"]
[null,null,null,null,null,null,null,null,null,589,16,1,3,"FERNANDO LORES"]
[null,null,null,null,null,null,null,null,null,589,16,1,4,"INDIANA"]
[null,null,null,null,null,null,null,null,null,589,16,1,5,"LAS AMAZONAS"]
[null,null,null,null,null,null,null,null,null,589,16,1,6,"MAZAN"]
[null,null,null,null,null,null,null,null,null,589,16,1,7,"NAPO"]
[null,null,null,null,null,null,null,null,null,589,16,1,8,"PUNCHANA"]
[null,null,null,null,null,null,null,null,null,589,16,1,9,"PUTUMAYO"]
[null,null,null,null,null,null,null,null,null,589,16,1,10,"TORRES CAUSANA"]
[null,null,null,null,null,null,null,null,null,589,16,1,11,"YAQUERANA"]
[null,null,null,null,null,null,null,null,null,589,16,1,12,"BELEN"]
[null,null,null,null,null,null,null,null,null,589,16,1,13,"SAN JUAN BAUTISTA"]
[null,null,null,null,null,null,null,null,null,589,16,2,1,"YURIMAGUAS"]
[null,null,null,null,null,null,null,null,null,589,16,2,2,"BALSAPUERTO"]
[null,null,null,null,null,null,null,null,null,589,16,2,3,"BARRANCA"]
[null,null,null,null,null,null,null,null,null,589,16,2,4,"CAHUAPANAS"]
[null,null,null,null,null,null,null,null,null,589,16,2,5,"JEBEROS"]
[null,null,null,null,null,null,null,null,null,589,16,2,6,"LAGUNAS"]
[null,null,null,null,null,null,null,null,null,589,16,2,7,"MANSERICHE"]
[null,null,null,null,null,null,null,null,null,589,16,2,8,"MORONA"]
[null,null,null,null,null,null,null,null,null,589,16,2,9,"PASTAZA"]
[null,null,null,null,null,null,null,null,null,589,16,2,10,"SANTA CRUZ"]
[null,null,null,null,null,null,null,null,null,589,16,2,11,"TENIENTE CESAR"]
[null,null,null,null,null,null,null,null,null,589,16,3,1,"NAUTA"]
[null,null,null,null,null,null,null,null,null,589,16,3,2,"PARINARI"]
[null,null,null,null,null,null,null,null,null,589,16,3,3,"TIGRE"]
[null,null,null,null,null,null,null,null,null,589,16,3,4,"TROMPETEROS"]
[null,null,null,null,null,null,null,null,null,589,16,3,5,"URARINAS"]
[null,null,null,null,null,null,null,null,null,589,16,4,1,"RAMON CASTILLA"]
[null,null,null,null,null,null,null,null,null,589,16,4,2,"PEBAS"]
[null,null,null,null,null,null,null,null,null,589,16,4,3,"YAVARI"]
[null,null,null,null,null,null,null,null,null,589,16,4,4,"SAN PABLO"]
[null,null,null,null,null,null,null,null,null,589,16,5,1,"REQUENA"]
[null,null,null,null,null,null,null,null,null,589,16,5,2,"ALTO TAPICHE"]
[null,null,null,null,null,null,null,null,null,589,16,5,3,"CAPELO"]
[null,null,null,null,null,null,null,null,null,589,16,5,4,"EMILIO SAN MART"]
[null,null,null,null,null,null,null,null,null,589,16,5,5,"MAQUIA"]
[null,null,null,null,null,null,null,null,null,589,16,5,6,"PUINAHUA"]
[null,null,null,null,null,null,null,null,null,589,16,5,7,"SAQUENA"]
[null,null,null,null,null,null,null,null,null,589,16,5,8,"SOPLIN"]
[null,null,null,null,null,null,null,null,null,589,16,5,9,"TAPICHE"]
[null,null,null,null,null,null,null,null,null,589,16,5,10,"JENARO HERRERA"]
[null,null,null,null,null,null,null,null,null,589,16,5,11,"YAQUERANA"]
[null,null,null,null,null,null,null,null,null,589,16,6,1,"CONTAMANA"]
[null,null,null,null,null,null,null,null,null,589,16,6,2,"INAHUAYA"]
[null,null,null,null,null,null,null,null,null,589,16,6,3,"PADRE MARQUEZ"]
[null,null,null,null,null,null,null,null,null,589,16,6,4,"PAMPA HERMOSA"]
[null,null,null,null,null,null,null,null,null,589,16,6,5,"SARAYACU"]
[null,null,null,null,null,null,null,null,null,589,16,6,6,"VARGAS GUERRA"]
[null,null,null,null,null,null,null,null,null,589,17,1,1,"TAMBOPATA"]
[null,null,null,null,null,null,null,null,null,589,17,1,2,"INAMBARI"]
[null,null,null,null,null,null,null,null,null,589,17,1,3,"LAS PIEDRAS"]
[null,null,null,null,null,null,null,null,null,589,17,1,4,"LABERINTO"]
[null,null,null,null,null,null,null,null,null,589,17,2,1,"MANU"]
[null,null,null,null,null,null,null,null,null,589,17,2,2,"FITZCARRALD"]
[null,null,null,null,null,null,null,null,null,589,17,2,3,"MADRE DE DIOS"]
[null,null,null,null,null,null,null,null,null,589,17,2,4,"HUEPETUHE"]
[null,null,null,null,null,null,null,null,null,589,17,3,1,"IÑAPARI"]
[null,null,null,null,null,null,null,null,null,589,17,3,2,"IBERIA"]
[null,null,null,null,null,null,null,null,null,589,17,3,3,"TAHUAMANU"]
[null,null,null,null,null,null,null,null,null,589,18,1,1,"MOQUEGUA"]
[null,null,null,null,null,null,null,null,null,589,18,1,2,"CARUMAS"]
[null,null,null,null,null,null,null,null,null,589,18,1,3,"CUCHUMBAYA"]
[null,null,null,null,null,null,null,null,null,589,18,1,4,"SAMEGUA"]
[null,null,null,null,null,null,null,null,null,589,18,1,5,"SAN CRISTOBAL"]
[null,null,null,null,null,null,null,null,null,589,18,1,6,"TORATA"]
[null,null,null,null,null,null,null,null,null,589,18,2,1,"OMATE"]
[null,null,null,null,null,null,null,null,null,589,18,2,2,"CHOJATA"]
[null,null,null,null,null,null,null,null,null,589,18,2,3,"COALAQUE"]
[null,null,null,null,null,null,null,null,null,589,18,2,4,"ICHUÑA"]
[null,null,null,null,null,null,null,null,null,589,18,2,5,"LA CAPILLA"]
[null,null,null,null,null,null,null,null,null,589,18,2,6,"LLOQUE"]
[null,null,null,null,null,null,null,null,null,589,18,2,7,"MATALAQUE"]
[null,null,null,null,null,null,null,null,null,589,18,2,8,"PUQUINA"]
[null,null,null,null,null,null,null,null,null,589,18,2,9,"QUINISTAQUILLAS"]
[null,null,null,null,null,null,null,null,null,589,18,2,10,"UBINAS"]
[null,null,null,null,null,null,null,null,null,589,18,2,11,"YUNGA"]
[null,null,null,null,null,null,null,null,null,589,18,3,1,"ILO"]
[null,null,null,null,null,null,null,null,null,589,18,3,2,"EL ALGARROBAL"]
[null,null,null,null,null,null,null,null,null,589,18,3,3,"PACOCHA"]
[null,null,null,null,null,null,null,null,null,589,19,1,1,"CHAUPIMARCA"]
[null,null,null,null,null,null,null,null,null,589,19,1,2,"HUACHON"]
[null,null,null,null,null,null,null,null,null,589,19,1,3,"HUARIACA"]
[null,null,null,null,null,null,null,null,null,589,19,1,4,"HUAYLLAY"]
[null,null,null,null,null,null,null,null,null,589,19,1,5,"NINACACA"]
[null,null,null,null,null,null,null,null,null,589,19,1,6,"PALLANCHACRA"]
[null,null,null,null,null,null,null,null,null,589,19,1,7,"PAUCARTAMBO"]
[null,null,null,null,null,null,null,null,null,589,19,1,8,"SAN FCO.DE ASIS"]
[null,null,null,null,null,null,null,null,null,589,19,1,9,"SIMON BOLIVAR"]
[null,null,null,null,null,null,null,null,null,589,19,1,10,"TICLACAYAN"]
[null,null,null,null,null,null,null,null,null,589,19,1,11,"TINYAHUARCO"]
[null,null,null,null,null,null,null,null,null,589,19,1,12,"VICCO"]
[null,null,null,null,null,null,null,null,null,589,19,1,13,"YANACANCHA"]
[null,null,null,null,null,null,null,null,null,589,19,2,1,"YANAHUANCA"]
[null,null,null,null,null,null,null,null,null,589,19,2,2,"CHACAYAN"]
[null,null,null,null,null,null,null,null,null,589,19,2,3,"GOYLLARISQUIZGA"]
[null,null,null,null,null,null,null,null,null,589,19,2,4,"PAUCAR"]
[null,null,null,null,null,null,null,null,null,589,19,2,5,"SAN PEDRO DE PI"]
[null,null,null,null,null,null,null,null,null,589,19,2,6,"SANTA ANA DE TU"]
[null,null,null,null,null,null,null,null,null,589,19,2,7,"TAPUC"]
[null,null,null,null,null,null,null,null,null,589,19,2,8,"VILCABAMBA"]
[null,null,null,null,null,null,null,null,null,589,19,3,1,"OXAPAMPA"]
[null,null,null,null,null,null,null,null,null,589,19,3,2,"CHONTABAMBA"]
[null,null,null,null,null,null,null,null,null,589,19,3,3,"HUANCABAMBA"]
[null,null,null,null,null,null,null,null,null,589,19,3,4,"PALCAZU"]
[null,null,null,null,null,null,null,null,null,589,19,3,5,"POZUZO"]
[null,null,null,null,null,null,null,null,null,589,19,3,6,"PUERTO BERMUDEZ"]
[null,null,null,null,null,null,null,null,null,589,19,3,7,"VILLA RICA"]
[null,null,null,null,null,null,null,null,null,589,20,1,1,"PIURA"]
[null,null,null,null,null,null,null,null,null,589,20,1,4,"CASTILLA"]
[null,null,null,null,null,null,null,null,null,589,20,1,5,"CATACAOS"]
[null,null,null,null,null,null,null,null,null,589,20,1,7,"CURA MORI"]
[null,null,null,null,null,null,null,null,null,589,20,1,8,"EL TALLAN"]
[null,null,null,null,null,null,null,null,null,589,20,1,9,"LA ARENA"]
[null,null,null,null,null,null,null,null,null,589,20,1,10,"LA UNION"]
[null,null,null,null,null,null,null,null,null,589,20,1,11,"LAS LOMAS"]
[null,null,null,null,null,null,null,null,null,589,20,1,14,"TAMBO GRANDE"]
[null,null,null,null,null,null,null,null,null,589,20,2,1,"AYABACA"]
[null,null,null,null,null,null,null,null,null,589,20,2,2,"FRIAS"]
[null,null,null,null,null,null,null,null,null,589,20,2,3,"JILILI"]
[null,null,null,null,null,null,null,null,null,589,20,2,4,"LAGUNAS"]
[null,null,null,null,null,null,null,null,null,589,20,2,5,"MONTERO"]
[null,null,null,null,null,null,null,null,null,589,20,2,6,"PACAIPAMPA"]
[null,null,null,null,null,null,null,null,null,589,20,2,7,"PAIMAS"]
[null,null,null,null,null,null,null,null,null,589,20,2,8,"SAPILLICA"]
[null,null,null,null,null,null,null,null,null,589,20,2,9,"SICCHEZ"]
[null,null,null,null,null,null,null,null,null,589,20,2,10,"SUYO"]
[null,null,null,null,null,null,null,null,null,589,20,3,1,"HUANCABAMBA"]
[null,null,null,null,null,null,null,null,null,589,20,3,2,"CANCHAQUE"]
[null,null,null,null,null,null,null,null,null,589,20,3,3,"EL CARMEN DE LA"]
[null,null,null,null,null,null,null,null,null,589,20,3,4,"HUARMACA"]
[null,null,null,null,null,null,null,null,null,589,20,3,5,"LALAQUIZ"]
[null,null,null,null,null,null,null,null,null,589,20,3,6,"SAN MIGUEL DE E"]
[null,null,null,null,null,null,null,null,null,589,20,3,7,"SONDOR"]
[null,null,null,null,null,null,null,null,null,589,20,3,8,"SONDORILLO"]
[null,null,null,null,null,null,null,null,null,589,20,4,1,"CHULUCANAS"]
[null,null,null,null,null,null,null,null,null,589,20,4,2,"BUENOS AIRES"]
[null,null,null,null,null,null,null,null,null,589,20,4,3,"CHALACO"]
[null,null,null,null,null,null,null,null,null,589,20,4,4,"LA MATANZA"]
[null,null,null,null,null,null,null,null,null,589,20,4,5,"MORROPON"]
[null,null,null,null,null,null,null,null,null,589,20,4,6,"SALITRAL"]
[null,null,null,null,null,null,null,null,null,589,20,4,7,"SAN JUAN DE BIG"]
[null,null,null,null,null,null,null,null,null,589,20,4,8,"SANTA CATALINA"]
[null,null,null,null,null,null,null,null,null,589,20,4,9,"SANTO DOMINGO"]
[null,null,null,null,null,null,null,null,null,589,20,4,10,"YAMANGO"]
[null,null,null,null,null,null,null,null,null,589,20,5,1,"PAITA"]
[null,null,null,null,null,null,null,null,null,589,20,5,2,"AMOTAPE"]
[null,null,null,null,null,null,null,null,null,589,20,5,3,"ARENAL"]
[null,null,null,null,null,null,null,null,null,589,20,5,4,"COLAN"]
[null,null,null,null,null,null,null,null,null,589,20,5,5,"LA HUACA"]
[null,null,null,null,null,null,null,null,null,589,20,5,6,"TAMARINDO"]
[null,null,null,null,null,null,null,null,null,589,20,5,7,"VICHAYAL"]
[null,null,null,null,null,null,null,null,null,589,20,6,1,"SULLANA"]
[null,null,null,null,null,null,null,null,null,589,20,6,2,"BELLAVISTA"]
[null,null,null,null,null,null,null,null,null,589,20,6,3,"IGNACIO ESCUDER"]
[null,null,null,null,null,null,null,null,null,589,20,6,4,"LANCONES"]
[null,null,null,null,null,null,null,null,null,589,20,6,5,"MARCAVELICA"]
[null,null,null,null,null,null,null,null,null,589,20,6,6,"MIGUEL CHECA"]
[null,null,null,null,null,null,null,null,null,589,20,6,7,"QUERECOTILLO"]
[null,null,null,null,null,null,null,null,null,589,20,6,8,"SALITRAL"]
[null,null,null,null,null,null,null,null,null,589,20,7,1,"PARIÑAS"]
[null,null,null,null,null,null,null,null,null,589,20,7,2,"EL ALTO"]
[null,null,null,null,null,null,null,null,null,589,20,7,3,"LA BREA"]
[null,null,null,null,null,null,null,null,null,589,20,7,4,"LOBITOS"]
[null,null,null,null,null,null,null,null,null,589,20,7,5,"LOS ORGANOS"]
[null,null,null,null,null,null,null,null,null,589,20,7,6,"MANCORA"]
[null,null,null,null,null,null,null,null,null,589,20,8,1,"SECHURA"]
[null,null,null,null,null,null,null,null,null,589,20,8,2,"BELLAVISTA DE L"]
[null,null,null,null,null,null,null,null,null,589,20,8,3,"BERNAL"]
[null,null,null,null,null,null,null,null,null,589,20,8,4,"CRISTO NOS VALG"]
[null,null,null,null,null,null,null,null,null,589,20,8,5,"VICE"]
[null,null,null,null,null,null,null,null,null,589,20,8,6,"RINCONADA LLICU"]
[null,null,null,null,null,null,null,null,null,589,21,1,1,"PUNO"]
[null,null,null,null,null,null,null,null,null,589,21,1,2,"ACORA"]
[null,null,null,null,null,null,null,null,null,589,21,1,3,"AMANTANI"]
[null,null,null,null,null,null,null,null,null,589,21,1,4,"ATUNCOLLA"]
[null,null,null,null,null,null,null,null,null,589,21,1,5,"CAPACHICA"]
[null,null,null,null,null,null,null,null,null,589,21,1,6,"CHUCUITO"]
[null,null,null,null,null,null,null,null,null,589,21,1,7,"COATA"]
[null,null,null,null,null,null,null,null,null,589,21,1,8,"HUATA"]
[null,null,null,null,null,null,null,null,null,589,21,1,9,"MAÑAZO"]
[null,null,null,null,null,null,null,null,null,589,21,1,10,"PAUCARCOLLA"]
[null,null,null,null,null,null,null,null,null,589,21,1,11,"PICHACANI"]
[null,null,null,null,null,null,null,null,null,589,21,1,12,"PLATERIA"]
[null,null,null,null,null,null,null,null,null,589,21,1,13,"SAN ANTONIO"]
[null,null,null,null,null,null,null,null,null,589,21,1,14,"TIQUILLACA"]
[null,null,null,null,null,null,null,null,null,589,21,1,15,"VILQUE"]
[null,null,null,null,null,null,null,null,null,589,21,2,1,"AZANGARO"]
[null,null,null,null,null,null,null,null,null,589,21,2,2,"ACHAYA"]
[null,null,null,null,null,null,null,null,null,589,21,2,3,"ARAPA"]
[null,null,null,null,null,null,null,null,null,589,21,2,4,"ASILLO"]
[null,null,null,null,null,null,null,null,null,589,21,2,5,"CAMINACA"]
[null,null,null,null,null,null,null,null,null,589,21,2,6,"CHUPA"]
[null,null,null,null,null,null,null,null,null,589,21,2,7,"JOSE DOMINGO CH"]
[null,null,null,null,null,null,null,null,null,589,21,2,8,"MUÑANI"]
[null,null,null,null,null,null,null,null,null,589,21,2,9,"POTONI"]
[null,null,null,null,null,null,null,null,null,589,21,2,10,"SAMAN"]
[null,null,null,null,null,null,null,null,null,589,21,2,11,"SAN ANTON"]
[null,null,null,null,null,null,null,null,null,589,21,2,12,"SAN JOSE"]
[null,null,null,null,null,null,null,null,null,589,21,2,13,"SAN JUAN DE SAL"]
[null,null,null,null,null,null,null,null,null,589,21,2,14,"SANTIAGO DE PUP"]
[null,null,null,null,null,null,null,null,null,589,21,2,15,"TIRAPATA"]
[null,null,null,null,null,null,null,null,null,589,21,3,1,"MACUSANI"]
[null,null,null,null,null,null,null,null,null,589,21,3,2,"AJOYANI"]
[null,null,null,null,null,null,null,null,null,589,21,3,3,"AYAPATA"]
[null,null,null,null,null,null,null,null,null,589,21,3,4,"COASA"]
[null,null,null,null,null,null,null,null,null,589,21,3,5,"CORANI"]
[null,null,null,null,null,null,null,null,null,589,21,3,6,"CRUCERO"]
[null,null,null,null,null,null,null,null,null,589,21,3,7,"ITUATA"]
[null,null,null,null,null,null,null,null,null,589,21,3,8,"OLLACHEA"]
[null,null,null,null,null,null,null,null,null,589,21,3,9,"SAN GABAN"]
[null,null,null,null,null,null,null,null,null,589,21,3,10,"USICAYOS"]
[null,null,null,null,null,null,null,null,null,589,21,4,1,"JULI"]
[null,null,null,null,null,null,null,null,null,589,21,4,2,"DESAGUADERO"]
[null,null,null,null,null,null,null,null,null,589,21,4,3,"HUACULLANI"]
[null,null,null,null,null,null,null,null,null,589,21,4,4,"KELLUYO"]
[null,null,null,null,null,null,null,null,null,589,21,4,5,"PISACOMA"]
[null,null,null,null,null,null,null,null,null,589,21,4,6,"POMATA"]
[null,null,null,null,null,null,null,null,null,589,21,4,7,"ZEPITA"]
[null,null,null,null,null,null,null,null,null,589,21,5,1,"ILAVE"]
[null,null,null,null,null,null,null,null,null,589,21,5,2,"CAPASO"]
[null,null,null,null,null,null,null,null,null,589,21,5,3,"PILCUYO"]
[null,null,null,null,null,null,null,null,null,589,21,5,4,"SANTA ROSA"]
[null,null,null,null,null,null,null,null,null,589,21,5,5,"CONDURIRI"]
[null,null,null,null,null,null,null,null,null,589,21,6,1,"HUANCANE"]
[null,null,null,null,null,null,null,null,null,589,21,6,2,"COJATA"]
[null,null,null,null,null,null,null,null,null,589,21,6,3,"HUATASANI"]
[null,null,null,null,null,null,null,null,null,589,21,6,4,"INCHUPALLA"]
[null,null,null,null,null,null,null,null,null,589,21,6,5,"PUSI"]
[null,null,null,null,null,null,null,null,null,589,21,6,6,"ROSASPATA"]
[null,null,null,null,null,null,null,null,null,589,21,6,7,"TARACO"]
[null,null,null,null,null,null,null,null,null,589,21,6,8,"VILQUE CHICO"]
[null,null,null,null,null,null,null,null,null,589,21,7,1,"LAMPA"]
[null,null,null,null,null,null,null,null,null,589,21,7,2,"CABANILLA"]
[null,null,null,null,null,null,null,null,null,589,21,7,3,"CALAPUJA"]
[null,null,null,null,null,null,null,null,null,589,21,7,4,"NICASIO"]
[null,null,null,null,null,null,null,null,null,589,21,7,5,"OCUVIRI"]
[null,null,null,null,null,null,null,null,null,589,21,7,6,"PALCA"]
[null,null,null,null,null,null,null,null,null,589,21,7,7,"PARATIA"]
[null,null,null,null,null,null,null,null,null,589,21,7,8,"PUCARA"]
[null,null,null,null,null,null,null,null,null,589,21,7,9,"SANTA LUCIA"]
[null,null,null,null,null,null,null,null,null,589,21,7,10,"VILAVILA"]
[null,null,null,null,null,null,null,null,null,589,21,8,1,"AYAVIRI"]
[null,null,null,null,null,null,null,null,null,589,21,8,2,"ANTAUTA"]
[null,null,null,null,null,null,null,null,null,589,21,8,3,"CUPI"]
[null,null,null,null,null,null,null,null,null,589,21,8,4,"LLALLI"]
[null,null,null,null,null,null,null,null,null,589,21,8,5,"MACARI"]
[null,null,null,null,null,null,null,null,null,589,21,8,6,"NUÑOA"]
[null,null,null,null,null,null,null,null,null,589,21,8,7,"ORURILLO"]
[null,null,null,null,null,null,null,null,null,589,21,8,8,"SANTA ROSA"]
[null,null,null,null,null,null,null,null,null,589,21,8,9,"UMACHIRI"]
[null,null,null,null,null,null,null,null,null,589,21,9,1,"MOHO"]
[null,null,null,null,null,null,null,null,null,589,21,9,2,"CONIMA"]
[null,null,null,null,null,null,null,null,null,589,21,9,3,"HUAYRAPATA"]
[null,null,null,null,null,null,null,null,null,589,21,9,4,"TILALI"]
[null,null,null,null,null,null,null,null,null,589,21,10,1,"PUTINA"]
[null,null,null,null,null,null,null,null,null,589,21,10,2,"ANANEA"]
[null,null,null,null,null,null,null,null,null,589,21,10,3,"PEDRO VILCA APA"]
[null,null,null,null,null,null,null,null,null,589,21,10,4,"QUILCAPUNCU"]
[null,null,null,null,null,null,null,null,null,589,21,10,5,"SINA"]
[null,null,null,null,null,null,null,null,null,589,21,11,1,"JULIACA"]
[null,null,null,null,null,null,null,null,null,589,21,11,2,"CABANA"]
[null,null,null,null,null,null,null,null,null,589,21,11,3,"CABANILLAS"]
[null,null,null,null,null,null,null,null,null,589,21,11,4,"CARACOTO"]
[null,null,null,null,null,null,null,null,null,589,21,12,1,"SANDIA"]
[null,null,null,null,null,null,null,null,null,589,21,12,2,"CUYOCUYO"]
[null,null,null,null,null,null,null,null,null,589,21,12,3,"LIMBANI"]
[null,null,null,null,null,null,null,null,null,589,21,12,4,"PATAMBUCO"]
[null,null,null,null,null,null,null,null,null,589,21,12,5,"PHARA"]
[null,null,null,null,null,null,null,null,null,589,21,12,6,"QUIACA"]
[null,null,null,null,null,null,null,null,null,589,21,12,7,"SAN JUAN DEL OR"]
[null,null,null,null,null,null,null,null,null,589,21,12,8,"YANAHUAYA"]
[null,null,null,null,null,null,null,null,null,589,21,12,9,"ALTO INAMBARI"]
[null,null,null,null,null,null,null,null,null,589,21,13,1,"YUNGUYO"]
[null,null,null,null,null,null,null,null,null,589,21,13,2,"ANAPIA"]
[null,null,null,null,null,null,null,null,null,589,21,13,3,"COPANI"]
[null,null,null,null,null,null,null,null,null,589,21,13,4,"CUTURAPI"]
[null,null,null,null,null,null,null,null,null,589,21,13,5,"OLLARAYA"]
[null,null,null,null,null,null,null,null,null,589,21,13,6,"TINICACHI"]
[null,null,null,null,null,null,null,null,null,589,21,13,7,"UNICACHI"]
[null,null,null,null,null,null,null,null,null,589,22,1,1,"MOYOBAMBA"]
[null,null,null,null,null,null,null,null,null,589,22,1,2,"CALZADA"]
[null,null,null,null,null,null,null,null,null,589,22,1,3,"HABANA"]
[null,null,null,null,null,null,null,null,null,589,22,1,4,"JEPELACIO"]
[null,null,null,null,null,null,null,null,null,589,22,1,5,"SORITOR"]
[null,null,null,null,null,null,null,null,null,589,22,1,6,"YANTALO"]
[null,null,null,null,null,null,null,null,null,589,22,2,1,"BELLAVISTA"]
[null,null,null,null,null,null,null,null,null,589,22,2,2,"ALTO BIAVO"]
[null,null,null,null,null,null,null,null,null,589,22,2,3,"BAJO BIAVO"]
[null,null,null,null,null,null,null,null,null,589,22,2,4,"HUALLAGA"]
[null,null,null,null,null,null,null,null,null,589,22,2,5,"SAN PABLO"]
[null,null,null,null,null,null,null,null,null,589,22,2,6,"SAN RAFAEL"]
[null,null,null,null,null,null,null,null,null,589,22,3,1,"SAN JOSE DE SIS"]
[null,null,null,null,null,null,null,null,null,589,22,3,2,"AGUA BLANCA"]
[null,null,null,null,null,null,null,null,null,589,22,3,3,"SAN MARTIN"]
[null,null,null,null,null,null,null,null,null,589,22,3,4,"SANTA ROSA"]
[null,null,null,null,null,null,null,null,null,589,22,3,5,"SHATOJA"]
[null,null,null,null,null,null,null,null,null,589,22,4,1,"SAPOSOA"]
[null,null,null,null,null,null,null,null,null,589,22,4,2,"ALTO SAPOSOA"]
[null,null,null,null,null,null,null,null,null,589,22,4,3,"EL ESLABON"]
[null,null,null,null,null,null,null,null,null,589,22,4,4,"PISCOYACU"]
[null,null,null,null,null,null,null,null,null,589,22,4,5,"SACANCHE"]
[null,null,null,null,null,null,null,null,null,589,22,4,6,"TINGO DE SAPOSO"]
[null,null,null,null,null,null,null,null,null,589,22,5,1,"LAMAS"]
[null,null,null,null,null,null,null,null,null,589,22,5,2,"ALONSO DE ALVAR"]
[null,null,null,null,null,null,null,null,null,589,22,5,3,"BARRANQUITA"]
[null,null,null,null,null,null,null,null,null,589,22,5,4,"CAYNARACHI"]
[null,null,null,null,null,null,null,null,null,589,22,5,5,"CUÑUMBUQUI"]
[null,null,null,null,null,null,null,null,null,589,22,5,6,"PINTO RECODO"]
[null,null,null,null,null,null,null,null,null,589,22,5,7,"RUMISAPA"]
[null,null,null,null,null,null,null,null,null,589,22,5,8,"SAN ROQUE DE CU"]
[null,null,null,null,null,null,null,null,null,589,22,5,9,"SHANAO"]
[null,null,null,null,null,null,null,null,null,589,22,5,10,"TABALOSOS"]
[null,null,null,null,null,null,null,null,null,589,22,5,11,"ZAPATERO"]
[null,null,null,null,null,null,null,null,null,589,22,6,1,"JUANJUI"]
[null,null,null,null,null,null,null,null,null,589,22,6,2,"CAMPANILLA"]
[null,null,null,null,null,null,null,null,null,589,22,6,3,"HUICUNGO"]
[null,null,null,null,null,null,null,null,null,589,22,6,4,"PACHIZA"]
[null,null,null,null,null,null,null,null,null,589,22,6,5,"PAJARILLO"]
[null,null,null,null,null,null,null,null,null,589,22,7,1,"PICOTA"]
[null,null,null,null,null,null,null,null,null,589,22,7,2,"BUENOS AIRES"]
[null,null,null,null,null,null,null,null,null,589,22,7,3,"CASPISAPA"]
[null,null,null,null,null,null,null,null,null,589,22,7,4,"PILLUANA"]
[null,null,null,null,null,null,null,null,null,589,22,7,5,"PUCACACA"]
[null,null,null,null,null,null,null,null,null,589,22,7,6,"SAN CRISTOBAL"]
[null,null,null,null,null,null,null,null,null,589,22,7,7,"SAN HILARION"]
[null,null,null,null,null,null,null,null,null,589,22,7,8,"SHAMBOYACU"]
[null,null,null,null,null,null,null,null,null,589,22,7,9,"TINGO DE PONASA"]
[null,null,null,null,null,null,null,null,null,589,22,7,10,"TRES UNIDOS"]
[null,null,null,null,null,null,null,null,null,589,22,8,1,"RIOJA"]
[null,null,null,null,null,null,null,null,null,589,22,8,2,"AWAJUN"]
[null,null,null,null,null,null,null,null,null,589,22,8,3,"ELIAS SOPLIN VA"]
[null,null,null,null,null,null,null,null,null,589,22,8,4,"NUEVA CAJAMARCA"]
[null,null,null,null,null,null,null,null,null,589,22,8,5,"PARDO MIGUEL"]
[null,null,null,null,null,null,null,null,null,589,22,8,6,"POSIC"]
[null,null,null,null,null,null,null,null,null,589,22,8,7,"SAN FERNANDO"]
[null,null,null,null,null,null,null,null,null,589,22,8,8,"YORONGOS"]
[null,null,null,null,null,null,null,null,null,589,22,8,9,"YURACYACU"]
[null,null,null,null,null,null,null,null,null,589,22,9,1,"TARAPOTO"]
[null,null,null,null,null,null,null,null,null,589,22,9,2,"ALBERTO LEVEAU"]
[null,null,null,null,null,null,null,null,null,589,22,9,3,"CACATACHI"]
[null,null,null,null,null,null,null,null,null,589,22,9,4,"CHAZUTA"]
[null,null,null,null,null,null,null,null,null,589,22,9,5,"CHIPURANA"]
[null,null,null,null,null,null,null,null,null,589,22,9,6,"EL PORVENIR"]
[null,null,null,null,null,null,null,null,null,589,22,9,7,"HUIMBAYOC"]
[null,null,null,null,null,null,null,null,null,589,22,9,8,"JUAN GUERRA"]
[null,null,null,null,null,null,null,null,null,589,22,9,9,"LA BANDA DE SHI"]
[null,null,null,null,null,null,null,null,null,589,22,9,10,"MORALES"]
[null,null,null,null,null,null,null,null,null,589,22,9,11,"PAPAPLAYA"]
[null,null,null,null,null,null,null,null,null,589,22,9,12,"SAN ANTONIO"]
[null,null,null,null,null,null,null,null,null,589,22,9,13,"SAUCE"]
[null,null,null,null,null,null,null,null,null,589,22,9,14,"SHAPAJA"]
[null,null,null,null,null,null,null,null,null,589,22,10,1,"TOCACHE"]
[null,null,null,null,null,null,null,null,null,589,22,10,2,"NUEVO PROGRESO"]
[null,null,null,null,null,null,null,null,null,589,22,10,3,"POLVORA"]
[null,null,null,null,null,null,null,null,null,589,22,10,4,"SHUNTE"]
[null,null,null,null,null,null,null,null,null,589,22,10,5,"UCHIZA"]
[null,null,null,null,null,null,null,null,null,589,23,1,1,"TACNA"]
[null,null,null,null,null,null,null,null,null,589,23,1,2,"ALTO DE LA ALIA"]
[null,null,null,null,null,null,null,null,null,589,23,1,3,"CALANA"]
[null,null,null,null,null,null,null,null,null,589,23,1,4,"CIUDAD NUEVA"]
[null,null,null,null,null,null,null,null,null,589,23,1,5,"INCLAN"]
[null,null,null,null,null,null,null,null,null,589,23,1,6,"PACHIA"]
[null,null,null,null,null,null,null,null,null,589,23,1,7,"PALCA"]
[null,null,null,null,null,null,null,null,null,589,23,1,8,"POCOLLAY"]
[null,null,null,null,null,null,null,null,null,589,23,1,9,"SAMA"]
[null,null,null,null,null,null,null,null,null,589,23,1,10,"CRNEL GREGORIO ALBAR"]
[null,null,null,null,null,null,null,null,null,589,23,2,1,"CANDARAVE"]
[null,null,null,null,null,null,null,null,null,589,23,2,2,"CAIRANI"]
[null,null,null,null,null,null,null,null,null,589,23,2,3,"CAMILACA"]
[null,null,null,null,null,null,null,null,null,589,23,2,4,"CURIBAYA"]
[null,null,null,null,null,null,null,null,null,589,23,2,5,"HUANUARA"]
[null,null,null,null,null,null,null,null,null,589,23,2,6,"QUILAHUANI"]
[null,null,null,null,null,null,null,null,null,589,23,3,1,"LOCUMBA"]
[null,null,null,null,null,null,null,null,null,589,23,3,2,"ILABAYA"]
[null,null,null,null,null,null,null,null,null,589,23,3,3,"ITE"]
[null,null,null,null,null,null,null,null,null,589,23,4,1,"TARATA"]
[null,null,null,null,null,null,null,null,null,589,23,4,2,"CHUCATAMANI"]
[null,null,null,null,null,null,null,null,null,589,23,4,3,"ESTIQUE"]
[null,null,null,null,null,null,null,null,null,589,23,4,4,"ESTIQUE-PAMPA"]
[null,null,null,null,null,null,null,null,null,589,23,4,5,"SITAJARA"]
[null,null,null,null,null,null,null,null,null,589,23,4,6,"SUSAPAYA"]
[null,null,null,null,null,null,null,null,null,589,23,4,7,"TARUCACHI"]
[null,null,null,null,null,null,null,null,null,589,23,4,8,"TICACO"]
[null,null,null,null,null,null,null,null,null,589,24,1,1,"TUMBES"]
[null,null,null,null,null,null,null,null,null,589,24,1,2,"CORRALES"]
[null,null,null,null,null,null,null,null,null,589,24,1,3,"LA CRUZ"]
[null,null,null,null,null,null,null,null,null,589,24,1,4,"PAMPAS DE HOSPI"]
[null,null,null,null,null,null,null,null,null,589,24,1,5,"SAN JACINTO"]
[null,null,null,null,null,null,null,null,null,589,24,1,6,"SAN JUAN DE LA"]
[null,null,null,null,null,null,null,null,null,589,24,2,1,"ZORRITOS"]
[null,null,null,null,null,null,null,null,null,589,24,2,2,"CASITAS"]
[null,null,null,null,null,null,null,null,null,589,24,3,1,"ZARUMILLA"]
[null,null,null,null,null,null,null,null,null,589,24,3,2,"AGUAS VERDES"]
[null,null,null,null,null,null,null,null,null,589,24,3,3,"MATAPALO"]
[null,null,null,null,null,null,null,null,null,589,24,3,4,"PAPAYAL"]
[null,null,null,null,null,null,null,null,null,589,25,1,1,"CALLARIA"]
[null,null,null,null,null,null,null,null,null,589,25,1,2,"CAMPOVERDE"]
[null,null,null,null,null,null,null,null,null,589,25,1,3,"IPARIA"]
[null,null,null,null,null,null,null,null,null,589,25,1,4,"MASISEA"]
[null,null,null,null,null,null,null,null,null,589,25,1,5,"YARINACOCHA"]
[null,null,null,null,null,null,null,null,null,589,25,1,6,"NUEVA REQUENA"]
[null,null,null,null,null,null,null,null,null,589,25,1,7,"MANANTAY"]
[null,null,null,null,null,null,null,null,null,589,25,2,1,"RAYMONDI"]
[null,null,null,null,null,null,null,null,null,589,25,2,2,"SEPAHUA"]
[null,null,null,null,null,null,null,null,null,589,25,2,3,"TAHUANIA"]
[null,null,null,null,null,null,null,null,null,589,25,2,4,"YURUA"]
[null,null,null,null,null,null,null,null,null,589,25,3,1,"PADRE ABAD"]
[null,null,null,null,null,null,null,null,null,589,25,3,2,"IRAZOLA"]
[null,null,null,null,null,null,null,null,null,589,25,3,3,"CURIMANA"]
[null,null,null,null,null,null,null,null,null,589,25,4,1,"PURUS"]

{"sheet":"Columnas","index":7,"n_rows":508,"n_cols":8,"rows_kept":508,"cut":false,"hidden":true,"merged":[]}
[]
[]
[]
[]
[]
[]
[null,"B8","AI","AJ",null,"Agencia","UBIGEO","CDR"]
[null,1,0,1,null,"AGENCIA ALFONSO UGARTE","Lima",203]
[null,1,0,1,null,"AGENCIA ANGAMOS","Lima",43]
[null,1,0,1,null,"AGENCIA ANTUNEZ DE MAYOLO","Lima",372]
[null,1,0,1,null,"AGENCIA ARENALES","Lima",391]
[null,1,0,1,null,"AGENCIA ASIA","Lima",103]
[null,1,1,0,null,"AGENCIA ATE","Lima",98]
[null,1,1,0,null,"AGENCIA AVIACION","Lima",48]
[null,0,0,0,null,"AGENCIA BARRANCO","Lima",51]
[null,0,0,0,null,"AGENCIA BASADRE","Lima",12]
[null,0,0,0,null,"AGENCIA BELAUNDE","Lima",21]
[null,0,0,0,null,"AGENCIA BRASIL","Lima",221]
[null,0,0,0,null,"AGENCIA C.C OPEN PLAZA ATOCONGO","Lima",685]
[null,0,0,0,null,"AGENCIA C.C REAL PLAZA PRO","Lima",702]
[null,0,0,0,null,"AGENCIA CALLAO","Lima",100]
[null,0,0,0,null,"AGENCIA CAMACHO","Lima",97]
[null,0,0,0,null,"AGENCIA CAMANA","Lima",81]
[null,0,0,0,null,"AGENCIA CAMINO REAL","Lima",234]
[null,0,0,0,null,"AGENCIA CAMINOS DEL INCA","Lima",430]
[null,0,0,0,null,"AGENCIA CAMPO DE MARTE","Lima",210]
[null,0,0,0,null,"AGENCIA CANTO GRANDE","Lima",691]
[null,0,0,0,null,"AGENCIA CAPON","Lima",11]
[null,0,0,0,null,"AGENCIA CAQUETA","Lima",679]
[null,0,0,0,null,"AGENCIA CENTRO AERO COMERCIAL","Lima",248]
[null,0,0,0,null,"AGENCIA CENTRO BANCARIO FIORI","Lima",229]
[null,0,0,0,null,"AGENCIA CENTRO BANCARIO SANTA ANITA 1","Lima",225]
[null,0,0,0,null,"AGENCIA CENTRO BANCARIO SANTA ANITA 2","Lima",79]
[null,0,0,0,null,"AGENCIA CENTRO CIVICO","Lima",135]
[null,0,0,0,null,"AGENCIA CENTRO COMERCIAL AURORA 1","Lima",252]
[null,0,0,0,null,"AGENCIA CENTRO COMERCIAL SAN BORJA","Lima",266]
[null,0,0,0,null,"AGENCIA CENTRO HISTORICO","Lima",10]
[null,0,0,0,null,"AGENCIA CERES","Lima",659]
[null,0,0,0,null,"AGENCIA CHACARILLA 1","Lima",55]
[null,0,0,0,null,"AGENCIA CHACARILLA 2","Lima",29]
[null,0,0,0,null,"AGENCIA CHACRA RIOS","Lima",14]
[null,0,0,0,null,"AGENCIA CHIMU 1","Lima",239]
[null,0,0,0,null,"AGENCIA CHIMU 2","Lima",58]
[null,0,0,0,null,"AGENCIA CHORRILLOS","Lima",251]
[null,0,0,0,null,"AGENCIA COLISEO DIBOS","Lima",263]
[null,0,0,0,null,"AGENCIA COLONIAL 1","Lima",254]
[null,0,0,0,null,"AGENCIA COLONIAL 2","Lima",37]
[null,0,0,0,null,"AGENCIA COMANDANTE ESPINAR","Lima",38]
[null,0,0,0,null,"AGENCIA COMAS","Lima",20]
[null,0,0,0,null,"AGENCIA CONQUISTADORES","Lima",45]
[null,0,0,0,null,"AGENCIA CORPAC","Lima",44]
[null,0,0,0,null,"AGENCIA DAMASCO","Lima",17]
[null,0,0,0,null,"AGENCIA DIAGONAL","Lima",202]
[null,0,0,0,null,"AGENCIA DOS DE MAYO 1","Lima",90]
[null,0,0,0,null,"AGENCIA DOS DE MAYO 2","Lima",24]
[null,0,0,0,null,"AGENCIA EL GOLF - CAMINO REAL","Lima",28]
[null,0,0,0,null,"AGENCIA EL NARANJAL","Lima",535]
[null,0,0,0,null,"AGENCIA EL POLO 1","Lima",89]
[null,0,0,0,null,"AGENCIA EL POLO 2","Lima",52]
[null,0,0,0,null,"AGENCIA ESP. BAZAR DE LA MARINA","Lima",846]
[null,0,0,0,null,"AGENCIA ESP. BOLSA DE VALORES","Lima",66]
[null,0,0,0,null,"AGENCIA ESP. MAPFRE","Lima",68]
[null,0,0,0,null,"AGENCIA ESP. MARRIOTT","Lima",69]
[null,0,0,0,null,"AGENCIA ESPECIAL ADUANA MARITIMA ","Lima",274]
[null,0,0,0,null,"AGENCIA ESPECIAL CENTRO BANCARIO PROSEGUR","Lima",140]
[null,0,0,0,null,"AGENCIA ESPECIAL CONCHAN","Lima",171]
[null,0,0,0,null,"AGENCIA ESPECIAL GLORIA","Lima",172]
[null,0,0,0,null,"AGENCIA ESPECIAL IBM","Lima",261]
[null,0,0,0,null,"AGENCIA ESPECIAL LA PAMPILLA","Lima",277]
[null,0,0,0,null,"AGENCIA ESPECIAL PETROPERÚ","Lima",259]
[null,0,0,0,null,"AGENCIA ESPECIAL PRIMAX","Lima",275]
[null,0,0,0,null,"AGENCIA ESPECIAL REGATAS LIMA","Lima",257]
[null,0,0,0,null,"AGENCIA ESPECIAL UNIV. DE LIMA","Lima",95]
[null,0,0,0,null,"AGENCIA ESPECIAL UNIV. PACIFICO","Lima",268]
[null,0,0,0,null,"AGENCIA ESPECIAL UNIV. RICARDO PALMA","Lima",273]
[null,0,0,0,null,"AGENCIA FAUCETT","Lima",224]
[null,0,0,0,null,"AGENCIA FAUCETT 2","Lima",428]
[null,0,0,0,null,"AGENCIA FRAY LUIS DE LEON","Lima",280]
[null,0,0,0,null,"AGENCIA GAMARRA 1","Lima",30]
[null,0,0,0,null,"AGENCIA GAMARRA 2","Lima",53]
[null,0,0,0,null,"AGENCIA HIGUERETA","Lima",230]
[null,0,0,0,null,"AGENCIA HIGUERETA - POLVOS ROSADOS","Lima",107]
[null,0,0,0,null,"AGENCIA JESUS MARIA 1","Lima",35]
[null,0,0,0,null,"AGENCIA JESUS MARIA 2","Lima",59]
[null,0,0,0,null,"AGENCIA JOCKEY PLAZA 1","Lima",264]
[null,0,0,0,null,"AGENCIA LA MARINA 1","Lima",72]
[null,0,0,0,null,"AGENCIA LA MARINA 2","Lima",63]
[null,0,0,0,null,"AGENCIA LA MOLINA","Lima",238]
[null,0,0,0,null,"AGENCIA LA PLANICIE","Lima",305]
[null,0,0,0,null,"AGENCIA LA VICTORIA","Lima",36]
[null,0,0,0,null,"AGENCIA LARAPA","Lima",151]
[null,0,0,0,null,"AGENCIA LARCO 1","Lima",40]
[null,0,0,0,null,"AGENCIA LARCO 2","Lima",65]
[null,0,0,0,null,"AGENCIA LAS BEGONIAS","Lima",25]
[null,0,0,0,null,"AGENCIA LAS FLORES","Lima",247]
[null,0,0,0,null,"AGENCIA LAS GARDENIAS 1","Lima",54]
[null,0,0,0,null,"AGENCIA LAS GARDENIAS 2","Lima",57]
[null,0,0,0,null,"AGENCIA LAS MALVINAS","Lima",177]
[null,0,0,0,null,"AGENCIA LIMA CARGO CITY","Lima",689]
[null,0,0,0,null,"AGENCIA LINCE","Lima",219]
[null,0,0,0,null,"AGENCIA LOS OLIVOS","Lima",67]
[null,0,0,0,null,"AGENCIA LURIN","Lima",749]
[null,0,0,0,null,"AGENCIA MAGDALENA","Lima",213]
[null,0,0,0,null,"AGENCIA MARANGA","Lima",231]
[null,0,0,0,null,"AGENCIA MARISCAL CACERES","Lima",742]
[null,0,0,0,null,"AGENCIA MEGA PLAZA 1","Lima",19]
[null,0,0,0,null,"AGENCIA MEGA PLAZA EXPRESS VILLA","Lima",111]
[null,0,0,0,null,"AGENCIA MERCADO SANTA ANITA","Lima",369]
[null,0,0,0,null,"AGENCIA METRO UNI","Lima",267]
[null,0,0,0,null,"AGENCIA MEXICO","Lima",227]
[null,0,0,0,null,"AGENCIA MIGUEL DASSO","Lima",220]
[null,0,0,0,null,"AGENCIA MINKA","Lima",661]
[null,0,0,0,null,"AGENCIA MIRAFLORES","Lima",255]
[null,0,0,0,null,"AGENCIA MONTERRICO","Lima",244]
[null,0,0,0,null,"AGENCIA MULTICENTER","Lima",657]
[null,0,0,0,null,"AGENCIA NICOLAS ARRIOLA","Lima",243]
[null,0,0,0,null,"AGENCIA ORRANTIA","Lima",249]
[null,0,0,0,null,"AGENCIA P. DE LA REPÚBLICA S. ISIDRO","Lima",223]
[null,0,0,0,null,"AGENCIA PABLO BERMUDEZ","Lima",241]
[null,0,0,0,null,"AGENCIA PALAO","Lima",83]
[null,0,0,0,null,"AGENCIA PARDO","Lima",242]
[null,0,0,0,null,"AGENCIA PETIT THOUARS","Lima",41]
[null,0,0,0,null,"AGENCIA PLAZA SAN MIGUEL","Lima",265]
[null,0,0,0,null,"AGENCIA PLAZA SUR LIMA CHORRILLOS 1","Lima",23]
[null,0,0,0,null,"AGENCIA PLAZA SUR LIMA CHORRILLOS 2","Lima",74]
[null,0,0,0,null,"AGENCIA PUENTE PIEDRA","Lima",92]
[null,0,0,0,null,"AGENCIA RAUL FERRERO","Lima",64]
[null,0,0,0,null,"AGENCIA REAL PLAZA SALAVERRY","Lima",388]
[null,0,0,0,null,"AGENCIA REPUBLICA DE PANAMA","Lima",250]
[null,0,0,0,null,"AGENCIA RIMAC","Lima",214]
[null,0,0,0,null,"AGENCIA SALAVERRY","Lima",26]
[null,0,0,0,null,"AGENCIA SAN ANTONIO","Lima",78]
[null,0,0,0,null,"AGENCIA SAN BORJA NORTE","Lima",91]
[null,0,0,0,null,"AGENCIA SAN FELIPE","Lima",34]
[null,0,0,0,null,"AGENCIA SAN ISIDRO","Lima",170]
[null,0,0,0,null,"AGENCIA SAN JUAN DE MIRAFLORES","Lima",56]
[null,0,0,0,null,"AGENCIA SAN LUIS","Lima",16]
[null,0,0,0,null,"AGENCIA SAN MARTIN DE PORRES","Lima",216]
[null,0,0,0,null,"AGENCIA STRIP CENTER EL PINO","Lima",104]
[null,0,0,0,null,"AGENCIA SUCRE","Lima",60]
[null,0,0,0,null,"AGENCIA SURQUILLO","Lima",204]
[null,0,0,0,null,"AGENCIA TOMAS MARSANO","Lima",938]
[null,0,0,0,null,"AGENCIA TOURING CLUB","Lima",851]
[null,0,0,0,null,"AGENCIA VENEZUELA","Lima",13]
[null,0,0,0,null,"AGENCIA VENTANILLA","Lima",386]
[null,0,0,0,null,"AGENCIA VILLA EL SALVADOR","Lima",22]
[null,0,0,0,null,"AGENCIA VILLA MARIA DEL TRIUNFO","Lima",88]
[null,0,0,0,null,"AG.ESPECIAL MONEY EXCHANGE SB","Provincia",429]
[null,0,0,0,null,"AGENCIA BARRANCA","Provincia",304]
[null,0,0,0,null,"AGENCIA BELEN","Provincia",754]
[null,0,0,0,null,"AGENCIA C. C. AREQUIPA CENTER","Provincia",148]
[null,0,0,0,null,"AGENCIA C.C EL QUINDE CAJAMARCA","Provincia",632]
[null,0,0,0,null,"AGENCIA C.C MALL PLAZA TRUJILLO","Provincia",635]
[null,0,0,0,null,"AGENCIA C.C OPEN PLAZA PIURA","Provincia",441]
[null,0,0,0,null,"AGENCIA C.C PLAZA DEL SOL","Provincia",672]
[null,0,0,0,null,"AGENCIA C.C PLAZA LA LUNA","Provincia",116]
[null,0,0,0,null,"AGENCIA C.C REAL PLAZA HUANCAYO","Provincia",674]
[null,0,0,0,null,"AGENCIA C.C. REAL PLAZA PIURA","Provincia",467]
[null,0,0,0,null,"AGENCIA CAJAMARCA","Provincia",411]
[null,0,0,0,null,"AGENCIA CAÑETE","Provincia",102]
[null,0,0,0,null,"AGENCIA CAYMA","Provincia",313]
[null,0,0,0,null,"AGENCIA CERRO DE PASCO","Provincia",349]
[null,0,0,0,null,"AGENCIA CHICLAYO","Provincia",409]
[null,0,0,0,null,"AGENCIA CHIMBOTE","Provincia",360]
[null,0,0,0,null,"AGENCIA CHINCHA","Provincia",301]
[null,0,0,0,null,"AGENCIA CORONEL MENDOZA","Provincia",722]
[null,0,0,0,null,"AGENCIA CUZCO","Provincia",318]
[null,0,0,0,null,"AGENCIA EL QUINDE ICA","Provincia",195]
[null,0,0,0,null,"AGENCIA EL TAMBO","Provincia",943]
[null,0,0,0,null,"AGENCIA ESPECIAL ETEN","Provincia",412]
[null,0,0,0,null,"AGENCIA HUACHO","Provincia",101]
[null,0,0,0,null,"AGENCIA HUANCAYO","Provincia",423]
[null,0,0,0,null,"AGENCIA HUANUCO","Provincia",358]
[null,0,0,0,null,"AGENCIA HUARAL","Provincia",357]
[null,0,0,0,null,"AGENCIA HUARAZ","Provincia",421]
[null,0,0,0,null,"AGENCIA ICA","Provincia",300]
[null,0,0,0,null,"AGENCIA ILO","Provincia",419]
[null,0,0,0,null,"AGENCIA IQUITOS","Provincia",422]
[null,0,0,0,null,"AGENCIA JAEN","Provincia",32]
[null,0,0,0,null,"AGENCIA JOSE BALTA","Provincia",320]
[null,0,0,0,null,"AGENCIA JULIACA","Provincia",405]
[null,0,0,0,null,"AGENCIA LA CULTURA CUSCO","Provincia",108]
[null,0,0,0,null,"AGENCIA MALL PLAZA AREQUIPA","Provincia",432]
[null,0,0,0,null,"AGENCIA MEGA PLAZA CHINCHA","Provincia",192]
[null,0,0,0,null,"AGENCIA MERCADERES","Provincia",310]
[null,0,0,0,null,"AGENCIA MERCADO MODELO CHICLAYO","Provincia",775]
[null,0,0,0,null,"AGENCIA METRO OVALO PAPAL","Provincia",121]
[null,0,0,0,null,"AGENCIA METRO STA ELENA","Provincia",174]
[null,0,0,0,null,"AGENCIA MINERA CHINALCO","Provincia",194]
[null,0,0,0,null,"AGENCIA MIRAFLORES - AREQUIPA","Provincia",649]
[null,0,0,0,null,"AGENCIA MIRAFLORES - PIURA","Provincia",106]
[null,0,0,0,null,"AGENCIA MOQUEGUA","Provincia",122]
[null,0,0,0,null,"AGENCIA MOSHOQUEQUE","Provincia",113]
[null,0,0,0,null,"AGENCIA MOYOBAMBA","Provincia",633]
[null,0,0,0,null,"AGENCIA NUEVO CHIMBOTE","Provincia",755]
[null,0,0,0,null,"AGENCIA OPEN PLAZA PUCALLPA","Provincia",196]
[null,0,0,0,null,"AGENCIA PAITA","Provincia",416]
[null,0,0,0,null,"AGENCIA PALERMO","Provincia",408]
[null,0,0,0,null,"AGENCIA PARQUE INDUSTRIAL","Provincia",314]
[null,0,0,0,null,"AGENCIA PARQUE LAMBRAMANI","Provincia",427]
[null,0,0,0,null,"AGENCIA PISCO","Provincia",308]
[null,0,0,0,null,"AGENCIA PIURA","Provincia",330]
[null,0,0,0,null,"AGENCIA PIZARRO","Provincia",324]
[null,0,0,0,null,"AGENCIA PUCALLPA","Provincia",322]
[null,0,0,0,null,"AGENCIA PUNO","Provincia",319]
[null,0,0,0,null,"AGENCIA REAL PLAZA CHICLAYO","Provincia",630]
[null,0,0,0,null,"AGENCIA REAL PLAZA HUANUCO","Provincia",182]
[null,0,0,0,null,"AGENCIA REAL PLAZA SULLANA","Provincia",603]
[null,0,0,0,null,"AGENCIA REAL PLAZA TRUJILLO","Provincia",631]
[null,0,0,0,null,"AGENCIA SULLANA","Provincia",359]
[null,0,0,0,null,"AGENCIA TACNA","Provincia",417]
[null,0,0,0,null,"AGENCIA TALARA","Provincia",414]
[null,0,0,0,null,"AGENCIA TARAPOTO","Provincia",323]
[null,0,0,0,null,"AGENCIA TRUJILLO","Provincia",407]
[null,0,0,0,null,"AGENCIA TUMBES","Provincia",112]
[null,0,0,0,null,"AGENCIA TUPAC AMARU","Provincia",583]
[null,0,0,0,null,"AGENCIA ZOTAC","Provincia",418]
[null,0,0,0]
[null,0,0,0]
[null,0,0,0]
[null,0,0,0]
[null,0,0,0]
[null,0,0,0]
[null,0,0,0]
[null,0,0,0]
[null,0,0,0]
[null,0,0,0]
[null,0,0,0]
[null,0,0,0]
[null,0,0,0]
[null,0,0,0]
[null,0,0,0]
[null,0,0,0]
[null,0,0,0]
[null,0,0,0]
[null,0,0,0]
[null,0,0,0]
[null,0,0,0]
[null,0,0,0]
[null,0,0,0]
[null,0,0,0]
[null,0,0,0]
[null,0,0,0]
[null,0,0,0]
[null,0,0,0]
[null,0,0,0]
[null,0,0,0]
[null,0,0,0]
[null,0,0,0]
[null,0,0,0]
[null,0,0,0]
[null,0,0,0]
[null,0,0,0]
[null,0,0,0]
[null,0,0,0]
[null,0,0,0]
[null,0,0,0]
[null,0,0,0]
[null,0,0,0]
[null,0,0,0]
[null,0,0,0]
[null,0,0,0]
[null,0,0,0]
[null,0,0,0]
[null,0,0,0]
[null,0,0,0]
[null,0,0,0]
[null,0,0,0]
[null,0,0,0]
[null,0,0,0]
[null,0,0,0]
[null,0,0,0]
[null,0,0,0]
[null,0,0,0]
[null,0,0,0]
[null,0,0,0]
[null,0,0,0]
[null,0,0,0]
[null,0,0,0]
[null,0,0,0]
[null,0,0,0]
[null,0,0,0]
[null,0,0,0]
[null,0,0,0]
[null,0,0,0]
[null,0,0,0]
[null,0,0,0]
[null,0,0,0]
[null,0,0,0]
[null,0,0,0]
[null,0,0,0]
[null,0,0,0]
[null,0,0,0]
[null,0,0,0]
[null,0,0,0]
[null,0,0,0]
[null,0,0,0]
[null,0,0,0]
[null,0,0,0]
[null,0,0,0]
[null,0,0,0]
[null,0,0,0]
[null,0,0,0]
[null,0,0,0]
[null,0,0,0]
[null,0,0,0]
[null,0,0,0]
[null,0,0,0]
[null,0,0,0]
[null,0,0,0]
[null,0,0,0]
[null,0,0,0]
[null,0,0,0]
[null,0,0,0]
[null,0,0,0]
[null,0,0,0]
[null,0,0,0]
[null,0,0,0]
[null,0,0,0]
[null,0,0,0]
[null,0,0,0]
[null,0,0,0]
[null,0,0,0]
[null,0,0,0]
[null,0,0,0]
[null,0,0,0]
[null,0,0,0]
[null,0,0,0]
[null,0,0,0]
[null,0,0,0]
[null,0,0,0]
[null,0,0,0]
[null,0,0,0]
[null,0,0,0]
[null,0,0,0]
[null,0,0,0]
[null,0,0,0]
[null,0,0,0]
[null,0,0,0]
[null,0,0,0]
[null,0,0,0]
[null,0,0,0]
[null,0,0,0]
[null,0,0,0]
[null,0,0,0]
[null,0,0,0]
[null,0,0,0]
[null,0,0,0]
[null,0,0,0]
[null,0,0,0]
[null,0,0,0]
[null,0,0,0]
[null,0,0,0]
[null,0,0,0]
[null,0,0,0]
[null,0,0,0]
[null,0,0,0]
[null,0,0,0]
[null,0,0,0]
[null,0,0,0]
[null,0,0,0]
[null,0,0,0]
[null,0,0,0]
[null,0,0,0]
[null,0,0,0]
[null,0,0,0]
[null,0,0,0]
[null,0,0,0]
[null,0,0,0]
[null,0,0,0]
[null,0,0,0]
[null,0,0,0]
[null,0,0,0]
[null,0,0,0]
[null,0,0,0]
[null,0,0,0]
[null,0,0,0]
[null,0,0,0]
[null,0,0,0]
[null,0,0,0]
[null,0,0,0]
[null,0,0,0]
[null,0,0,0]
[null,0,0,0]
[null,0,0,0]
[null,0,0,0]
[null,0,0,0]
[null,0,0,0]
[null,0,0,0]
[null,0,0,0]
[null,0,0,0]
[null,0,0,0]
[null,0,0,0]
[null,0,0,0]
[null,0,0,0]
[null,0,0,0]
[null,0,0,0]
[null,0,0,0]
[null,0,0,0]
[null,0,0,0]
[null,0,0,0]
[null,0,0,0]
[null,0,0,0]
[null,0,0,0]
[null,0,0,0]
[null,0,0,0]
[null,0,0,0]
[null,0,0,0]
[null,0,0,0]
[null,0,0,0]
[null,0,0,0]
[null,0,0,0]
[null,0,0,0]
[null,0,0,0]
[null,0,0,0]
[null,0,0,0]
[null,0,0,0]
[null,0,0,0]
[null,0,0,0]
[null,0,0,0]
[null,0,0,0]
[null,0,0,0]
[null,0,0,0]
[null,0,0,0]
[null,0,0,0]
[null,0,0,0]
[null,0,0,0]
[null,0,0,0]
[null,0,0,0]
[null,0,0,0]
[null,0,0,0]
[null,0,0,0]
[null,0,0,0]
[null,0,0,0]
[null,0,0,0]
[null,0,0,0]
[null,0,0,0]
[null,0,0,0]
[null,0,0,0]
[null,0,0,0]
[null,0,0,0]
[null,0,0,0]
[null,0,0,0]
[null,0,0,0]
[null,0,0,0]
[null,0,0,0]
[null,0,0,0]
[null,0,0,0]
[null,0,0,0]
[null,0,0,0]
[null,0,0,0]
[null,0,0,0]
[null,0,0,0]
[null,0,0,0]
[null,0,0,0]
[null,0,0,0]
[null,0,0,0]
[null,0,0,0]
[null,0,0,0]
[null,0,0,0]
[null,0,0,0]
[null,0,0,0]
[null,0,0,0]
[null,0,0,0]
[null,0,0,0]
[null,0,0,0]
[null,0,0,0]
[null,0,0,0]
[null,0,0,0]
[null,0,0,0]
[null,0,0,0]
[null,0,0,0]
[null,0,0,0]
[null,0,0,0]
[null,0,0,0]
[null,0,0,0]
[null,0,0,0]
[null,0,0,0]
[null,0,0,0]
[null,0,0,0]
[null,0,0,0]
[null,0,0,0]
[null,0,0,0]
[null,0,0,0]
[null,0,0,0]
[null,0,0,0]
[null,0,0,0]
[null,0,0,0]
[null,0,0,0]
[null,0,0,0]
[null,0,0,0]
[null,0,0,0]
[null,0,0,0]
[null,0,0,0]
[null,0,0,0]
[null,0,0,0]
[null,0,0,0]
[null,0,0,0]
[null,0,0,0]
[null,0,0,0]
[null,0,0,0]
[null,0,0,0]
[null,0,0,0]
[null,0,0,0]
[null,0,0,0]
[null,0,0,0]
[null,0,0,0]
[null,{"$error":"#REF!"},0,0]

{"sheet":"Hoja2","index":8,"n_rows":0,"n_cols":0,"rows_kept":0,"cut":false,"hidden":true,"merged":[]}

{"sheet":"Hoja3","index":9,"n_rows":0,"n_cols":0,"rows_kept":0,"cut":false,"hidden":true,"merged":[]}

{"sheet":"Profesion","index":10,"n_rows":149,"n_cols":10,"rows_kept":149,"cut":false,"hidden":true,"merged":[]}
[]
[null,null,"Argumento  ","Descripcion             ",null,"Argumento  ","Descripcion          ",null,"Codigo ","Profesión"]
[null,null,0,"TIPO DE OCUPACION    ",null,0,"   CARGO ACTUAL     ",null,1,"AUXILIAR DE ADMINISTRACION             "]
[null,null,1,"DEPENDIENTE             ",null,1,"GERENTE GENERAL      ",null,2,"ANTROPOLOGO, ARQUEOLOGO Y ETNOLOGO     "]
[null,null,2,"INDEPENDIENTE           ",null,2,"GERENTE PRODUCCION    ",null,3,"ABOGADO                                "]
[null,null,3,"ESTUDIANTE              ",null,3,"GERENTE RR.HH        ",null,4,"AMA DE CASA                            "]
[null,null,4,"JUBILADO                ",null,4,"GERENTE FINANZAS     ",null,5,"ACTOR,ARTISTA Y DIRECTOR DE ESPECTACULOS"]
[null,null,5,"SU CASA                 ",null,5,"GERENTE INFORMATICA  ",null,6,"ADMINISTRADOR                          "]
[null,null,7,"RENTISTA                ",null,6,"EMPLEADO             ",null,7,"ADMINISTRADOR DE EMPRESAS(PROFESIONAL) "]
[null,null,8,"OTROS - BACK      OFFICE",null,7,"FUNCIONARIO          ",null,8,"AGRICULTOR                             "]
[null,null,null,null,null,8,"GERENTE              ",null,9,"AGRONOMO                               "]
[null,null,null,null,null,9,"GERENTE MARKETING    ",null,10,"AGRIMENSOR Y TOPOGRAFO                 "]
[null,null,null,null,null,10,"GERENTE OPERACIONES  ",null,11,"ALBA¥IL                                "]
[null,null,null,null,null,11,"GERENTE PRODUCTOS    ",null,12,"ARCHIVERO                              "]
[null,null,null,null,null,12,"GERENTE VENTAS       ",null,13,"ARQUITECTO                             "]
[null,null,null,null,null,13,"JEFE                 ",null,14,"ANALISTAS DE SISTEMA Y COMPUTACION     "]
[null,null,null,null,null,14,"SUB GERENTE          ",null,15,"ASESOR                                 "]
[null,null,null,null,null,15,"OTROS                ",null,16,"ARTESANO DE CUERO"]
[null,null,null,null,null,16,"GERENTE ADMINISTRACION",null,17,"ARTESANO TEXTIL"]
[null,null,null,null,null,17,"CONTADOR GENERAL     ",null,18,"BACTERIOLOGO, FARMACOLOGO"]
[null,null,null,null,null,18,"AUDITOR INTERNO      ",null,19,"BIOLOGO"]
[null,null,null,null,null,19,"NO INFORMADO         ",null,20,"COMERCIALIZACION DE ARROZ"]
[null,null,null,null,null,20,"ASESOR               ",null,21,"CAMBISTA"]
[null,null,null,null,null,21,"PRACTICANTE        ",null,22,"FOTOGRAFO Y OPERADORES CAMARA, CINE Y TV"]
[null,null,null,null,null,null,null,null,23,"CIRUJANO PLASTICO"]
[null,null,null,null,null,null,null,null,24,"COREOGRAFO Y BAILARINES"]
[null,null,null,null,null,null,null,null,26,"COSMETOLOGO, PELUQUERO Y BARBERO"]
[null,null,null,null,null,null,null,null,27,"CARPINTERO"]
[null,null,null,null,null,null,null,null,28,"CONFECCIONISTA DE ROPA"]
[null,null,null,null,null,null,null,null,29,"CONSULTOR"]
[null,null,null,null,null,null,null,null,30,"CONTADOR"]
[null,null,null,null,null,null,null,null,31,"CATEDRATICO"]
[null,null,null,null,null,null,null,null,32,"CONDUCTOR DE VEHICULOS DE MOTOR"]
[null,null,null,null,null,null,null,null,33,"CORTE Y CONFECCION"]
[null,null,null,null,null,null,null,null,34,"DIRECTIVO DE ASOCIACION DEPORTIVA"]
[null,null,null,null,null,null,null,null,35,"DECORADOR, DIBUJANTE, PUBLICISTA, DISE¥A"]
[null,null,null,null,null,null,null,null,36,"DISE¥ADORA"]
[null,null,null,null,null,null,null,null,37,"DIRECTOR DE EMPRESAS"]
[null,null,null,null,null,null,null,null,38,"DOCENTE"]
[null,null,null,null,null,null,null,null,39,"DEPORTISTA PROFESIONAL Y ATLETA"]
[null,null,null,null,null,null,null,null,40,"DIPLOMATICO"]
[null,null,null,null,null,null,null,null,41,"ECONOMISTA"]
[null,null,null,null,null,null,null,null,42,"ESCULTOR"]
[null,null,null,null,null,null,null,null,43,"ENTRENADOR DEPORTIVO"]
[null,null,null,null,null,null,null,null,44,"ESCENOGRAFO"]
[null,null,null,null,null,null,null,null,45,"EJECUTIVO"]
[null,null,null,null,null,null,null,null,46,"EMPLEADO"]
[null,null,null,null,null,null,null,null,47,"EMPRESARIO"]
[null,null,null,null,null,null,null,null,48,"ENFERMERO"]
[null,null,null,null,null,null,null,null,49,"ESTUDIANTE"]
[null,null,null,null,null,null,null,null,50,"ESPECIALISTA EN TRATAMIENTO DE BELLEZA"]
[null,null,null,null,null,null,null,null,51,"ELECTRICISTA (TECNICO)"]
[null,null,null,null,null,null,null,null,52,"FARMACEUTICO"]
[null,null,null,null,null,null,null,null,53,"FABRICANTE DE PRENDAS"]
[null,null,null,null,null,null,null,null,54,"FUNCIONARIO"]
[null,null,null,null,null,null,null,null,55,"GERENTE DE ADMINISTRACION Y EMPRESAS"]
[null,null,null,null,null,null,null,null,56,"GERENTE"]
[null,null,null,null,null,null,null,null,57,"GASFITERO"]
[null,null,null,null,null,null,null,null,58,"GERENTE GENERAL"]
[null,null,null,null,null,null,null,null,59,"GEOGRAFO"]
[null,null,null,null,null,null,null,null,60,"INGENIERIA ADMINISTRATIVA"]
[null,null,null,null,null,null,null,null,61,"INDEPENDIENTE                          "]
[null,null,null,null,null,null,null,null,62,"INGENIERO"]
[null,null,null,null,null,null,null,null,63,"INTERPRETE, TRADUCTOR, FILOSOFO"]
[null,null,null,null,null,null,null,null,64,"JUBILADO"]
[null,null,null,null,null,null,null,null,65,"JEFE DE PLANEAMIENTO"]
[null,null,null,null,null,null,null,null,66,"JOYERO Y/O PLATERO"]
[null,null,null,null,null,null,null,null,67,"LABORATORISTA (TECNICO)"]
[null,null,null,null,null,null,null,null,68,"AUTOR LITERARIO, ESCRITOR Y CRITICO"]
[null,null,null,null,null,null,null,null,69,"LOCUTOR DE RADIO, TV"]
[null,null,null,null,null,null,null,null,70,"MECANICO MOTORES AVIONES  Y NAVES MARINA"]
[null,null,null,null,null,null,null,null,71,"MILITAR"]
[null,null,null,null,null,null,null,null,72,"MODELO"]
[null,null,null,null,null,null,null,null,73,"METALURGISTA"]
[null,null,null,null,null,null,null,null,74,"MUSICO"]
[null,null,null,null,null,null,null,null,75,"MECANICO DE VEHICULOS DE MOTOR"]
[null,null,null,null,null,null,null,null,76,"MEDICO Y CIRUJANO"]
[null,null,null,null,null,null,null,null,77,"NO DECLARADO"]
[null,null,null,null,null,null,null,null,78,"NUTRICIONISTA"]
[null,null,null,null,null,null,null,null,79,"OBRERO"]
[null,null,null,null,null,null,null,null,80,"OBSTETRIZ"]
[null,null,null,null,null,null,null,null,81,"ODONTOLOGO"]
[null,null,null,null,null,null,null,null,82,"OFICIAL DE LAS FUERZAS ARMADAS"]
[null,null,null,null,null,null,null,null,83,"PROFESION U OCUPACION NO ESPECIFICADA"]
[null,null,null,null,null,null,null,null,84,"OPERADOR"]
[null,null,null,null,null,null,null,null,86,"PENSIONISTA"]
[null,null,null,null,null,null,null,null,87,"PERIODISTA"]
[null,null,null,null,null,null,null,null,88,"PILOTO DE AERONAVES"]
[null,null,null,null,null,null,null,null,89,"PINTOR"]
[null,null,null,null,null,null,null,null,90,"MIEMBRO PNP"]
[null,null,null,null,null,null,null,null,91,"PODOLOGOS"]
[null,null,null,null,null,null,null,null,92,"POLICIA"]
[null,null,null,null,null,null,null,null,93,"PROFESOR"]
[null,null,null,null,null,null,null,null,94,"PSICOLOGO"]
[null,null,null,null,null,null,null,null,95,"PUBLICISTA"]
[null,null,null,null,null,null,null,null,96,"RECICLADOR"]
[null,null,null,null,null,null,null,null,97,"REGIDORES DE MUNICIPALIDADES"]
[null,null,null,null,null,null,null,null,98,"RELACIONISTA PUBLICO E INDUSTRIAL"]
[null,null,null,null,null,null,null,null,99,"RADIO TECNICO"]
[null,null,null,null,null,null,null,null,100,"SASTRE"]
[null,null,null,null,null,null,null,null,101,"SECRETARIA"]
[null,null,null,null,null,null,null,null,102,"SEGURIDAD"]
[null,null,null,null,null,null,null,null,103,"SOCIOLOGO"]
[null,null,null,null,null,null,null,null,104,"TAPICERO"]
[null,null,null,null,null,null,null,null,105,"TAXIDERMISTA, DISECADOR DE ANIMALES"]
[null,null,null,null,null,null,null,null,106,"TECNICO"]
[null,null,null,null,null,null,null,null,107,"TRANSPORTISTA"]
[null,null,null,null,null,null,null,null,108,"TURISTA"]
[null,null,null,null,null,null,null,null,109,"VARIOS"]
[null,null,null,null,null,null,null,null,110,"VENDEDOR"]
[null,null,null,null,null,null,null,null,999,"OTROS"]
[null,null,null,null,null,null,null,null,111,"NEGOCIO INDEPENDIENTE"]
[null,null,null,null,null,null,null,null,112,"VENTA DE ALIMENTOS BEBIDAS Y TABACO    "]
[null,null,null,null,null,null,null,null,113,"OTROS - BACK OFFICE"]
[null,null,null,null,null,null,null,null,114,"RENTISTA"]
[null,null,null,null,null,null,null,null,115,"BACHILLER                              "]
[null,null,null,null,null,null,null,null,116,"SECUNDARIA COMPLETA"]
[null,null,null,null,null,null,null,null,118,"AMA DE CASA"]
[null,null,null,null,null,null,null,null,122,"COCINERA                               "]
[null,null,null,null,null,null,null,null,123,"ENFERMERA                              "]
[null,null,null,null,null,null,null,null,124,"COCINERO                               "]
[null,null,null,null,null,null,null,null,125,"ASISTENTE ADMINISTRATIVO               "]
[null,null,null,null,null,null,null,null,126,"ASISTENTE CONTABLE                     "]
[null,null,null,null,null,null,null,null,127,"AUXILIAR CONTABLE                      "]
[null,null,null,null,null,null,null,null,128,"PROMOTOR DE SERVICIOS                  "]
[null,null,null,null,null,null,null,null,129,"ASISTENTE DE VENTAS Y SERVICIOS        "]
[null,null,null,null,null,null,null,null,130,"FUNCIONARIO DE BANCA PERSONAL          "]
[null,null,null,null,null,null,null,null,131,"FUNCIONARIO DE NEGOCIOS                "]
[null,null,null,null,null,null,null,null,132,"FUNCIONARIO PYME                        "]
[null,null,null,null,null,null,null,null,133,"ASESOR DE VENTAS Y SERVICIOS           "]
[null,null,null,null,null,null,null,null,134,"QUIMICO FARMACEUTICO                   "]
[null,null,null,null,null,null,null,null,135,"OPERARIO DE LIMPIEZA                   "]
[null,null,null,null,null,null,null,null,136,"ATENCIàN AL CLIENTE                    "]
[null,null,null,null,null,null,null,null,137,"GERENTE DE AGENCIA MASTER              "]
[null,null,null,null,null,null,null,null,138,"CAJERO                                  "]
[null,null,null,null,null,null,null,null,139,"ASESOR DE COBRANZA                     "]
[null,null,null,null,null,null,null,null,140,"FISCALIZACIàN GTU                      "]
[null,null,null,null,null,null,null,null,141,"SUPERVISOR                             "]
[null,null,null,null,null,null,null,null,142,"JEFE DE ALMACEN                        "]
[null,null,null,null,null,null,null,null,143,"ASISTENTE DE MARKETING"]
[null,null,null,null,null,null,null,null,144,"TRABAJADORA DEL HOGAR"]
[null,null,null,null,null,null,null,null,145,"ASESOR COMERCIAL"]
[null,null,null,null,null,null,null,null,146,"PRACTICANTE DE TI                      "]
[null,null,null,null,null,null,null,null,147,"OBSTETRA                               "]
[null,null,null,null,null,null,null,null,148,"TECNICO                                "]
[null,null,null,null,null,null,null,null,149]
[null,null,null,null,null,null,null,null,150,1]
[null,null,null,null,null,null,null,null,151,"COMERCIANTE                            "]
[null,null,null,null,null,null,null,null,152,"OBRERO                        "]

{"sheet":"Ocupacion","index":11,"n_rows":0,"n_cols":0,"rows_kept":0,"cut":false,"hidden":true,"merged":[]}